Workbook

Sheet Índice
B3: Séries Históricas BNDESPAR
B5: 1 - Indicadores
B7: 2 - Demonstração do Resultado
B9: 3 - Balanço Patrimonial
B11: 4 - Remuneração Acionista
B13: 5 - Participação em Coligadas
B15: 6 - Participação em Não Coligadas
B17: 7 - Gráficos

Sheet Indicadores
BQ1: R$ milhões, exceto percentuais
B2: Indicadores | C2: Selected Financial Ratios | D2: 1T/10 | E2: 2T/10 | F2: 3T/10 | G2: 4T/10 | H2: 2010 | I2: 1T/11 | J2: 2T/11 | K2: 3T/11 | L2: 4T/11 | M2: 2011 | N2: 1T/12 | O2: 2T/12 | P2: 3T/12 | Q2: 4T/12 | R2: 2012 | S2: 1T/13 | T2: 2T/13 | U2: 3T/13 | V2: 4T/13 | W2: 2013 | X2: 1T/14 | Y2: 2T/14 | Z2: 3T/14 | AA2: 4T/14 | AB2: 2014 | AC2: 1T/15 | AD2: 2T/15 | AE2: 3T/15 | AF2: 4T/15 | AG2: 2015 | AH2: 1T/16 | AI2: 2T/16 | AJ2: 3T/16 | AK2: 4T/16 | AL2: 2016 | AM2: 1T/17 | AN2: 2T/17 | AO2: 3T/17 | AP2: 4T/17 | AQ2: 2017 | AR2: 1T/18 | AS2: 2T/18 | AT2: 3T/18 | AU2: 4T/18 | AV2: 2018 | AW2: 1T/19 | AX2: 2T/19 | AY2: 3T/19 | AZ2: 4T/19 | BA2: 2019 | BB2: 1T/20 | BC2: 2T/20 | BD2: 3T/20 | BE2: 4T/20 | BF2: 2020 | BG2: 1T/21 | BH2: 2T/21 | BI2: 3T/21 | BJ2: 4T/21 | BK2: 2021 | BL2: 1T/22 | BM2: 2T/22 | BN2: 3T/22 | BO2: 4T/22 | BP2: 2022 | BQ2: 1T/23
D3: 2010-03-31 | E3: 2010-06-30 | F3: 2010-09-30 | G3: 2010-12-31 | I3: 2011-03-31 | J3: 2011-06-30 | K3: 2011-09-30 | L3: 2011-12-31 | N3: 2012-03-31 | O3: 2012-06-30 | P3: 2012-09-30 | Q3: 2012-12-31 | S3: 2013-03-31 | T3: 2013-06-30 | U3: 2013-09-30 | V3: 2013-12-31 | X3: 2014-03-31 | Y3: 2014-06-30 | Z3: 2014-09-30 | AA3: 2014-12-31 | AC3: 2015-03-31 | AD3: 2015-06-30 | AE3: 2015-09-30 | AF3: 2015-12-31 | AH3: 2016-03-31 | AI3: 2016-06-30 | AJ3: 2016-09-30 | AK3: 2016-12-31 | AM3: 2017-03-31 | AN3: 2017-06-30 | AO3: 2017-09-30 | AP3: 2017-12-31 | AR3: 2018-03-31 | AS3: 2018-06-30 | AT3: 2018-09-30 | AU3: 2018-12-31 | AW3: 2019-03-31 | AX3: 2019-06-30 | AY3: 2019-09-30 | AZ3: 2019-12-31 | BB3: 2020-03-31 | BC3: 31/06/2020 | BD3: 2020-09-30 | BE3: 2020-12-31 | BG3: 2021-03-31 | BH3: 2021-06-30 | BI3: 2021-09-30 | BJ3: 2021-12-31 | BL3: 2022-03-31 | BM3: 2022-06-30 | BN3: 2022-09-30 | BO3: 2022-12-31 | BQ3: 2023-03-31
B4: Lucro Líquido Ajustado1/ | C4: Net Income | D4: 673 | E4: 846 | F4: 1324 | G4: 826 | H4: 3669 | I4: 941.311 | J4: 2050 | K4: 370.881 | L4: 944.308 | M4: 4306.5 | N4: 538 | O4: 684 | P4: 312 | Q4: -1236 | R4: 298 | S4: 409.127 | T4: 228.061 | U4: 377.39 | V4: 533.986 | W4: 1548.564 | X4: 180.891 | Y4: 1968.387 | Z4: 467.653 | AA4: 287.916 | AB4: 2904.847 | AC4: -891.9728055 | AD4: -519.1674321 | AE4: 1314.230158 | AF4: -7544.682669 | AG4: -7640.592748 | AH4: -1844.430337 | AI4: -1275.998259 | AJ4: 1705.152149 | AK4: 412.3090878 | AL4: -1001.967359 | AM4: 1240.976199 | AN4: 9 | AO4: 1340 | AP4: 1188 | AQ4: 3777.976199 | AR4: 570 | AS4: 3267 | AT4: 1550 | AU4: 1807 | AV4: 7194 | AW4: 8610 | AX4: -646.86606 | AY4: 1248.454849 | AZ4: 1237.213604 | BA4: 10448.80239 | BB4: 384.033 | BC4: -848.1025913 | BD4: 6557.333324 | BE4: 5832.022555 | BF4: 11926.28629 | BG4: 8151.792556 | BH4: 1871.837403 | BI4: 4209.471165 | BJ4: 5422.263018 | BK4: 19655.36414 | BL4: 11178 | BM4: 5256 | BN4: 7599 | BO4: 3338 | BP4: 27371 | BQ4: =2341 -> 2341
B5: Ativo Total | C5: Total Assets | D5: 108093.4205 | E5: 94936.53374 | F5: 121334.6139 | G5: 125823.422 | H5: 125823.422 | I5: 129324.467 | J5: 116872.822 | K5: 105073.235 | L5: 110658.283 | M5: 110658.283 | N5: 116516.817 | O5: 103124.469 | P5: 107340.107 | Q5: 98642.314 | R5: 98642.314 | S5: 93574.909 | T5: 87925.872 | U5: 93791.253 | V5: 91331.207 | W5: 91331.207 | X5: 86244.941 | Y5: 89197.242 | Z5: 89141.003 | AA5: 77169.188 | AB5: 77169.188 | AC5: 75454.992 | AD5: 77024.885 | AE5: 71723.908 | AF5: 67328.19796 | AG5: 67328.19796 | AH5: 69351.3624 | AI5: 69529.92888 | AJ5: 75196.20671 | AK5: 80399.22344 | AL5: 80399.22344 | AM5: 81455.81692 | AN5: 76568.35383 | AO5: 85703.73993 | AP5: 89114.3238 | AQ5: 89114.3238 | AR5: 98263.72854 | AS5: 97367.93581 | AT5: 108281.5991 | AU5: 107064.8915 | AV5: 107064.8915 | AW5: 119643.5353 | AX5: 111765.434 | AY5: 112226.415 | AZ5: 122994 | BA5: 122994 | BB5: 99001 | BC5: 102167 | BD5: 104273.068 | BE5: 116774 | BF5: 116774 | BG5: 110471.116 | BH5: 107183.011 | BI5: 109386.279 | BJ5: 115104.266 | BK5: 115104.266 | BL5: 131824 | BM5: 108338 | BN5: 113364 | BO5: 71935 | BP5: 71935 | BQ5: 69707
B6: Patrimônio Líquido (PL) | C6: Shareholders' Equity | D6: 74503.72407 | E6: 66293.03008 | F6: 70052.45188 | G6: 86501.94625 | H6: 86501.94625 | I6: 89063.946 | J6: 79860.461 | K6: 71838.42 | L6: 80770.64003 | M6: 80770.64003 | N6: 84433.203 | O6: 77598.195 | P6: 81224.202 | Q6: 79154.143 | R6: 79154.143 | S6: 76208 | T6: 72486 | U6: 77620 | V6: 76353 | W6: 76353 | X6: 72703.722 | Y6: 75023.402 | Z6: 75437.224 | AA6: 66109.273 | AB6: 66109.273 | AC6: 64658.899 | AD6: 67463.686 | AE6: 63484.233 | AF6: 61433.25007 | AG6: 61433.25007 | AH6: 63354.9574 | AI6: 63388.14361 | AJ6: 70066.90163 | AK6: 74006.01214 | AL6: 74006.01214 | AM6: 75281.68134 | AN6: 72539.43023 | AO6: 78856.37163 | AP6: 81330.12787 | AQ6: 81330.12787 | AR6: 87644.42402 | AS6: 87333.92482 | AT6: 94897.03394 | AU6: 93046.00278 | AV6: 93046.00278 | AW6: 104892.758 | AX6: 101146.412 | AY6: 102005.177 | AZ6: 107022 | BA6: 107022 | BB6: 91145 | BC6: 92356.504 | BD6: 96085 | BE6: 103602 | BF6: 103602 | BG6: 102392.157 | BH6: 100653.047 | BI6: 103032.783 | BJ6: 103424.074 | BK6: 103424.074 | BL6: 116143 | BM6: 98886 | BN6: 104990 | BO6: 58516 | BP6: 58516 | BQ6: 58054
B7: Carteira de Participações Societárias (PS) 2/ | C7: Investiments | D7: 91331.68691 | E7: 78288.82946 | F7: 103528.373 | G7: 104913.319 | H7: 104913.319 | I7: 107262.729 | J7: 95330.632 | K7: 86761.879 | L7: 91818.521 | M7: 91818.521 | N7: 96521.01017 | O7: 85242.64562 | P7: 91173.30298 | Q7: 80642.55259 | R7: 80642.55259 | S7: 77369.081 | T7: 70734.816 | U7: 76631.133 | V7: 74569.705 | W7: 74569.705 | X7: 70129.09663 | Y7: 70817.50373 | Z7: 70650.13407 | AA7: 55967.61964 | AB7: 55967.61964 | AC7: 53096.51079 | AD7: 57286.84432 | AE7: 48268.64246 | AF7: 46294.60541 | AG7: 46294.60541 | AH7: 48769.22699 | AI7: 49430.56309 | AJ7: 57872.27638 | AK7: 63084.13948 | AL7: 63084.13948 | AM7: 63627.40309 | AN7: 58666.33894 | AO7: 66081.69961 | AP7: 66501.39585 | AQ7: 66501.39585 | AR7: 75163.42914 | AS7: 69096.5943 | AT7: 78456.88529 | AU7: 69523.55196 | AV7: 69523.55196 | AW7: 77413.59968 | AX7: 75628.46315 | AY7: 75555.245 | AZ7: 82377.461 | BA7: 82377.461 | BB7: 57019 | BC7: 71395 | BD7: 65554 | BE7: 70688 | BF7: 70688 | BG7: 55095.039 | BH7: 61270.422 | BI7: 60375.93 | BJ7: 59435.03 | BK7: 59435.03 | BL7: 71075 | BM7: 57127 | BN7: 60414 | BO7: 55115 | BP7: 55115 | BQ7: 50830
B8: Participações Societárias em Coligadas | C8: Investiment in associated companies | D8: 14081.08806 | E8: 14103.51683 | F8: 13826.874 | G8: 13641.374 | H8: 13641.374 | I8: 15270.375 | J8: 15426.854 | K8: 18763.956 | L8: 19332.192 | M8: 19332.192 | N8: 19473.3913 | O8: 19567.73889 | P8: 19686.43317 | Q8: 16667.57286 | R8: 16667.57286 | S8: 16232 | T8: 16908 | U8: 17814 | V8: 18118 | W8: 18118 | X8: 18069.14192 | Y8: 18180.3899 | Z8: 18391.592 | AA8: 18544.62815 | AB8: 18544.62815 | AC8: 18388.17185 | AD8: 18125.09488 | AE8: 18275.97823 | AF8: 16405.5477 | AG8: 16405.5477 | AH8: 16100.00254 | AI8: 14969.69155 | AJ8: 15072.04816 | AK8: 14609.24279 | AL8: 14609.24279 | AM8: 15682.53168 | AN8: 14959.60466 | AO8: 15599.91416 | AP8: 15152.49013 | AQ8: 15152.49013 | AR8: 15391.07817 | AS8: 15399.38899 | AT8: 15922.41677 | AU8: 9121.441652 | AV8: 9121.441652 | AW8: 9109.410583 | AX8: 9159.74777 | AY8: 9687.582 | AZ8: 9090 | BA8: 9090 | BB8: 8688 | BC8: 8857 | BD8: 10698 | BE8: 10974 | BF8: 10974 | BG8: 11032.93 | BH8: 11464.811 | BI8: 12467.519 | BJ8: 11886.016 | BK8: 11886.016 | BL8: 2020 | BM8: 1836 | BN8: 1907 | BO8: 1947 | BP8: 1947 | BQ8: 1896
B9: Participações Societárias Não Coligadas | C9: Investiment in non-associated companies | D9: 75388.05185 | E9: 62295.21862 | F9: 87777.787 | G9: 89249.116 | H9: 89249.116 | I9: 90032.934 | J9: 77938.625 | K9: 66174.028 | L9: 70361.989 | M9: 70361.989 | N9: 74686.81187 | O9: 63498.38473 | P9: 69087.66381 | Q9: 61547.22173 | R9: 61547.22173 | S9: 58573.245 | T9: 51317.643 | U9: 56876.137 | V9: 54430.571 | W9: 54430.571 | X9: 49967.75171 | Y9: 50521.65183 | Z9: 50269.43607 | AA9: 35481.70049 | AB9: 35481.70049 | AC9: 32838.63394 | AD9: 37271.13843 | AE9: 28140.69623 | AF9: 28086.58601 | AG9: 28086.58601 | AH9: 31057.78493 | AI9: 32966.25 | AJ9: 41337.39011 | AK9: 47028.59309 | AL9: 47028.59309 | AM9: 46373.79608 | AN9: 42106.93464 | AO9: 48873.50301 | AP9: 49697.56841 | AQ9: 49697.56841 | AR9: 58022.11132 | AS9: 51968.82326 | AT9: 60719.65362 | AU9: 58671.64797 | AV9: 58671.64797 | AW9: 66461.53048 | AX9: 64481.88838 | AY9: 63538.458 | AZ9: 70828 | BA9: 70828 | BB9: 46211 | BC9: 60379 | BD9: 52618 | BE9: 57478 | BF9: 57478 | BG9: 41538.873 | BH9: 46485.958 | BI9: 44995.019 | BJ9: 44384.93 | BK9: 44384.93 | BL9: 65928 | BM9: 51756 | BN9: 54847 | BO9: 49444 | BP9: 49444 | BQ9: 45388
B10: Ajuste a Valor de Mercado não coligadas | C10: Fair value adjustment in non-associated companies | D10: 0 | E10: 0 | F10: 43140.32539 | G10: 44567.1022 | H10: 44567.1022 | I10: 45695.21855 | J10: 33781.53618 | K10: 21978.19087 | L10: 25741.60369 | M10: 25741.60369 | N10: 30392.8236 | O10: 18710.14215 | P10: 23584.98259 | Q10: 22323.63012 | R10: 22323.63012 | S10: 19034.16513 | T10: 12676.88827 | U10: 19332.89552 | V10: 17091.14683 | W10: 17091.14683 | X10: 12758.40436 | Y10: 13599.38813 | Z10: 13684.32745 | AA10: -7.77918285 | AB10: -7.77918285 | AC10: -1036.046829 | AD10: 3864.164791 | AE10: -4730.249817 | AF10: 6577.007098 | AG10: 6577.007098 | AH10: 12465.37563 | AI10: 15064.45107 | AJ10: 23434.50929 | AK10: 28562.03259 | AL10: 28562.03259 | AM10: 28971.67241 | AN10: 24820.43922 | AO10: 31929.80377 | AP10: 33940.8056 | AQ10: 33940.8056 | AR10: 42294.70611 | AS10: 37039.09912 | AT10: 45989.37289 | AU10: 42664.3508 | AV10: 42664.3508 | AW10: 48566.1711 | AX10: 46742.60676 | AY10: 45914.1171 | AZ10: 53216.46272 | BA10: 53216.46272 | BB10: 28967.27077 | BC10: 42425.82402 | BD10: 37080.40946 | BE10: 44022.3923 | BF10: 44022.3923 | BG10: 29742.50471 | BH10: 34810.33833 | BI10: 33381.35889 | BJ10: 32879.99118 | BK10: 32879.99118 | BL10: 38377.87286 | BM10: 27750.02306 | BN10: 25473.72025 | BO10: 20282.62362 | BP10: 20282.62362 | BQ10: 16211.4322
B11: Investimento em Debêntures | C11: Investiment in Debentures | D11: 10856.92035 | E11: 10468.27531 | F11: 12955.98465 | G11: 13102.437 | H11: 13102.437 | I11: 13454.276 | J11: 16215.657 | K11: 12727.891 | L11: 13238.651 | M11: 13238.651 | N11: 14153.012 | O11: 12783.503 | P11: 12235.754 | Q11: 12027.608 | R11: 12027.608 | S11: 11897.724 | T11: 10242.78 | U11: 9979.814 | V11: 9698.435 | W11: 9698.435 | X11: 12984.005 | Y11: 15184.552 | Z11: 15165.624 | AA11: 16786.333 | AB11: 16786.333 | AC11: 16661.903 | AD11: 16956.764 | AE11: 16640.042 | AF11: 11695.56864 | AG11: 11695.56864 | AH11: 10399.84205 | AI11: 9691.334717 | AJ11: 9876.15241 | AK11: 9612.662384 | AL11: 9612.662384 | AM11: 8650.779666 | AN11: 8606.730825 | AO11: 8742.977013 | AP11: 8226.487597 | AQ11: 8226.487597 | AR11: 6675.497216 | AS11: 7481.992221 | AT11: 7704.357506 | AU11: 6523.554197 | AV11: 6523.554197 | AW11: 6731.533404 | AX11: 5393.617 | AY11: 5371.532 | AZ11: 5440 | BA11: 5440 | BB11: 4742 | BC11: 4593 | BD11: 3741 | BE11: 3960 | BF11: 3960 | BG11: 3876.87 | BH11: 3115.361 | BI11: 2259.791 | BJ11: 2142.89 | BK11: 2142.89 | BL11: 2177 | BM11: 1990 | BN11: 1178 | BO11: 1072 | BP11: 1072 | BQ11: 1090
B12: Fundos de Investimentos | C12: Investment Funds | D12: 1862.547 | E12: 1890.094 | F12: 1923.712 | G12: 2022.829 | H12: 2022.829 | I12: 1959.42 | J12: 1965.153 | K12: 1823.895 | L12: 2124.34 | M12: 2124.34 | N12: 2360.807 | O12: 2176.522 | P12: 2399.206 | Q12: 2427.758 | R12: 2427.758 | S12: 2563.836 | T12: 2509.173 | U12: 1940.996 | V12: 2021.134 | W12: 2021.134 | X12: 2092.203 | Y12: 2115.462 | Z12: 1989.106 | AA12: 1941.291 | AB12: 1941.291 | AC12: 1869.705 | AD12: 1890.611 | AE12: 1851.968 | AF12: 1802.471703 | AG12: 1802.471703 | AH12: 1611.439527 | AI12: 1494.621541 | AJ12: 1462.838106 | AK12: 1446.303593 | AL12: 1446.303593 | AM12: 1571.075332 | AN12: 1599.79964 | AO12: 1608.28244 | AP12: 1651.337315 | AQ12: 1651.337315 | AR12: 1750.239649 | AS12: 1728.382052 | AT12: 1814.814896 | AU12: 1730.462341 | AV12: 1730.462341 | AW12: 1842.65862 | AX12: 1986.827 | AY12: 2329.205 | AZ12: 2459.461 | BA12: 2459.461 | BB12: 2120 | BC12: 2159 | BD12: 2238 | BE12: 2236 | BF12: 2236 | BG12: 2523.236 | BH12: 3319.653 | BI12: 2913.392 | BJ12: 3164.084 | BK12: 3164.084 | BL12: 3127 | BM12: 3535 | BN12: 3660 | BO12: 3724 | BP12: 3724 | BQ12: 3546
B13: Resultado com Participações Societárias | C13: Result with investiments | D13: 709 | E13: 1324 | F13: 1616 | G13: 2089 | H13: 5738 | I13: 1523.311 | J13: 2595 | K13: 591.5 | L13: 1711.689 | M13: 6421.5 | N13: 650 | O13: 1104 | P13: 549 | Q13: -2165 | R13: 138 | S13: 719 | T13: 394 | U13: 54 | V13: 603 | W13: 1770 | X13: 354 | Y13: 2751 | Z13: 561 | AA13: 314 | AB13: 3980 | AC13: -1425.014378 | AD13: 466.4964646 | AE13: 247.7474583 | AF13: -11643.59619 | AG13: -12354.36664 | AH13: -2783 | AI13: -1721.966751 | AJ13: 971.7908589 | AK13: 722.9370647 | AL13: -2810.238827 | AM13: 1574 | AN13: -112 | AO13: 1599 | AP13: 2338 | AQ13: 5399 | AR13: 1498 | AS13: 2099 | AT13: 1517 | AU13: 3168 | AV13: 8282 | AW13: 10235 | AX13: 748.7375189 | AY13: 1023.407253 | AZ13: 1222.1852 | BA13: 13230.32997 | BB13: 664.472 | BC13: -803.7325913 | BD13: 6606.56696 | BE13: 6221.399411 | BF13: 12688.70578 | BG13: 7942.827401 | BH13: 1822.049109 | BI13: 4002.019232 | BJ13: 6069.458637 | BK13: 19836.35438 | BL13: 14076 | BM13: 5856 | BN13: 6938 | BO13: 3890 | BP13: 30760 | BQ13: 2167
B14: Retorno sobre o Ativo - ROA Ajustado (% a.a.) 3/ | C14: Return over Assets (% py) 2/ | D14: 0.02482863211 | E14: 0.03333498264 | F14: 0.06117916995 | G14: 0.04144230034 | H14: 0.1544766332 | I14: 0.04567099522 | J14: 0.09836820685 | K14: 0.01785374285 | L14: 0.04496390993 | M14: 0.207326101 | N14: 0.02516360543 | O14: 0.0320866301 | P14: 0.01484217247 | Q14: -0.0617715047 | R14: 0.003696459562 | S14: 0.02169580018 | T14: 0.01218032791 | U14: 0.0201668133 | V14: 0.02872853705 | W14: 0.02057089424 | X14: 0.009795988206 | Y14: 0.105625384 | Z14: 0.02476737384 | AA14: 0.01509056561 | AB14: 0.0383688288 | AC14: -0.04643635738 | AD14: -0.0277533621 | AE14: 0.07027269883 | AF14: -0.4399060381 | AG14: -0.1107909053 | AH14: -0.1254317979 | AI14: -0.0916735681 | AJ14: 0.1284155129 | AK14: 0.03183888127 | AL14: -0.01779877006 | AM14: 0.09516566828 | AN14: 0.0006907663593 | AO14: 0.1015903334 | AP14: 0.0872347138 | AQ14: 0.07060931066 | AR14: 0.04102839447 | AS14: 0.2247332857 | AT14: 0.1011245516 | AU14: 0.1141028044 | AV14: 0.1203271022 | AW14: 0.5085223886 | AX14: -0.03802293315 | AY14: 0.07604697356 | AZ14: 0.07272922934 | BA14: 0.1557452983 | BB14: 0.02200159858 | BC14: -0.05218145395 | BD14: 0.4132756785 | BE14: 0.3333911542 | BF14: 0.1672522463 | BG14: 0.4249038793 | BH14: 0.09780910282 | BI14: 0.2269599384 | BJ14: 0.2741472847 | BK14: 0.25375707 | BL14: 0.5090542044 | BM14: 0.2416078172 | BN14: 0.3609299444 | BO14: 0.191368007 | BP14: 0.4088987849 | BQ14: 0.1781209478
B15: Retorno sobre o PL - ROE Ajustado (% a.a.) 3/ | C15: Return over Equity (% py) 2/ | D15: 0.03641313716 | E15: 0.04806928995 | F15: 0.09818965857 | G15: 0.0669724101 | H15: 0.2250184125 | I15: 0.06492205172 | J15: 0.1408090956 | K15: 0.02582344266 | L15: 0.06237482268 | M15: 0.2850362417 | N15: 0.03358429976 | O15: 0.04221458692 | P15: 0.01906688168 | Q15: -0.07601554286 | R15: 0.004648923271 | S15: 0.02555725991 | T15: 0.01428006274 | U15: 0.02340774309 | V15: 0.03287758813 | W15: 0.02391726709 | X15: 0.01118717181 | Y15: 0.1208238892 | Z15: 0.02824559236 | AA15: 0.01738098726 | AB15: 0.04428550781 | AC15: -0.05428221525 | AD15: -0.03188596757 | AE15: 0.07994128974 | AF15: -0.4879396371 | AG15: -0.124028718 | AH15: -0.1314864713 | AI15: -0.09401920383 | AJ15: 0.1262541057 | AK15: 0.03005299812 | AL15: -0.01785282334 | AM15: 0.0891862698 | AN15: 0.0006410352412 | AO15: 0.09408407624 | AP15: 0.08143128695 | AQ15: 0.06623132716 | AR15: 0.03842941212 | AS15: 0.2131497173 | AT15: 0.09730667122 | AU15: 0.1116883538 | AV15: 0.1162040081 | AW15: 0.5002211954 | AX15: -0.03605408436 | AY15: 0.07033640017 | AZ15: 0.06892507173 | BA15: 0.1527751602 | BB15: 0.02137259437 | BC15: -0.04974863013 | BD15: 0.3858180011 | BE15: 0.3192149118 | BF15: 0.1628758358 | BG15: 0.4145611867 | BH15: 0.09333500778 | BI15: 0.2122253327 | BJ15: 0.2665741169 | BK15: 0.2516556555 | BL15: 0.5182891801 | BM15: 0.2453429466 | BN15: 0.3602524553 | BO15: 0.200319844 | BP15: 0.4315397243 | BQ15: 0.2025000601
B16: Dividendos Distribuídos | C16: Income Available paid to the Shareholder | D16: 0 | E16: 0 | F16: 0 | G16: 0 | H16: 3931.85 | I16: 0 | J16: 0 | K16: 0 | L16: 0 | M16: 1015.29375 | N16: 0 | O16: 0 | P16: 0 | Q16: 0 | R16: 403.1 | S16: 0 | T16: 0 | U16: 0 | V16: 0 | W16: 1418.1358 | X16: 0 | Y16: 0 | Z16: 0 | AA16: 0 | AB16: 2706.60465 | AC16: 0 | AD16: 0 | AE16: 0 | AF16: 0 | AG16: 0 | AH16: 0 | AI16: 0 | AJ16: 0 | AK16: 0 | AL16: 0 | AM16: 0 | AN16: 0 | AO16: 0 | AP16: 0 | AQ16: 0 | AR16: 0 | AS16: 0 | AT16: 0 | AU16: 0 | AV16: 5226 | AW16: 0 | AX16: 6599 | AY16: 0 | AZ16: 0 | BA16: 9080.340568 | BB16: 0 | BC16: 0 | BD16: 0 | BE16: 0 | BF16: 0 | BG16: 0 | BH16: 0 | BI16: 0 | BJ16: 0 | BK16: 0 | BL16: 0 | BM16: 0 | BN16: 0 | BO16: 0 | BP16: 0 | BQ16: 0
B17: Retorno bruto sobre PS - RPS (% a.a.) 3/ | D17: 0.03171902227 | E17: 0.06385805556 | F17: 0.09586019284 | G17: 0.1430972324 | H17: 0.07771151227 | I17: 0.1033353281 | J17: 0.1741727147 | K17: 0.03861478486 | L17: 0.107897378 | M17: 0.1050329064 | N17: 0.04071407576 | O17: 0.06893356471 | P17: 0.03390325176 | Q17: -0.1430455906 | R17: 0.002302998854 | S17: 0.05151248781 | T17: 0.02831481031 | U17: 0.003895190655 | V17: 0.04353214416 | W17: 0.03179205092 | X17: 0.02557435896 | Y17: 0.199381882 | Z17: 0.04077058802 | AA17: 0.02304358656 | AB17: 0.07269968604 | AC17: -0.1072477988 | AD17: 0.03595524401 | AE17: 0.01930267928 | AF17: -1.045886195 | AG17: -0.2687214683 | AH17: -0.3066348271 | AI17: -0.2038919236 | AJ17: 0.118067572 | AK17: 0.0875614292 | AL17: -0.07917177113 | AM17: 0.1903251619 | AN17: -0.01371482687 | AO17: 0.1974387494 | AP17: 0.2947699778 | AQ17: 0.1687581544 | AR17: 0.1932038909 | AS17: 0.2732735038 | AT17: 0.1990101618 | AU17: 0.4543447008 | AV17: 0.2955851821 | AW17: 1.57058295 | AX17: 0.1111220401 | AY17: 0.1510259031 | AZ17: 0.1810193527 | BA17: 0.5105251589 | BB17: 0.1009965057 | BC17: -0.1219118025 | BD17: 0.9963572806 | BE17: 0.9823546934 | BF17: 0.496320033 | BG17: 1.344563905 | BH17: 0.31708677 | BI17: 0.6779979337 | BJ17: 1.022824657 | BK17: 0.8296161038 | BL17: 2.126240549 | BM17: 0.8454470512 | BN17: 0.9716702949 | BO17: 0.4988086285 | BP17: 1.128821192 | BQ17: 0.2787992403
B19: 1/ Lucro líquido ajustado pelo ganho com alienações e amortização de cotas (a partir de jan/2018 - adoção CPC 48) | C19: 1/ Net income, adjusted by results on divestiments (since jan/2018 - adoption of CPC 48/IFRS 9)
B20: 2/ Inclui investimentos em Coligadas (avaliada pelo método de equivalência patrimonial), Não Coligadas (mensuradas a valor justo) e Cotas de Fundos de Investimento. | C20: 2/ It excludes the fair value adjustment in non-associated companies.
B21: 3/ Exclui ajuste a valor justo de não coligadas.

Sheet DRE
BQ2: R$ milhões
B3: Demonstração do Resultado | C3: Net Income Statement | D3: 1T/10 | E3: 2T/10 | F3: 3T/10 | G3: 4T/10 | H3: 2010 | I3: 1T/11 | J3: 2T/11 | K3: 3T/11 | L3: 4T/11 | M3: 2011 | N3: 1T/12 | O3: 2T/12 | P3: 3T/12 | Q3: 4T/12 | R3: 2012 | S3: 1T/13 | T3: 2T/13 | U3: 3T/13 | V3: 4T/13 | W3: 2013 | X3: 1T/14 | Y3: 2T/14 | Z3: 3T/14 | AA3: 4T/14 | AB3: 2014 | AC3: 1T/15 | AD3: 2T/15 | AE3: 3T/15 | AF3: 4T/15 | AG3: 2015 | AH3: 1T/16 | AI3: 2T/16 | AJ3: 3T/16 | AK3: 4T/16 | AL3: 2016 | AM3: 1T/17 | AN3: 2T/17 | AO3: 3T/17 | AP3: 4T/17 | AQ3: 2017 | AR3: 1T/18 | AS3: 2T/18 | AT3: 3T/18 | AU3: 4T/18 | AV3: 2018 | AW3: 1T/19 | AX3: 2T/19 | AY3: 3T/19 | AZ3: 4T/19 | BA3: 2019 | BB3: 1T/20 | BC3: 2T/20 | BD3: 3T/20 | BE3: 4T/20 | BF3: 2020 | BG3: 1T/21 | BH3: 2T/21 | BI3: 3T/21 | BJ3: 4T/21 | BK3: 2021 | BL3: 1T/22 | BM3: 2T/22 | BN3: 3T/22 | BO3: 4T/22 | BP3: 2022 | BQ3: 1T/23
B4: Participações Societárias | C4: Equity Investments
B5: (+) Receita de dividendos e juros sobre o capital próprio | C5: (+) Income from dividends and interests on capital | D5: 277 | E5: 876 | F5: 421 | G5: 654 | H5: 2228 | I5: 445 | J5: 1224 | K5: 809 | L5: 1133 | M5: 3611 | N5: 70 | O5: 1397 | P5: 245 | Q5: 795 | R5: 2507 | S5: 78 | T5: 1540 | U5: 199 | V5: 583 | W5: 2400 | X5: 80 | Y5: 1955 | Z5: 82 | AA5: 557 | AB5: 2674 | AC5: 31.27043839 | AD5: 304.6931357 | AE5: 31.45289855 | AF5: 242.9779138 | AG5: 610.3943864 | AH5: 9 | AI5: 247.2733169 | AJ5: 121.4831551 | AK5: 184.480144 | AL5: 562.236616 | AM5: 32 | AN5: 514 | AO5: 51 | AP5: 298 | AQ5: 895 | AR5: 215 | AS5: 220 | AT5: 697 | AU5: 1039 | AV5: 2171 | AW5: 11 | AX5: 509.0783948 | AY5: 218.6454263 | AZ5: 605.6975737 | BA5: 1344.421395 | BB5: 848 | BC5: 28.921 | BD5: 793.0474602 | BE5: 283.0332025 | BF5: 1953.001663 | BG5: 605.8937998 | BH5: 1107.488552 | BI5: 1857.330434 | BJ5: 3227.434931 | BK5: 6798.147716 | BL5: 2720 | BM5: 4242 | BN5: 6087 | BO5: 3796 | BP5: 16845 | BQ5: 2105
B6: (+/-) Resultado com equivalência patrimonial | C6: (+/-) Income from equity | D6: 31 | E6: 160 | F6: 212 | G6: 37 | H6: 440 | I6: 262 | J6: 451 | K6: 504 | L6: -4 | M6: 1213 | N6: -75 | O6: -111 | P6: 62 | Q6: -19 | R6: -143 | S6: -76 | T6: -26 | U6: -295 | V6: 346 | W6: -51 | X6: -87 | Y6: 429 | Z6: 225 | AA6: 198 | AB6: 765 | AC6: 258.9883772 | AD6: -41.31907605 | AE6: 590.7425194 | AF6: 501.9627071 | AG6: 1310.374528 | AH6: 119 | AI6: -80.8697508 | AJ6: 738.7851515 | AK6: 284.4666228 | AL6: 1061.382024 | AM6: 250 | AN6: -170 | AO6: 505 | AP6: -337 | AQ6: 248 | AR6: 105 | AS6: -216 | AT6: 223 | AU6: 293 | AV6: 405 | AW6: 1040 | AX6: -72.93652791 | AY6: 616.9152807 | AZ6: 165.7787193 | BA6: 1749.757472 | BB6: -77 | BC6: -1224.64 | BD6: 1271.857613 | BE6: 46.51927238 | BF6: 16.73688531 | BG6: 811.5372719 | BH6: 243.6284388 | BI6: 1878.280529 | BJ6: 1370.615307 | BK6: 4304.061547 | BL6: 673 | BM6: 2 | BN6: 57 | BO6: 43 | BP6: 774 | BQ6: -12
B7: (+/-) Reversão (constituição) de provisão para perdas em investimentos | C7: (+/-) Reversal (recognition) of impairment | D7: 0 | E7: -104 | F7: 0 | G7: -70 | H7: -174 | I7: -1 | J7: -54 | K7: 6 | L7: -1 | M7: -50 | N7: -179 | O7: 4 | P7: -42 | Q7: -3109 | R7: -3326 | S7: 9 | T7: -1088 | U7: -380 | V7: -877 | W7: -2336 | X7: -123 | Y7: -213 | Z7: -179 | AA7: -586 | AB7: -1101 | AC7: -1651.037374 | AD7: -556.2973229 | AE7: -550.285171 | AF7: -13644.34807 | AG7: -16401.96794 | AH7: -3122 | AI7: -1652.741783 | AJ7: -110.9053823 | AK7: -46.25542332 | AL7: -4931.902588 | AM7: -246 | AN7: -474 | AO7: -257 | AP7: 2 | AQ7: -975 | AR7: 55 | AS7: 413 | AT7: 0 | AU7: -7 | AV7: 461 | AW7: 0 | AX7: 0 | AY7: 3.87176989 | AZ7: -334.8647699 | BA7: -330.993 | BB7: 1.684 | BC7: -53.93 | BD7: 10.75969168 | BE7: 60.20620359 | BF7: 18.71989527 | BG7: 0 | BH7: 0 | BI7: 0 | BJ7: -214.2950476 | BK7: -214.2950476 | BL7: 9 | BM7: 0 | BN7: 0 | BO7: 0 | BP7: 9 | BQ7: 0
B8: (+/-) Resultado com alienações de títulos de renda variável | C8: (+/-) Result from sale of variable income securities | D8: 386 | E8: 111 | F8: 1329 | G8: 1189 | H8: 3015 | I8: 719 | J8: 814 | K8: 11 | L8: 161 | M8: 1705 | N8: 321 | O8: 438 | P8: 354 | Q8: 590 | R8: 1703 | S8: 159 | T8: 132 | U8: 616 | V8: 318 | W8: 1225 | X8: -23 | Y8: 312 | Z8: 158 | AA8: 1274 | AB8: 1721 | AC8: 316.4073318 | AD8: 647.4242707 | AE8: 379.2920785 | AF8: 315.2797686 | AG8: 1658.40345 | AH8: 446 | AI8: 170.9246922 | AJ8: 4.04848519 | AK8: 246.8458489 | AL8: 867.8190263 | AM8: 1129 | AN8: 104 | AO8: 975 | AP8: 2092 | AQ8: 4300 | AR8: 1 | AS8: 0 | AT8: 0 | AU8: 7 | AV8: 8 | AW8: 5995 | AX8: -0.0004805699997 | AY8: 0.4805699997 | AZ8: 559.6455194 | BA8: 6555.125609 | BB8: 0 | BC8: 0 | BD8: 3.23920724 | BE8: 0 | BF8: 3.23920724 | BG8: 0.15118552 | BH8: 1.15943866 | BI8: 0.07879328 | BJ8: 1569.741914 | BK8: 1571.131331 | BL8: 1129 | BM8: 173 | BN8: 1 | BO8: 0 | BP8: 1303 | BQ8: 0
B9: (+/-) Resultado com instrumentos financeiros derivativos | C9: (+/-) Result from derivative financial instruments | D9: 15 | E9: 281 | F9: -332 | G9: 387 | H9: 351 | I9: 170 | J9: 160 | K9: -578 | L9: 224 | M9: -24 | N9: 479 | O9: -647 | P9: -80 | Q9: -301 | R9: -549 | S9: 337 | T9: -150 | U9: -249 | V9: 135 | W9: 73 | X9: 425 | Y9: 232 | Z9: 240 | AA9: -1078 | AB9: -181 | AC9: -317.1669593 | AD9: 57.97304052 | AE9: -170.6477856 | AF9: -36.48643597 | AG9: -466.3281403 | AH9: -171 | AI9: -429.5071066 | AJ9: 195.4734288 | AK9: 141.9341294 | AL9: -263.0995484 | AM9: 12 | AN9: -123 | AO9: 136 | AP9: 216 | AQ9: 241 | AR9: 341 | AS9: -160 | AT9: 81 | AU9: 31 | AV9: 293 | AW9: -203 | AX9: 150.7658493 | AY9: -34.3812291 | AZ9: 189.5512291 | BA9: 102.9358493 | BB9: -579.276 | BC9: 428.313 | BD9: -258.8444351 | BE9: 773.6287791 | BF9: 363.821344 | BG9: -249.8202903 | BH9: 47.70849956 | BI9: -77.3412342 | BJ9: -18.61294312 | BK9: -298.065968 | BL9: 139 | BM9: -327 | BN9: 749 | BO9: 0 | BP9: 561 | BQ9: 0
B10: (+/-) Resultado com fundos de investimento em participações societárias | C10: (+/-) Result from mutual investment and equity funds | D10: 0 | E10: 0 | F10: -14 | G10: -108 | H10: -122 | I10: -71.689 | J10: 0 | K10: -159 | L10: 198.689 | M10: -32 | N10: 0 | O10: 0 | P10: 0 | Q10: 0 | R10: 0 | S10: 104 | T10: -28 | U10: 163 | V10: 86 | W10: 325 | X10: 82 | Y10: 36 | Z10: 35 | AA10: -51 | AB10: 102 | AC10: -63.47619245 | AD10: 16.63136693 | AE10: -32.8071036 | AF10: -42.86521702 | AG10: -122.5171461 | AH10: -69 | AI10: -6.87332649 | AJ10: -50.76271329 | AK10: -20.4215284 | AL10: -147.0575682 | AM10: 114 | AN10: 36 | AO10: 67 | AP10: 67 | AQ10: 284 | AR10: -50 | AS10: 69 | AT10: 6 | AU10: 11 | AV10: 36 | AW10: 5 | AX10: -25.51443387 | AY10: 45.12841046 | AZ10: 19.74158954 | BA10: 45.35556613 | BB10: -4.936 | BC10: 14.587 | BD10: 33.60432735 | BE10: 44.57317143 | BF10: 87.82849878 | BG10: -7.45510323 | BH10: 39.02836424 | BI10: 44.40651176 | BJ10: 76.94498987 | BK10: 152.9247626 | BL10: 48 | BM10: 44 | BN10: 41 | BO10: 29 | BP10: 161 | BQ10: 57
B11: (+/-) Outras rendas (despesas) sobre participações societárias | C11: (+/-) Other equity income | D11: 0 | E11: 0 | F11: 0 | G11: 0 | H11: 0 | I11: 0 | J11: 0 | K11: -1.5 | L11: 0 | M11: -1.5 | N11: 34 | O11: 23 | P11: 10 | Q11: -121 | R11: -54 | S11: 108 | T11: 14 | U11: 0 | V11: 12 | W11: 134 | X11: 0 | Y11: 0 | Z11: 0 | AA11: 0 | AB11: 0 | AC11: 0 | AD11: 37.3910498 | AE11: 2.202e-05 | AF11: 1019.883146 | AG11: 1057.274218 | AH11: 5 | AI11: 29.82720635 | AJ11: 73.66873388 | AK11: -68.11272872 | AL11: 40.38321151 | AM11: 283 | AN11: 1 | AO11: 122 | AP11: 0 | AQ11: 406 | AR11: 0 | AS11: 0 | AT11: 0 | AU11: -170 | AV11: -170 | AW11: 622 | AX11: 29.66318836 | AY11: 0.0001322699999 | AZ11: -1.31513227 | BA11: 650.3481884 | BB11: 0 | BC11: -3.474 | BD11: 16.56811607 | BE11: 8.3e-06 | BF11: 13.09412437 | BG11: 0 | BH11: 48.21662 | BI11: 3.268e-05 | BJ11: 8.289999998e-06 | BK11: 48.21666097 | BL11: 8824 | BM11: 94 | BN11: 0 | BO11: 0 | BP11: 8918 | BQ11: 0
B12: Resultado com Participações Societárias | C12: Result from Equity Investments | D12: 709 | E12: 1324 | F12: 1616 | G12: 2089 | H12: 5738 | I12: 1523.311 | J12: 2595 | K12: 591.5 | L12: 1711.689 | M12: 6421.5 | N12: 650 | O12: 1104 | P12: 549 | Q12: -2165 | R12: 138 | S12: 719 | T12: 394 | U12: 54 | V12: 603 | W12: 1770 | X12: 354 | Y12: 2751 | Z12: 561 | AA12: 314 | AB12: 3980 | AC12: -1425.014378 | AD12: 466.4964646 | AE12: 247.7474583 | AF12: -11643.59619 | AG12: -12354.36664 | AH12: -2783 | AI12: -1721.966751 | AJ12: 971.7908589 | AK12: 722.9370647 | AL12: -2810.238827 | AM12: 1574 | AN12: -112 | AO12: 1599 | AP12: 2338 | AQ12: 5399 | AR12: 667 | AS12: 326 | AT12: 1007 | AU12: 1204 | AV12: 3204 | AW12: 7470 | AX12: 591.0559901 | AY12: 850.6603605 | AZ12: 1205.234729 | BA12: 10116.95108 | BB12: 189.472 | BC12: -810.223 | BD12: 1870.23198 | BE12: 1207.960637 | BF12: 2456.441618 | BG12: 1160.306864 | BH12: 1487.229913 | BI12: 3702.755067 | BJ12: 6011.829159 | BK12: 12362.121 | BL12: 13542 | BM12: 4228 | BN12: 6935 | BO12: 3868 | BP12: 28571 | BQ12: 2150
B13: Operações Financeiras | C13: Financial Operation
B14: (+) Receita com Operações de Crédito | C14: (+) Income from Loans | D14: 59 | E14: 30 | F14: 52 | G14: 560 | H14: 701 | I14: 108 | J14: 30 | K14: 37 | L14: 39 | M14: 214 | N14: 102 | O14: 67 | P14: 32 | Q14: 64 | R14: 265 | S14: 114 | T14: 20 | U14: 65 | V14: 60 | W14: 259 | X14: 16 | Y14: 23 | Z14: 22 | AA14: 13 | AB14: 74 | AC14: 52.88868836 | AD14: 15.07481415 | AE14: 55.26914886 | AF14: 14.43024408 | AG14: 137.6628955 | AH14: 10.42994409 | AI14: 28.23950662 | AJ14: 46.43898858 | AK14: 45.26581816 | AL14: 130.3742575 | AM14: 37 | AN14: 32 | AO14: 28 | AP14: 29 | AQ14: 126 | AR14: 20 | AS14: 40 | AT14: 40 | AU14: 46 | AV14: 146 | AW14: 34 | AX14: 32.39159538 | AY14: 20.46484643 | AZ14: -0.52584643 | BA14: 86.85644181 | BB14: 38.834 | BC14: 8.998 | BD14: 12.78260794 | BE14: 124.4003513 | BF14: 185.0149593 | BG14: 29.74582948 | BH14: 2.24431484 | BI14: 39.47975637 | BJ14: 42.71329993 | BK14: 114.1832006 | BL14: 22 | BM14: 721 | BN14: 68 | BO14: 23 | BP14: 834 | BQ14: 58
B15: (+) Receita com Títulos e Valores Mobiliários | C15: (+) Income from Securities | D15: 764 | E15: -93 | F15: 614 | G15: -462 | H15: 823 | I15: 248 | J15: 298 | K15: 335 | L15: 344 | M15: 1225 | N15: 573 | O15: 187 | P15: 342 | Q15: 232 | R15: 1334 | S15: 286 | T15: 282 | U15: 274 | V15: 365 | W15: 1207 | X15: 332 | Y15: 393 | Z15: 407 | AA15: 499 | AB15: 1631 | AC15: 568.6323154 | AD15: 582.1061286 | AE15: 559.5179309 | AF15: 659.8293625 | AG15: 2370.085738 | AH15: 528.2038476 | AI15: 520.5990454 | AJ15: 457.1019988 | AK15: 393.0586028 | AL15: 1898.963495 | AM15: 438 | AN15: 348 | AO15: 331 | AP15: 393 | AQ15: 1510 | AR15: -672 | AS15: 1241 | AT15: 603 | AU15: -706 | AV15: 466 | AW15: 666 | AX15: -787.6844881 | AY15: 644.1970528 | AZ15: 497.9029472 | BA15: 1020.415512 | BB15: 324.113 | BC15: 410.687 | BD15: 331.6691845 | BE15: 357.275144 | BF15: 1423.744329 | BG15: 413.5960997 | BH15: 378.4950425 | BI15: 571.0379077 | BJ15: 890.0931068 | BK15: 2253.222157 | BL15: 1304 | BM15: 4524 | BN15: 1454 | BO15: 876 | BP15: 8158 | BQ15: 424
B16: ( - ) Despesas de Captação | C16: ( - ) Interest Expenses | D16: -316 | E16: -316 | F16: -277 | G16: -804 | H16: -1713 | I16: -509 | J16: -518 | K16: -542 | L16: -526 | M16: -2095 | N16: -405 | O16: -413 | P16: -352 | Q16: -364 | R16: -1534 | S16: -261 | T16: -221 | U16: -204 | V16: -234 | W16: -920 | X16: -211 | Y16: -214 | Z16: -190 | AA16: -223 | AB16: -838 | AC16: -250.8947618 | AD16: -217.9378465 | AE16: -184.5687637 | AF16: -191.7295329 | AG16: -845.1309049 | AH16: -153.30922 | AI16: -124.7623167 | AJ16: -79.79959591 | AK16: -59.53422991 | AL16: -417.4053625 | AM16: -61 | AN16: -41 | AO16: -28 | AP16: -41 | AQ16: -171 | AR16: -45 | AS16: -39 | AT16: -49 | AU16: -38 | AV16: -171 | AW16: -50 | AX16: -35.22027385 | AY16: -0.00032489 | AZ16: 0.00032489 | BA16: -85.22059874 | BB16: 0 | BC16: 0 | BD16: 0 | BE16: 0 | BF16: 0 | BG16: 0 | BH16: 0 | BI16: 0 | BJ16: 0 | BK16: 0 | BL16: 0 | BM16: 0 | BN16: 0 | BO16: 0 | BP16: 0 | BQ16: 0
B17: (+/-) Reversão (constituição) de provisão para redução ao valor recuperável | C17: (+/-) Reversal (recognition) of impairment | D17: 16 | E17: -2 | F17: 21 | G17: 0 | H17: 35 | I17: 17 | J17: 266 | K17: 130 | L17: -10 | M17: 403 | N17: 9 | O17: -11 | P17: 4 | Q17: -19 | R17: -17 | S17: 2 | T17: -5 | U17: 19 | V17: 1 | W17: 17 | X17: 1.3 | Y17: -53 | Z17: -9 | AA17: -32.3 | AB17: -93 | AC17: -97.29609351 | AD17: -13.35306289 | AE17: -0.38348969 | AF17: 3.71608114 | AG17: -107.316565 | AH17: 34.24509152 | AI17: 28.88538062 | AJ17: -10.3971191 | AK17: -335.7662496 | AL17: -283.0328965 | AM17: -77 | AN17: -49 | AO17: 13 | AP17: -452 | AQ17: -565 | AR17: -270 | AS17: 859 | AT17: 49 | AU17: -74 | AV17: 564 | AW17: -15 | AX17: -556.5312931 | AY17: 8.55840689 | AZ17: 203.8855931 | BA17: -358.0872931 | BB17: -85.573 | BC17: 4.374 | BD17: -171.7749467 | BE17: -70.39830346 | BF17: -323.3722502 | BG17: -2.32026286 | BH17: 26.18772682 | BI17: 8.9885393 | BJ17: 83.21701952 | BK17: 116.0730228 | BL17: -35 | BM17: -3104 | BN17: 365 | BO17: -4 | BP17: -2777 | BQ17: -294
B18: Resultado com Operações Financeiras | C18: Result from Financial Operation | D18: 523 | E18: -381 | F18: 410 | G18: -706 | H18: -154 | I18: -136 | J18: 76 | K18: -40 | L18: -153 | M18: -253 | N18: 279 | O18: -170 | P18: 26 | Q18: -87 | R18: 48 | S18: 141 | T18: 76 | U18: 154 | V18: 192 | W18: 563 | X18: 138.3 | Y18: 149 | Z18: 230 | AA18: 256.7 | AB18: 774 | AC18: 273.3301485 | AD18: 365.8900334 | AE18: 429.8348264 | AF18: 486.2461549 | AG18: 1555.301163 | AH18: 419.5696632 | AI18: 452.961616 | AJ18: 413.3442724 | AK18: 43.02394151 | AL18: 1328.899493 | AM18: 336 | AN18: 290 | AO18: 344 | AP18: -71 | AQ18: 900 | AR18: -967 | AS18: 2101 | AT18: 643 | AU18: -772 | AV18: 1005 | AW18: 635 | AX18: -1347.04446 | AY18: 673.2199812 | AZ18: 701.2630188 | BA18: 663.9640619 | BB18: 277.374 | BC18: 424.059 | BD18: 172.6768457 | BE18: 412.2771919 | BF18: 1285.387038 | BG18: 441.0216664 | BH18: 406.9270842 | BI18: 619.5062034 | BJ18: 1016.023426 | BK18: 2483.47838 | BL18: 1291 | BM18: 2141 | BN18: 1887 | BO18: 894 | BP18: 6215 | BQ18: 188
B19: ( - ) Despesas de Pessoal | C19: ( - ) Personnel Expenses | D19: -59 | E19: -70 | F19: -57 | G19: -95 | H19: -281 | I19: -49 | J19: -66 | K19: -68 | L19: -95 | M19: -278 | N19: -101 | O19: -96 | P19: -101 | Q19: -128 | R19: -426 | S19: -46 | T19: -44 | U19: -45 | V19: -22 | W19: -157 | X19: -83 | Y19: -81 | Z19: -81 | AA19: -84 | AB19: -329 | AC19: -77 | AD19: -110.3495901 | AE19: -93.08410296 | AF19: -120.7482923 | AG19: -401.1819854 | AH19: -72 | AI19: -60.67922704 | AJ19: -77.46860829 | AK19: -94.09876713 | AL19: -304.2466025 | AM19: -44.43737451 | AN19: -34 | AO19: -51 | AP19: -49 | AQ19: -178.4373745 | AR19: -97 | AS19: -90 | AT19: -97 | AU19: -103 | AV19: -387 | AW19: -109 | AX19: -124.4434768 | AY19: -110.4030148 | AZ19: -109.8219852 | BA19: -453.6684768 | BB19: -152.443 | BC19: -148.749 | BD19: -165.9127976 | BE19: -150.2714145 | BF19: -617.3762121 | BG19: -126.9865436 | BH19: -121.7977582 | BI19: -141.757341 | BJ19: -144.0118278 | BK19: -534.5534706 | BL19: -247 | BM19: -248 | BN19: -242 | BO19: -288 | BP19: -1025 | BQ19: -225
B20: ( - ) Despesas Administrativas | C20: ( - ) Administrative Expenses | D20: -11 | E20: -16 | F20: -22 | G20: -29 | H20: -78 | I20: -25 | J20: -22 | K20: -30.619 | L20: -33.381 | M20: -111 | N20: -28 | O20: -37 | P20: -37 | Q20: -40 | R20: -142 | S20: -9 | T20: -11 | U20: -15 | V20: -15 | W20: -50 | X20: -24 | Y20: -20 | Z20: -28 | AA20: -24 | AB20: -96 | AC20: -25.35816011 | AD20: -22.61730333 | AE20: -26.59121363 | AF20: -24.21461597 | AG20: -98.78129304 | AH20: -23 | AI20: -18.73764057 | AJ20: -16.7597096 | AK20: -18.45477707 | AL20: -76.95212724 | AM20: -10 | AN20: -10 | AO20: -8 | AP20: -12 | AQ20: -40 | AR20: -19 | AS20: -19 | AT20: -16 | AU20: -26 | AV20: -80 | AW20: -19 | AX20: -15.97955057 | AY20: -16.63481449 | AZ20: -18.32118551 | BA20: -69.93555057 | BB20: -18.489 | BC20: -14.752 | BD20: -17.47589786 | BE20: -16.22002132 | BF20: -66.93691918 | BG20: -13.26515791 | BH20: -14.41484209 | BI20: -15.86604088 | BJ20: -27.60533006 | BK20: -71.15137094 | BL20: -25 | BM20: -35 | BN20: -27 | BO20: -33 | BP20: -120 | BQ20: -34
B21: ( - ) Despesas Tributárias | C21: ( - ) Tax Expenses | D21: -4 | E21: -58 | F21: -14 | G21: -91 | H21: -167 | I21: -53 | J21: -77 | K21: -40 | L21: -88 | M21: -258 | N21: -9 | O21: -100 | P21: -7 | Q21: -47 | R21: -163 | S21: -28 | T21: -123 | U21: -18 | V21: -82 | W21: -251 | X21: -15 | Y21: -153 | Z21: -13 | AA21: -48 | AB21: -229 | AC21: -9.1967171 | AD21: -34.48929004 | AE21: -34.62802156 | AF21: -64.66500195 | AG21: -142.9790306 | AH21: -55 | AI21: -36.49546006 | AJ21: -33.88388038 | AK21: -43.67542591 | AL21: -169.0547663 | AM21: -31.58624503 | AN21: -62 | AO21: -55 | AP21: -147 | AQ21: -295.586245 | AR21: 2 | AS21: 34 | AT21: -197 | AU21: -121 | AV21: -282 | AW21: -46 | AX21: -48.66487163 | AY21: -55.00313571 | AZ21: -63.01786429 | BA21: -212.6858716 | BB21: -109.662 | BC21: -24.578 | BD21: -32.57629352 | BE21: -69.30969272 | BF21: -236.1259862 | BG21: -23.09292086 | BH21: -71.52607914 | BI21: -58.80637348 | BJ21: -151.410554 | BK21: -304.8359274 | BL21: -75 | BM21: -153 | BN21: -177 | BO21: -127 | BP21: -532 | BQ21: -32
B22: (-) ProvisõesTrabalhistas e cíveis | C22: (-) Labor and civil provisions | D22: -7 | E22: 20 | F22: -7 | G22: -5 | H22: 1 | I22: -7 | J22: -7 | K22: -1 | L22: -7 | M22: -22 | N22: -6 | O22: -6 | P22: -5 | Q22: -6 | R22: -23 | S22: -7 | T22: 0 | U22: 5 | V22: -28 | W22: -30 | X22: -26 | Y22: 17 | Z22: -233 | AA22: -78 | AB22: -320 | AC22: -11.04913255 | AD22: -9.53070688 | AE22: -103.2121179 | AF22: -37.52622148 | AG22: -161.3181788 | AH22: -23 | AI22: -29.72698791 | AJ22: -33.10883696 | AK22: -29.68607282 | AL22: -115.5218977 | AM22: -22.00018122 | AN22: -32 | AO22: 38 | AP22: -78 | AQ22: -94.00018122 | AR22: -80 | AS22: -21 | AT22: -3 | AU22: -20 | AV22: -124 | AW22: -21 | AX22: -21.22215823 | AY22: -21.56867299 | AZ22: -19.83932701 | BA22: -82.63015823 | BB22: -66.557 | BC22: -23.088 | BD22: -17.34872948 | BE22: -16.77928906 | BF22: -123.7730185 | BG22: -16.54065806 | BH22: -49.19534194 | BI22: -33.36367695 | BJ22: -43.78962589 | BK22: -142.8893028 | BL22: -157 | BM22: -57 | BN22: -35 | BO22: -42 | BP22: -291 | BQ22: -54
B23: (+/-) Outras Despesas, líquidas | C23: (+/-) Other Expenses, net | D23: 4 | E23: 71 | F23: 38 | G23: 32 | H23: 145 | I23: 22 | J23: -14 | K23: 35 | L23: 16 | M23: 59 | N23: 15 | O23: 39 | P23: 6 | Q23: -3 | R23: 57 | S23: 1 | T23: 15 | U23: 43 | V23: -16 | W23: 43 | X23: -51.409 | Y23: 30.387 | Z23: 117.653 | AA23: -12.784 | AB23: 83.847 | AC23: -31.0142518 | AD23: -40.81162801 | AE23: 28.58541659 | AF23: -293.0710971 | AG23: -336.3115603 | AH23: 18 | AI23: 27.49844486 | AJ23: 5.93400546 | AK23: 7.66096276 | AL23: 59.09341308 | AM23: 12 | AN23: 15 | AO23: 11 | AP23: 6 | AQ23: 44 | AR23: 97 | AS23: -36 | AT23: -26 | AU23: -132 | AV23: -97 | AW23: -16 | AX23: -16.12768132 | AY23: -48.58943321 | AZ23: -28.65156679 | BA23: -109.3686813 | BB23: -21.662 | BC23: -140.954 | BD23: 2.65353396 | BE23: -202.8762924 | BF23: -362.8387585 | BG23: -24.35474765 | BH23: -79.78025235 | BI23: 9.50955645 | BJ23: -24.64484911 | BK23: -119.2702927 | BL23: -47 | BM23: -930 | BN23: 22 | BO23: -32 | BP23: -987 | BQ23: -182
B24: Resultado antes da Tributação | C24: Income before Taxes | D24: 1155 | E24: 890 | F24: 1964 | G24: 1195 | H24: 5204 | I24: 1275.311 | J24: 2485 | K24: 446.881 | L24: 1352.308 | M24: 5558.5 | N24: 800 | O24: 734 | P24: 431 | Q24: -2475 | R24: -511 | S24: 771 | T24: 307 | U24: 178 | V24: 633 | W24: 1888 | X24: 292.891 | Y24: 2693.387 | Z24: 553.653 | AA24: 324.916 | AB24: 3863.847 | AC24: -1305.302492 | AD24: 614.5879796 | AE24: 448.6522453 | AF24: -11697.57526 | AG24: -11939.63753 | AH24: -2518.430337 | AI24: -1387.146006 | AJ24: 1229.848101 | AK24: 587.7069261 | AL24: -2088.021315 | AM24: 1813.976199 | AN24: 55 | AO24: 1878 | AP24: 1987 | AQ24: 5734.976199 | AR24: -397 | AS24: 2295 | AT24: 1311 | AU24: 30 | AV24: 3239 | AW24: 7894 | AX24: -982.4262081 | AY24: 1271.681271 | AZ24: 1666.845819 | BA24: 9852.626403 | BB24: 98.033 | BC24: -738.285 | BD24: 1812.248642 | BE24: 1164.781119 | BF24: 2334.777761 | BG24: 1397.088502 | BH24: 1557.442723 | BI24: 4081.977395 | BJ24: 6636.390398 | BK24: 13672.89902 | BL24: 14282 | BM24: 4946 | BN24: 8363 | BO24: 4241 | BP24: 31831 | BQ24: 1811
B25: ( - ) Tributos sobre o lucro | C25: ( - ) Income Taxes | D25: -482 | E25: -44 | F25: -640 | G25: -323 | H25: -1489 | I25: -334 | J25: -435 | K25: -76 | L25: -375 | M25: -1220 | N25: -262 | O25: -50 | P25: -119 | Q25: 1292 | R25: 861 | S25: -360.873 | T25: -78.939 | U25: 199.39 | V25: -76.43 | W25: -316.852 | X25: -111 | Y25: -725 | Z25: -86 | AA25: 21 | AB25: -901 | AC25: 414.329686 | AD25: -1133.755412 | AE25: 865.5779127 | AF25: 4226.68634 | AG25: 4372.838527 | AH25: 675 | AI25: 111.1477469 | AJ25: 475.3040479 | AK25: -130.7998382 | AL25: 1130.651956 | AM25: -573 | AN25: -46 | AO25: -536 | AP25: -763 | AQ25: -1918 | AR25: 137 | AS25: -802 | AT25: -270 | AU25: -173 | AV25: -1108 | AW25: -2050 | AX25: 177.8786193 | AY25: -196.9733146 | AZ25: -405.8376854 | BA25: -2474.932381 | BB25: -188 | BC25: -116.308 | BD25: 9.74970209 | BE25: -268.9103377 | BF25: -563.4686356 | BG25: -27.81648336 | BH25: -20.42451664 | BI25: -171.7703946 | BJ25: -1205.82863 | BK25: -1425.840024 | BL25: -3638 | BM25: -1318 | BN25: -767 | BO25: -803 | BP25: -6525 | BQ25: 513
B26: ( - ) Participação nos lucros | C26: ( - ) Profit Sharing | D26: 0 | E26: 0 | F26: 0 | G26: -46 | H26: -46 | I26: 0 | J26: 0 | K26: 0 | L26: -32 | M26: -32 | N26: 0 | O26: 0 | P26: 0 | Q26: -52 | R26: -52 | S26: 0 | T26: 0 | U26: 0 | V26: -22.584 | W26: -22.584 | X26: 0 | Y26: 0 | Z26: 0 | AA26: -58 | AB26: -58 | AC26: 0 | AD26: 0 | AE26: 0 | AF26: -73.79374566 | AG26: -73.79374566 | AH26: 0 | AI26: 0 | AJ26: 0 | AK26: -44.598 | AL26: -44.598 | AM26: 0 | AN26: 0 | AP26: -37 | AQ26: -37 | AR26: 0 | AS26: 0 | AT26: 0 | AU26: -14 | AV26: -14 | AW26: 0 | AX26: 0 | AZ26: -41.745 | BA26: -41.745 | BB26: 0 | BC26: 0 | BD26: 0 | BE26: -77.287 | BF26: -77.287 | BG26: 0 | BH26: 0 | BI26: 0 | BJ26: -65.92822815 | BK26: -65.92822815 | BL26: 0 | BM26: 0 | BN26: 0 | BO26: -122 | BP26: -122 | BQ26: 0
B27: Lucro Líquido (A) | C27: Net Income | D27: 673 | E27: 846 | F27: 1324 | G27: 826 | H27: 3669 | I27: 941.311 | J27: 2050 | K27: 370.881 | L27: 944.308 | M27: 4306.5 | N27: 538 | O27: 684 | P27: 312 | Q27: -1236 | R27: 298 | S27: 409.127 | T27: 228.061 | U27: 377.39 | V27: 533.986 | W27: 1548.564 | X27: 180.891 | Y27: 1968.387 | Z27: 467.653 | AA27: 287.916 | AB27: 2904.847 | AC27: -891.9728055 | AD27: -519.1674321 | AE27: 1314.230158 | AF27: -7544.682669 | AG27: -7640.592748 | AH27: -1844.430337 | AI27: -1275.998259 | AJ27: 1705.152149 | AK27: 412.3090878 | AL27: -1001.967359 | AM27: 1240.976199 | AN27: 9 | AO27: 1340 | AP27: 1188 | AQ27: 3777.976199 | AR27: -260 | AS27: 1493 | AT27: 1041 | AU27: -157 | AV27: 2117 | AW27: 5844 | AX27: -804.5475888 | AY27: 1074.707956 | AZ27: 1220.263133 | BA27: 7335.949022 | BB27: -89.967 | BC27: -854.593 | BD27: 1821.998344 | BE27: 818.5837815 | BF27: 1694.022125 | BG27: 1369.272019 | BH27: 1537.018207 | BI27: 3910.207 | BJ27: 5364.63354 | BK27: 12181.13077 | BL27: 10644 | BM27: 3628 | BN27: 7596 | BO27: 3316 | BP27: 25184 | BQ27: 2324
B28: (+/-) Resultado Líquido de Alienações e Amortização de Cotas1/ (B) | C28: (+/-) Result from sale of variable income securities and amortization of mutual investiments and equity funds* | D28: 0 | E28: 0 | F28: 0 | G28: 0 | H28: 0 | I28: 0 | J28: 0 | K28: 0 | L28: 0 | M28: 0 | N28: 0 | O28: 0 | P28: 0 | Q28: 0 | R28: 0 | S28: 0 | T28: 0 | U28: 0 | V28: 0 | W28: 0 | X28: 0 | Y28: 0 | Z28: 0 | AA28: 0 | AB28: 0 | AC28: 0 | AD28: 0 | AE28: 0 | AF28: 0 | AG28: 0 | AH28: 0 | AI28: 0 | AJ28: 0 | AK28: 0 | AL28: 0 | AM28: 0 | AN28: 0 | AO28: 0 | AP28: 0 | AQ28: 0 | AR28: 831 | AS28: 1773 | AT28: 510 | AU28: 1964 | AV28: 5078 | AW28: 2765 | AX28: 157.6815288 | AY28: 172.7468927 | AZ28: 16.95047078 | BA28: 3113.378892 | BB28: 475 | BC28: 6.49040871 | BD28: 4736.33498 | BE28: 5013.438774 | BF28: 10232.26416 | BG28: 6782.520537 | BH28: 334.8191965 | BI28: 299.2641649 | BJ28: 57.62947768 | BK28: 7474.233376 | BL28: 534 | BM28: 1628 | BN28: 3 | BO28: 22 | BP28: 2187 | BQ28: 17
B29: Lucro (Prejuízo) Líquido Ajustado (A)+(B)2/ | D29: 673 | E29: 846 | F29: 1324 | G29: 826 | H29: 3669 | I29: 941.311 | J29: 2050 | K29: 370.881 | L29: 944.308 | M29: 4306.5 | N29: 538 | O29: 684 | P29: 312 | Q29: -1236 | R29: 298 | S29: 409.127 | T29: 228.061 | U29: 377.39 | V29: 533.986 | W29: 1548.564 | X29: 180.891 | Y29: 1968.387 | Z29: 467.653 | AA29: 287.916 | AB29: 2904.847 | AC29: -891.9728055 | AD29: -519.1674321 | AE29: 1314.230158 | AF29: -7544.682669 | AG29: -7640.592748 | AH29: -1844.430337 | AI29: -1275.998259 | AJ29: 1705.152149 | AK29: 412.3090878 | AL29: -1001.967359 | AM29: 1240.976199 | AN29: 9 | AO29: 1340 | AP29: 1188 | AQ29: 3777.976199 | AR29: 570 | AS29: 3267 | AT29: 1550 | AU29: 1807 | AV29: 7194 | AW29: 8610 | AX29: -646.86606 | AY29: 1248.454849 | AZ29: 1237.213604 | BA29: 10449.32791 | BB29: 384.033 | BC29: -848.1025913 | BD29: 6557.333324 | BE29: 5832.022555 | BF29: 11926.28629 | BG29: 8151.792556 | BH29: 1871.837403 | BI29: 4209.471165 | BJ29: 5422.263018 | BK29: 19655.36414 | BL29: 11178 | BM29: 5256 | BN29: 7599 | BO29: 3338 | BP29: 27371 | BQ29: 2341
B30: 1/ Reconhecido diretamente na rubrica de Lucros Acumulados no Patrimônio Líquido (Adoção do CPC 48 - Instrumentos Financeiros - em jan/2018). | C30: 1/ Recorded directly as Shareholders' Equity (Adoption of Technical Pronouncement 48 / IFRS 9 - Financial Instrumens since jan/2018).
B31: 2/ Lucro líquido ajustado pelo ganho com alienações e amortização de cotas (a partir de jan/2018 - Adoção CPC 48). | C31: 2/ Net income, adjusted by results on divestiments (since jan/2018 - adoption of CPC 48/IFRS 9)

Sheet BP
G1: 2010 | K1: 2011 | O1: 2012 | S1: 2013 | U1: 611 | W1: 2014 | AA1: 2015 | AE1: 2016 | AI1: 2017 | AM1: 2018 | AN1: 2019 | AO1: 1S19 | BD1: R$ milhões
D2: 2010 | E2: 2014 | H2: 2011 | I2: 2014 | L2: 2012 | M2: 2014 | P2: 2013 | Q2: 2014 | T2: 2014 | U2: 2014 | X2: 2015 | Y2: 2015 | AB2: 2016 | AF2: 2017 | AJ2: 2018 | AN2: 2019 | AO2: 1S19 | AP2: 9M19 | AR2: 2020 | AV2: 2021 | AZ2: 2022 | BD2: 2023
B3: Balanço Patrimonial | C3: Financial Position | D3: 31/mar | E3: 30/jun | F3: 30/set | G3: 31/dez | H3: 31/mar | I3: 30/jun | J3: 30/set | K3: 31/dez | L3: 31/mar | M3: 30/jun | N3: 30/set | O3: 31/dez | P3: 31/mar | Q3: 30/jun | R3: 30/set | S3: 31/dez | T3: 31/mar | U3: 30/jun | V3: 30/set | W3: 31/dez | X3: 31/mar | Y3: 30/jun | Z3: 30/set | AA3: 31/dez | AB3: 31/mar | AC3: 30/jun | AD3: 30/set | AE3: 31/dez | AF3: 31/mar | AG3: 30/jun | AH3: 30/set | AI3: 31/dez | AJ3: 31/mar | AK3: 30/jun | AL3: 30/set | AM3: 31/dez | AN3: 2019-03-31 | AO3: 2019-06-30 | AP3: 2019-09-30 | AQ3: 2020-12-31 | AR3: 2019-03-31 | AS3: 2020-06-30 | AT3: 2020-09-30 | AU3: 2020-12-31 | AV3: 2021-03-31 | AW3: 2021-06-30 | AX3: 2021-09-30 | AY3: 2021-12-31 | AZ3: 2021-03-31 | BA3: 2021-06-30 | BB3: 2021-09-30 | BC3: 2021-12-31 | BD3: 2021-03-31
B4: Caixa e Equivalentes | C4: Cash and Equivalents | D4: 1235.46 | E4: 1486.209 | F4: 434.459 | G4: 1126.479 | H4: 1932.188 | I4: 450.061 | J4: 608.323 | K4: 217.63 | L4: 281.962 | M4: 260.077 | N4: 273.769 | O4: 1998.774 | P4: 638 | Q4: 3267 | R4: 1265 | S4: 1004 | T4: 194.859 | U4: 52.205 | V4: 41.925 | W4: 69.311 | X4: 127.737 | Y4: 163.83 | Z4: 67.818 | AA4: 1589.767754 | AB4: 2690.279226 | AC4: 4053.202398 | AD4: 3081.789794 | AE4: 3961.872254 | AF4: 5278.951416 | AG4: 5981.200721 | AH4: 7401.012266 | AI4: 11188.40772 | AJ4: 13097.88604 | AK4: 17152.29864 | AL4: 18103.6619 | AM4: 22391.43872 | AN4: 31695.26147 | AO4: 27428.689 | AP4: 28341.099 | AQ4: 31463 | AR4: 33007 | AS4: 22214 | AT4: 31230 | AU4: 38923 | AV4: 47974.675 | AW4: 39549.261 | AX4: 43200.363 | AY4: 50629.913 | AZ4: 52921 | BA4: 40674 | BB4: 48829 | BC4: 11076 | BD4: 12718
B5: Títulos e Valores Mobiliários (TVM) | C5: Securities | D5: 88107.51921 | E5: 74653.58793 | F5: 102657.4836 | G5: 104645.63 | H5: 105754.292 | I5: 96499.934 | J5: 81215.668 | K5: 86297.733 | L5: 91655.736 | M5: 78933.436 | N5: 84134.854 | O5: 76375.723 | P5: 73485.909 | Q5: 64600.872 | R5: 72174.253 | S5: 70368.207 | T5: 66016.873 | U5: 68681.467 | V5: 68365.385 | W5: 54573.685 | X5: 51681.712 | Y5: 56459.216 | Z5: 46967.337 | AA5: 41925.76264 | AB5: 43426.79715 | AC5: 44431.74414 | AD5: 52961.5997 | AE5: 58409.92439 | AF5: 56970.17475 | AG5: 52638.08928 | AH5: 59585.23984 | AI5: 59975.2605 | AJ5: 66854.69605 | AK5: 61553.9191 | AL5: 70629.01185 | AM5: 67264.12093 | AN5: 75038.91832 | AO5: 71875.375 | AP5: 71252.845 | AQ5: 78746 | AR5: 53086 | AS5: 67156 | AT5: 58874.068 | AU5: 64057 | AV5: 48249.133 | AW5: 53221.702 | AX5: 50716.313 | AY5: 50227.254 | AZ5: 71858 | BA5: 57686 | BB5: 59686 | BC5: 54241 | BD5: 50026
B6: Ações a Valor Justo | C6: Shares | D6: 75388.05185 | E6: 62295.21862 | F6: 87777.787 | G6: 89249.116 | H6: 90032.934 | I6: 77938.625 | J6: 66174.028 | K6: 70361.989 | L6: 74686.812 | M6: 63498.385 | N6: 69087.664 | O6: 61547.222 | P6: 58573.245 | Q6: 51317.643 | R6: 56876.137 | S6: 54430.571 | T6: 49967.752 | U6: 50521.652 | V6: 50269.436 | W6: 35481.701 | X6: 32838.634 | Y6: 37271.138 | Z6: 28140.696 | AA6: 28086.58645 | AB6: 31057.78493 | AC6: 32966.25 | AD6: 41337.39011 | AE6: 47028.59309 | AF6: 46373.79614 | AG6: 42106.9347 | AH6: 48873.50308 | AI6: 49697.56847 | AJ6: 58022.11135 | AK6: 51968.82329 | AL6: 60719.65365 | AM6: 58671.64797 | AN6: 66461.53048 | AO6: 64481.888 | AP6: 63538.458 | AQ6: 70828 | AR6: 46211 | AS6: 60379 | AT6: 52618 | AU6: 57478 | AV6: 41538.873 | AW6: 46485.958 | AX6: 44995.019 | AY6: 44384.93 | AZ6: 65928 | BA6: 51756 | BB6: 54847 | BC6: 49444 | BD6: 45388
B7: Debêntures | C7: Debentures | D7: 10856.92035 | E7: 10468.27531 | F7: 12955.98465 | G7: 13102.437 | H7: 13454.276 | I7: 16215.657 | J7: 12727.891 | K7: 13238.651 | L7: 14153.012 | M7: 12783.503 | N7: 12235.754 | O7: 12027.608 | P7: 11897.724 | Q7: 10242.78 | R7: 9979.814 | S7: 9698.435 | T7: 12984.005 | U7: 15184.552 | V7: 15165.624 | W7: 16786.333 | X7: 16661.903 | Y7: 16956.764 | Z7: 16640.042 | AA7: 11695.56864 | AB7: 10399.84205 | AC7: 9691.334717 | AD7: 9876.15241 | AE7: 9612.662384 | AF7: 8650.779666 | AG7: 8606.730825 | AH7: 8742.977013 | AI7: 8226.487597 | AJ7: 6675.497216 | AK7: 7481.992221 | AL7: 7704.357506 | AM7: 6523.554197 | AN7: 6731.533404 | AO7: 5393.617 | AP7: 5371.532 | AQ7: 5440 | AR7: 4742 | AS7: 4593 | AT7: 3741 | AU7: 3960 | AV7: 3876.87 | AW7: 3115.361 | AX7: 2259.791 | AY7: 2142.89 | AZ7: 2177 | BA7: 1990 | BB7: 1178 | BC7: 1072 | BD7: 1090
B8: Fundos de Investimentos | C8: Investiment Funds | D8: 1862.547 | E8: 1890.094 | F8: 1923.712 | G8: 2022.829 | H8: 1959.42 | I8: 1965.153 | J8: 1823.895 | K8: 2124.34 | L8: 2360.807 | M8: 2176.522 | N8: 2399.206 | O8: 2427.758 | P8: 2563.836 | Q8: 2509.173 | R8: 1940.996 | S8: 2021.134 | T8: 2092.203 | U8: 2115.462 | V8: 1989.106 | W8: 1941.291 | X8: 1869.705 | Y8: 1890.611 | Z8: 1851.968 | AA8: 1802.471703 | AB8: 1611.439527 | AC8: 1494.621541 | AD8: 1462.838106 | AE8: 1446.303593 | AF8: 1571.075332 | AG8: 1599.79964 | AH8: 1608.28244 | AI8: 1651.337315 | AJ8: 1750.239649 | AK8: 1728.382052 | AL8: 1814.814896 | AM8: 1730.462341 | AN8: 1842.65862 | AO8: 1986.827 | AP8: 2329.205 | AQ8: 2459.461 | AR8: 2120 | AS8: 2159 | AT8: 2238 | AU8: 2236 | AV8: 2523.236 | AW8: 3319.653 | AX8: 2913.392 | AY8: 3164.084 | AZ8: 3127 | BA8: 3535 | BB8: 3660 | BC8: 3724 | BD8: 3546
B9: Instrumentos Derivativos | C9: Derivative Instruments | D9: 0 | E9: 0 | F9: 0 | G9: 271.248 | H9: 307.662 | I9: 380.499 | J9: 489.854 | K9: 572.753 | L9: 455.105 | M9: 475.026 | N9: 412.23 | O9: 373.135 | P9: 451.104 | Q9: 531.276 | R9: 484.609 | S9: 509.127 | T9: 818.372 | U9: 859.801 | V9: 941.219 | W9: 364.36 | X9: 311.47 | Y9: 340.703 | Z9: 334.631 | AA9: 341.1358512 | AB9: 357.7306441 | AC9: 279.5378895 | AD9: 285.2190814 | AE9: 322.3653186 | AF9: 374.5236122 | AG9: 324.6241116 | AH9: 360.4773117 | AI9: 399.8671248 | AJ9: 406.8478298 | AK9: 374.7215371 | AL9: 390.1857929 | AM9: 338.4564235 | AN9: 3.19581264 | AO9: 13.043 | AP9: 13.65 | AQ9: 18.896 | AR9: 13 | AS9: 25 | AT9: 277.068 | AU9: 383 | AV9: 310.154 | AW9: 300.73 | AX9: 548.111 | AY9: 535.35 | AZ9: 626 | BA9: 405 | BB9: 1 | BC9: 1 | BD9: 2
B10: Títulos Públicos | C10: Government bonds | D10: 0 | E10: 0 | F10: 0 | G10: 0 | H10: 0 | I10: 0 | J10: 0 | K10: 0 | L10: 0 | M10: 0 | N10: 0 | O10: 0 | P10: 0 | Q10: 0 | R10: 2892.697 | S10: 3708.94 | T10: 154.541 | U10: 0 | V10: 0 | W10: 0 | X10: 0 | Y10: 0 | Z10: 0 | AA10: 0 | AB10: 0 | AC10: 0 | AD10: 0 | AE10: 0 | AF10: 0 | AG10: 0 | AH10: 0 | AI10: 0 | AJ10: 0 | AK10: 0 | AL10: 0 | AM10: 0 | AN10: 0 | AO10: 0 | AP10: 0 | AQ10: 0 | AR10: 0 | AS10: 0 | AT10: 0 | AU10: 0 | AV10: 0 | AW10: 0 | AX10: 0 | AY10: 0 | AZ10: 0 | BA10: 0 | BB10: 0 | BC10: 0 | BD10: 0
B11: Ativo não circulante mantido para venda | C11: Non-current asset for sale | D11: 0 | E11: 0 | F11: 0 | G11: 0 | H11: 0 | I11: 0 | J11: 0 | K11: 0 | L11: 0 | M11: 0 | N11: 0 | O11: 0 | P11: 0 | Q11: 0 | R11: 0 | S11: 0 | T11: 0 | U11: 0 | V11: 0 | W11: 0 | X11: 0 | Y11: 0 | Z11: 0 | AA11: 0 | AB11: 0 | AC11: 0 | AD11: 0 | AE11: 0 | AF11: 0 | AG11: 0 | AH11: 0 | AI11: 0 | AJ11: 0 | AK11: 0 | AL11: 0 | AM11: 4102.877 | AN11: 0 | AO11: 0 | AP11: 0 | AQ11: 0 | AR11: 0 | AS11: 0 | AT11: 30 | AU11: 30 | AV11: 30 | AW11: 0 | AX11: 0 | AY11: 950.473 | AZ11: 131 | BA11: 0 | BB11: 0 | BC11: 0 | BD11: 0
B12: Investimento em Coligadas | C12: Investiment in affliliates | D12: 14081.08806 | E12: 14103.51683 | F12: 13826.874 | G12: 13641.374 | H12: 15270.375 | I12: 15426.854 | J12: 18763.956 | K12: 19332.192 | L12: 19473.535 | M12: 19567.857 | N12: 19686.433 | O12: 16667.573 | P12: 16232 | Q12: 16908 | R12: 17814 | S12: 18118 | T12: 18069.142 | U12: 18181.398 | V12: 18391.592 | W12: 18544.628 | X12: 18388.172 | Y12: 18125.574 | Z12: 18275.978 | AA12: 16405.5477 | AB12: 16100.00254 | AC12: 14969.69155 | AD12: 15072.04816 | AE12: 14609.24279 | AF12: 15682.53168 | AG12: 14959.60466 | AH12: 15600.14833 | AI12: 15152.49013 | AJ12: 15391.07817 | AK12: 15399.38899 | AL12: 15922.41677 | AM12: 9121.441652 | AN12: 9109.410583 | AO12: 9159.748 | AP12: 9687.582 | AQ12: 9090 | AR12: 8688 | AS12: 8857 | AT12: 10698 | AU12: 10974 | AV12: 11032.93 | AW12: 11464.811 | AX12: 12467.519 | AY12: 10935.543 | AZ12: 1889 | BA12: 1836 | BB12: 1907 | BC12: 1947 | BD12: 1896
B13: Outros | C13: Others | D13: 4669.353256 | E13: 4693.219975 | F13: 4415.797292 | G13: 6409.939 | H13: 6367.612 | I13: 4495.973 | J13: 4485.288 | K13: 4810.728 | L13: 5105.584 | M13: 4363.099 | N13: 3245.051 | O13: 3600.244 | P13: 3219 | Q13: 3150 | R13: 2538 | S13: 1841 | T13: 1964.067 | U13: 2282.172 | V13: 2342.101 | W13: 3981.564 | X13: 5257.371 | Y13: 2276.265 | Z13: 6412.775 | AA13: 7407.119865 | AB13: 7134.283478 | AC13: 6075.290785 | AD13: 4080.769044 | AE13: 3418.184 | AF13: 3524.15907 | AG13: 2989.459175 | AH13: 3117.339495 | AI13: 2798.165444 | AJ13: 2920.068294 | AK13: 3262.329087 | AL13: 3627.508541 | AM13: 4185.013191 | AN13: 3799.944912 | AO13: 3301.622 | AP13: 2944.889 | AQ13: 3695 | AR13: 4220 | AS13: 3940 | AT13: 3441 | AU13: 2790 | AV13: 3184.378 | AW13: 2947.237 | AX13: 3002.084 | AY13: 2361.083 | AZ13: 5025 | BA13: 8142 | BB13: 2942 | BC13: 4671 | BD13: 5067
B14: Ativo Total | C14: Total Assets | D14: 108093.4205 | E14: 94936.53374 | F14: 121334.6139 | G14: 125823.422 | H14: 129324.467 | I14: 116872.822 | J14: 105073.235 | K14: 110658.283 | L14: 116516.817 | M14: 103124.469 | N14: 107340.107 | O14: 98642.314 | P14: 93574.909 | Q14: 87925.872 | R14: 93791.253 | S14: 91331.207 | T14: 86244.941 | U14: 89197.242 | V14: 89141.003 | W14: 77169.188 | X14: 75454.992 | Y14: 77024.885 | Z14: 71723.908 | AA14: 67328.19796 | AB14: 69351.3624 | AC14: 69529.92888 | AD14: 75196.20671 | AE14: 80399.22344 | AF14: 81455.81692 | AG14: 76568.35383 | AH14: 85703.73993 | AI14: 89114.3238 | AJ14: 98263.72854 | AK14: 97367.93581 | AL14: 108281.5991 | AM14: 107064.8915 | AN14: 119643.5353 | AO14: 111765.434 | AP14: 112226.415 | AQ14: 122994 | AR14: 99001 | AS14: 102167 | AT14: 104273.068 | AU14: 116774 | AV14: 110471.116 | AW14: 107183.011 | AX14: 109386.279 | AY14: 115104.266 | AZ14: 131824 | BA14: 108338 | BB14: 113364 | BC14: 71935 | BD14: 69707
B15: Obrigações por emissão de Debêntures | C15: National Treasury | D15: 3691.599 | E15: 3801.429 | F15: 3819.615 | G15: 5999.766 | H15: 5346.159 | I15: 5522.031 | J15: 5603.754 | K15: 5778.197 | L15: 4990.977 | M15: 7164.526 | N15: 7273.958 | O15: 7485.206 | P15: 6634 | Q15: 6795 | R15: 5746 | S15: 5911 | T15: 3903.614 | U15: 3860.994 | V15: 3949.749 | W15: 4072.782 | X15: 3293.618 | Y15: 3324.211 | Z15: 3421.107 | AA15: 3554.297349 | AB15: 3649.369702 | AC15: 3668.915908 | AD15: 2628.124977 | AE15: 2674.803874 | AF15: 1883.918845 | AG15: 1823.17325 | AH15: 1850.788475 | AI15: 1891.374435 | AJ15: 1936.171206 | AK15: 1876.025117 | AL15: 1925.334412 | AM15: 1962.927381 | AN15: 2012.544406 | AO15: 0 | AP15: 0 | AQ15: 0 | AR15: 0 | AS15: 0 | AT15: 0 | AU15: 0 | AV15: 0 | AW15: 0 | AX15: 0 | AY15: 0 | AZ15: 0 | BA15: 0 | BB15: 0 | BC15: 0 | BD15: 0
B16: Obrigações por repasses | C16: Repurchase Agreements | D16: 8345.714 | E16: 8505.035 | F16: 29928.256 | G16: 14275.959 | H16: 15461.183 | I16: 17283.928 | J16: 17615.979 | K16: 11634.331 | L16: 12629.52 | M16: 9076.893 | N16: 8765.954 | O16: 3540.88 | P16: 3206 | Q16: 2998.409 | R16: 2917 | S16: 2744 | T16: 3736.617 | U16: 5073.322 | V16: 4198.48 | W16: 3832.675 | X16: 4832.55 | Y16: 3536.779 | Z16: 2204.425 | AA16: 500.495013 | AB16: 513.2145862 | AC16: 525.1643797 | AD16: 540.5798552 | AE16: 553.2930552 | AF16: 566.0315883 | AG16: 0 | AH16: 0 | AI16: 0 | AJ16: 0 | AK16: 0 | AL16: 0 | AM16: 0 | AN16: 0 | AO16: 0 | AP16: 0 | AQ16: 0 | AR16: 0 | AS16: 0 | AT16: 0 | AU16: 0 | AV16: 0 | AW16: 0 | AX16: 0 | AY16: 0 | AZ16: 0 | BA16: 10 | BB16: 10 | BC16: 10 | BD16: 10
B17: Impostos diferidos | C17: Agribusiness Letters of Credit | D17: 19283.56359 | E17: 14538.60781 | F17: 15940.08085 | G17: 16247.955 | H17: 16621.419 | I17: 12822.093 | J17: 8930.088 | K17: 10261.631 | L17: 11981.13 | M17: 7837.452 | N17: 8712.566 | O17: 6754.239 | P17: 5873.858 | Q17: 3336.99 | R17: 5153.122 | S17: 4143.438 | T17: 0 | U17: 0 | V17: 0 | W17: 0 | X17: 0 | Y17: 0 | Z17: 0 | AA17: 0 | AB17: 0 | AC17: 0 | AD17: 0 | AE17: 1056.777 | AF17: 1724.089606 | AG17: 126.7015217 | AH17: 2840.725257 | AI17: 3451.772459 | AJ17: 6236.97804 | AK17: 5611.346836 | AL17: 8711.393091 | AM17: 7515.567793 | AN17: 8975.822264 | AO17: 7980.664 | AP17: 7667.931 | AQ17: 10920 | AR17: 2118 | AS17: 6777 | AT17: 4814 | AU17: 7398 | AV17: 2502.568 | AW17: 3946.011 | AX17: 3349.126 | AY17: 3182.089 | AZ17: 7901 | BA17: 6394 | BB17: 5370 | BC17: 3878 | BD17: 1907
B18: Outras obrigações | C18: Others | D18: 2268.819942 | E18: 1798.432315 | F18: 1594.210315 | G18: 2797.795328 | H18: 2831.76 | I18: 1384.309 | J18: 1084.994 | K18: 2213.483626 | L18: 2481.987 | M18: 1447.403 | N18: 1363.427 | O18: 1707.846 | P18: 1653.789 | Q18: 2310.156 | R18: 2355.798 | S18: 2179.296 | T18: 5900.988 | U18: 5239.524 | V18: 5555.55 | W18: 3154.458 | X18: 2669.925 | Y18: 2700.209 | Z18: 2614.143 | AA18: 1840.155523 | AB18: 1833.820712 | AC18: 1947.704987 | AD18: 1960.600243 | AE18: 2108.209483 | AF18: 2000.095532 | AG18: 2079.04883 | AH18: 2155.854572 | AI18: 2441.049039 | AJ18: 2446.155276 | AK18: 2546.639339 | AL18: 2748.214261 | AM18: 4540.394521 | AN18: 3762.410812 | AO18: 2638.358 | AP18: 2553.303 | AQ18: 5052.18 | AR18: 5738.192 | AS18: 3033.636 | AT18: 3373.621 | AU18: 5773.671 | AV18: 5576.407 | AW18: 2583.953 | AX18: 3004.37 | AY18: 8498.103 | AZ18: 7780 | BA18: 3048 | BB18: 2994 | BC18: 9531 | BD18: 9736
B19: Patrimônio Líquido | C19: Shareholders' Equity | D19: 74503.72407 | E19: 66293.03008 | F19: 70052.45188 | G19: 86501.94625 | H19: 89063.946 | I19: 79860.461 | J19: 71838.42 | K19: 80770.64003 | L19: 84433.203 | M19: 77598.195 | N19: 81224.202 | O19: 79154.143 | P19: 76208 | Q19: 72486 | R19: 77620 | S19: 76353 | T19: 72703.722 | U19: 75023.402 | V19: 75437.224 | W19: 66109.273 | X19: 64658.899 | Y19: 67463.686 | Z19: 63484.233 | AA19: 61433.25007 | AB19: 63354.9574 | AC19: 63388.14361 | AD19: 70066.90163 | AE19: 74006.01214 | AF19: 75281.68134 | AG19: 72539.43023 | AH19: 78856.37163 | AI19: 81330.12787 | AJ19: 87644.42402 | AK19: 87333.92482 | AL19: 94897.03394 | AM19: 93046.00278 | AN19: 104892.758 | AO19: 101146.412 | AP19: 102005.177 | AQ19: 107022 | AR19: 91145 | AS19: 92356.504 | AT19: 96085 | AU19: 103602 | AV19: 102392.157 | AW19: 100653.047 | AX19: 103032.783 | AY19: 103424.074 | AZ19: 116143 | BA19: 98886 | BB19: 104990 | BC19: 58516 | BD19: 58054
B20: Capital Social | D20: 35828.862 | E20: 35828.862 | F20: 35828.862 | G20: 46303.861 | H20: 46304.356 | I20: 51429 | J20: 51429 | K20: 60376.492 | L20: 60376.492 | M20: 60376.492 | N20: 60376.492 | O20: 60376.492 | P20: 60344.504 | Q20: 60344.504 | R20: 60344.504 | S20: 60344.504 | T20: 60344.504 | U20: 60344.504 | V20: 60344.504 | W20: 60344.504 | X20: 60344.504 | Y20: 60344.504 | Z20: 60344.504 | AA20: 60344.504 | AB20: 60344.504 | AC20: 60344.504 | AD20: 60344.504 | AE20: 60344.504 | AF20: 60344.504 | AG20: 60344.504 | AH20: 60344.504 | AI20: 60344.504 | AJ20: 60344.504 | AK20: 60344.504 | AL20: 60344.504 | AM20: 60344.504 | AN20: 60344.504 | AO20: 60344.504 | AP20: 60344.504 | AQ20: 60345 | AR20: 60344.504 | AS20: 60344.504 | AT20: 60345 | AU20: 60345 | AV20: 60344.504 | AW20: 60344.504 | AX20: 60344.504 | AY20: 60344.504 | AZ20: 60345 | BA20: 60345 | BB20: 60345 | BC20: 20345 | BD20: 20345
B21: Reservas de Lucros | D21: 1040.372 | E21: 1040.372 | F21: 1040.372 | G21: 10993.729 | H21: 10994.235 | I21: 2921 | J21: 2921 | K21: 3298.307 | L21: 3298.307 | M21: 3298.307 | N21: 3298.307 | O21: 3495.692 | P21: 3193.771 | Q21: 3193.771 | R21: 3193.771 | S21: 4380.37 | T21: 3323.528 | U21: 3323.528 | V21: 3323.528 | W21: 5538.468 | X21: 5538.468 | Y21: 5538.468 | Z21: 5538.468 | AA21: 0 | AB21: 0 | AC21: 0 | AD21: 0 | AE21: 0 | AF21: 0 | AG21: 0 | AH21: 0 | AI21: 0 | AJ21: 0 | AK21: 0 | AL21: 0 | AM21: 4423.904 | AN21: 4423.904 | AO21: 2494.792 | AP21: 2494.792 | AQ21: 10462 | AR21: 10462 | AS21: 1944 | AT21: 1944 | AU21: 11037 | AV21: 11037.363 | AW21: 3364.395 | AX21: 3364.395 | AY21: 18351.61 | AZ21: 18352 | BA21: 2660 | BB21: 2660 | BC21: 23530 | BD21: 23530
B22: Ajustes de Avaliação Patrimonial | D22: 34817.74575 | E22: 25760.51433 | F22: 28195.73617 | G22: 29204.362 | H22: 30824.49 | I22: 22519 | J22: 14124 | K22: 17095.848 | L22: 20220.117 | M22: 12701.234 | N22: 16015.176 | O22: 15281.965 | P22: 12258.427 | Q22: 8308.814 | R22: 13065.55 | S22: 11628.175 | T22: 8854.71 | U22: 9207.055 | V22: 9152.891 | W22: 226.31 | X22: -333.091 | Y22: 2990.866 | Z22: -2302.819 | AA22: 5207.696 | AB22: 8973.645 | AC22: 10282.831 | AD22: 15256.436 | AE22: 18782.761 | AF22: 18817.501 | AG22: 16066.668 | AH22: 21042.837 | AI22: 22328.83 | AJ22: 28121.46 | AK22: 24544.326 | AL22: 30557.456 | AM22: 28277.595 | AN22: 31513.457 | AO22: 30343.088 | AP22: 29953.882 | AQ22: 36215 | AR22: 19954 | AS22: 30532 | AT22: 27702 | AU22: 32221 | AV22: 22858.497 | AW22: 26920.518 | AX22: 25090.784 | AY22: 24727.96 | AZ22: 26268 | BA22: 19447 | BB22: 17952 | BC22: 14641 | BD22: 11838
B23: Lucro/Prejuízos Acumulados | D23: 2816.751329 | E23: 3663.288745 | F23: 4987.488711 | G23: 0 | H23: 940.872 | I23: 2991 | J23: 3364 | K23: 0 | L23: 538.294 | M23: 1222.169 | N23: 1534.234 | O23: 0 | P23: 411.028 | Q23: 638.686 | R23: 1015.782 | S23: 0 | T23: 180.987 | U23: 2148.322 | V23: 2616.308 | W23: 0 | X23: -890.975 | Y23: -1410.143 | Z23: -95.912 | AA23: -4118.948 | AB23: -5963.191 | AC23: -7239.189 | AD23: -5534.037 | AE23: -5121.252 | AF23: -3880.323 | AG23: -3871.742 | AH23: -2530.968 | AI23: -1343.205 | AJ23: -821.54 | AK23: 2445.096 | AL23: 3995.075 | AM23: 0 | AN23: 8610.893 | AO23: 7964.029 | AP23: 9212.001 | AQ23: 0 | AR23: 384 | AS23: -464 | AT23: 6094 | AU23: 0 | AV23: 8151.793 | AW23: 10023.63 | AX23: 14233.1 | AY23: 0 | AZ23: 11178 | BA23: 16434 | BB23: 24033 | BC23: 0 | BD23: 2341
B24: Passivo Total | C24: Total Liabilities | D24: 108093.4206 | E24: 94936.5342 | F24: 121334.614 | G24: 125823.4216 | H24: 129324.467 | I24: 116872.822 | J24: 105073.235 | K24: 110658.2827 | L24: 116516.817 | M24: 103124.469 | N24: 107340.107 | O24: 98642.314 | P24: 93574.647 | Q24: 87925.555 | R24: 93790.92 | S24: 91331.734 | T24: 86244.941 | U24: 89197.242 | V24: 89141.003 | W24: 77169.188 | X24: 75454.992 | Y24: 77024.885 | Z24: 71723.908 | AA24: 67328.19796 | AB24: 69351.3624 | AC24: 69529.92888 | AD24: 75196.20671 | AE24: 80399.09555 | AF24: 81455.81691 | AG24: 76568.35383 | AH24: 85703.73993 | AI24: 89114.3238 | AJ24: 98263.72854 | AK24: 97367.93611 | AL24: 108281.9757 | AM24: 107064.8925 | AN24: 119643.5355 | AO24: 111765.434 | AP24: 112226.411 | AQ24: 122994.18 | AR24: 99001.192 | AS24: 102167.14 | AT24: 104272.621 | AU24: 116773.671 | AV24: 110471.132 | AW24: 107183.011 | AX24: 109386.279 | AY24: 115104.266 | AZ24: 131824 | BA24: 108338 | BB24: 113364 | BC24: 71935 | BD24: 69707
BD25: 0

Sheet Remuneração Acionista
O1: R$ milhões, exceto percentuais | P1: R$ milhões, exceto percentuais
B2: Remuneração do Acionista | C2: Dividends Paid | D2: 2010 | E2: 2011 | F2: 2012 | G2: 2013 | H2: 2014 | I2: 2015 | J2: 2016 | K2: 2017 | L2: 2018 | M2: 2019 | N2: 2020 | O2: 2021 | P2: 2022
B3: (A) Lucros Acumulados | C3: Accumulated Income | D3: 2143 | L3: -48
B4: (B) Lucro Líquido Ajustado* | C4: Adjusted Net Income | D4: 3669 | E4: 4306.5 | F4: 298 | G4: 1548.564 | H4: 2904.847 | I4: -7640.592748 | J4: -1001.967359 | K4: 3777.976199 | L4: 7194 | M4: 10448.80239 | N4: 11926.28629 | O4: 19655 | P4: 27371
B5: (C) Compensação de Prejuízos Acumulados | C5: Compensation of accumulated losses | D5: 0 | E5: 0 | F5: 0 | G5: 0 | H5: 0 | I5: 0 | J5: 0 | K5: -3778 | L5: -1343 | M5: 0 | N5: 0 | O5: 0 | P5: 0
B6: (D) Constituição de Reservas | C6: Regulatory Reserves | D6: -1880 | E6: -377.325 | F6: -33.9 | G6: -130.4282 | H6: -198.24235 | I6: 0 | J6: 0 | K6: 0 | L6: -308.55 | M6: -1367.44012 | N6: -1420.314314 | O6: -982.75 | P6: -16449
B7: Reversão de Reservas | C7: Reserves Reversion | D7: 0 | E7: 0 | F7: 139 | G7: 0 | H7: 0 | I7: 0 | J7: 0 | K7: 0 | L7: 1918.74 | M7: 0 | N7: 0 | O7: 1687 | P7: 0
B8: (F) Lucro Disponível para Distribuição (A+B+C+D+E) | C8: Income Available for Destination | D8: =SUM(D3:D7) -> 3932 | E8: 3929.175 | F8: 403.1 | G8: 1418.1358 | H8: 2706.60465 | I8: -7640.592748 | J8: -1001.967359 | K8: 0 | L8: 7413.19 | M8: 9081.362273 | N8: 10505.97197 | O8: 20359.25 | P8: 10922
B9: (G) Dividendos Distribuídos | D9: 3932 | E9: 1015.29375 | F9: 403.1 | G9: 1418.1358 | H9: 2706.60465 | I9: 0 | J9: 0 | K9: 0 | L9: 5226 | M9: 9080.340568 | N9: 10506.46089 | O9: 20359.0625 | P9: 10922
B10: Dividendos Mínimos Obrigatórios | C10: Mandatory Dividends | D10: 983 | E10: 983.29375 | F10: 100.775 | G10: 354.53395 | H10: 675.6511625 | I10: 0 | J10: 0 | K10: 0 | L10: 1378 | M10: 2481.340568 | N10: 2833.492993 | O10: 4668.0625 | P10: 6501
B11: Dividendos Complementares | C11: Complementar Dividends | D11: 2949 | E11: 32 | F11: 302.325 | G11: 1063.60185 | H11: 2030.953487 | I11: 0 | J11: 0 | K11: 0 | L11: 3848 | M11: 6599 | N11: 7672.967896 | O11: 15691 | P11: 4421
B12: % Lucro Disponível distribuído ao Acionista (G/F) | C12: % Income Available paid to the Shareholder | D12: 1.000114463 | E12: 0.258139279 | F12: 1 | G12: 1 | H12: 1 | I12: 0 | J12: 0 | K12: 0 | L12: 0.7049596732 | M12: 0.9998874943 | N12: 1.000046537 | O12: 0.9999907904 | P12: 1
B13: *Ajustado pelo ganho com alienações e amortização de cotas (a partir de jan/18 - Adoção CPC 48) | C13: * Net income adjust for the investiments alienation (since jan/2018 - adopt CPC 48 and IFRS 9)

Sheet Participações em Coligadas (hidden)
AA1: CONFIRMAR NÃO EXISTÊNCIA DE SIGILO | AI1: R$ milhões
B2: Empresa / Company | C2: Setor/Segmento (Sector) | D2: 4T/10 | E2: 4T/11 | F2: 1T/12 | G2: 2T/12 | H2: 3T/12 | I2: 4T/12 | J2: 1T/13 | K2: 2T/13 | L2: 3T/13 | M2: 4T/13 | N2: 1T/14 | O2: 2T/14 | P2: 3T/14 | Q2: 4T/14 | R2: 1T/15 | S2: 2T/15 | T2: 3T/15 | U2: 4T/15 | V2: 1T/16 | W2: 2T/16 | X2: 3T/16 | Y2: 4T/16 | Z2: 1T/17 | AA2: 2T/17 | AB2: 3T/17 | AC2: 4T/17 | AD2: 1T/18 | AE2: 2T/18 | AF2: 3T/18 | AG2: 4T/18 | AH2: 1T/19 | AI2: 2T/19
B3: AÇÕES ON JBS S/A | C3: Alimentos Processados - Carnes e Derivados | D3: 4083.577101 | E3: 7463.126857 | F3: 7356.948628 | G3: 6984.658419 | H3: 7208.731682 | I3: 4831.773932 | J3: 4710.234205 | K3: 4833.18556 | L3: 5683.011528 | M3: 5794.036565 | N3: 6177.731476 | O3: 6035.052467 | P3: 6175.875965 | Q3: 6492.057432 | R3: 6337.300477 | S3: 6112.723121 | T3: =6407875540.05/10^6 -> 6407.87554 | U3: 6683.574037 | V3: 6148.506361 | W3: 5519.818709 | X3: 5448.394506 | Y3: 5695.290765 | Z3: 5717.568627 | AA3: 5596.973061 | AB3: 6055.092061 | AC3: 5714.119244 | AD3: 5642.263185 | AE3: 5710.847895 | AF3: 6337.739165 | AG3: 6275.824293 | AH3: 6315.785343 | AI3: 6323.129441
B4: AÇÕES ON FIBRIA CELULOSE S/A | C4: Materiais Básicos - Papel e Celulose | D4: 4703.323777 | E4: 4705.596123 | F4: 4529.756877 | G4: 4731.567158 | H4: 4585.173085 | I4: 4587.273176 | J4: 4647.095374 | K4: 4620.384573 | L4: 4385.245802 | M4: 4447.532918 | N4: 4284.618069 | O4: 4543.449445 | P4: 4549.817209 | Q4: 4471.080813 | R4: 4443.909136 | S4: 4332.652964 | T4: 4150.18782 | U4: 3527.662731 | V4: 3726.740413 | W4: 3998.690479 | X4: 4130.409231 | Y4: 4186.572639 | Z4: 4076.489264 | AA4: 4072.869578 | AB4: 4194.995763 | AC4: 4196.966339 | AD4: 4365.616882 | AE4: 4384.959034 | AF4: 4519.282272 | AG4: 0 | AH4: 0 | AI4: 0
B5: AÇÕES ON COMPANHIA BRASILIANA DE ENERGIA | C5: Holding - Setor Energético | D5: 0 | E5: 2049.797738 | F5: 2156.592622 | G5: 1989.699187 | H5: 1970.185665 | I5: 1961.699756 | J5: 1679.470372 | K5: 1634.016218 | L5: 1764.129449 | M5: 1737.813448 | N5: 1813.544525 | O5: 1844.646217 | P5: 1718.602832 | Q5: 1702.252371 | R5: 1719.560986 | S5: 1727.592678 | T5: 1727.344832 | U5: 0 | V5: 0 | W5: 0 | X5: 0 | Y5: 0 | Z5: 0 | AA5: 0 | AB5: 0 | AD5: 0 | AE5: 0 | AF5: 0 | AG5: 0 | AH5: 0 | AI5: 0
B6: AÇÕES ON COMPANHIA PARANAENSE DE ENERGIA | C6: Utilizada Pública - Energia Elétrica | D6: 2275.171679 | E6: 1659.090061 | F6: 1669.137811 | G6: 1697.179367 | H6: 1731.115877 | I6: 1741.100294 | J6: 1740.01658 | K6: 1745.701443 | L6: 1786.223592 | M6: 1768.890872 | N6: 1782.514136 | O6: 1831.690983 | P6: 1874.665941 | Q6: 1836.505728 | R6: 1903.989181 | S6: 1908.289497 | T6: 1938.868576 | U6: 1960.911107 | V6: 2012.450664 | W6: 1521.806269 | X6: 1521.101134 | Y6: 1334.928342 | Z6: 1334.99416 | AA6: 1099.798627 | AB6: 1099.763032 | AC6: 1128.147824 | AD6: 1122.146378 | AE6: 1262.891997 | AF6: 1327.33694 | AG6: 0 | AH6: 0 | AI6: 0
B7: AÇÕES PNB COMPANHIA PARANAENSE DE ENERGIA | C7: Utilizada Pública - Energia Elétrica | D7: 0 | E7: 1181.84733 | F7: 1186.628239 | G7: 1207.122217 | H7: 1231.296779 | I7: 1237.099609 | J7: 1235.699858 | K7: 1239.132617 | L7: 1267.998436 | M7: 1252.551476 | N7: 1262.255963 | O7: 1295.041619 | P7: 1325.654688 | Q7: 1294.839606 | R7: 1342.911221 | S7: 1343.668662 | T7: 1365.451567 | U7: 1381.153491 | V7: 1414.65998 | W7: 1069.946196 | X7: 1070.651331 | Y7: 939.0919353 | Z7: 939.0261179 | AA7: 771.1528701 | AB7: 771.1884649 | AC7: 788.881145 | AD7: 784.6060345 | AE7: 899.6169469 | AF7: 945.5240894 | AG7: 0 | AH7: 0 | AI7: 0
B8: AÇÕES ON GRANBIO INVESTIMENTOS S/A | C8: Biotecnologia - Sucroalcooleiro | D8: 0 | E8: 0 | F8: 0 | G8: 0 | H8: 0 | I8: 0 | J8: 0 | K8: 600.000015 | L8: 597.896265 | M8: 598.983615 | N8: 597.5215649 | O8: 594.7893149 | P8: 594.0456149 | Q8: 588.3852147 | R8: 581.8779146 | S8: 574.9530144 | T8: 570.3651143 | U8: 577.5916645 | V8: 585.4917147 | W8: 576.9228145 | X8: 572.1130644 | Y8: 570.2725643 | Z8: 574.3159644 | AA8: 523.0384875 | AB8: 521.3047874 | AC8: 509.1637871 | AD8: 563.2098141 | AE8: 565.2790642 | AF8: 566.1912142 | AG8: 557.1490748 | AH8: 552.9714247 | AI8: 549.0588246
B9: AÇÕES ON TUPY S/A | C9: Cadeia Automobilística | D9: 301.4667225 | E9: 389.5699443 | F9: 399.6116475 | G9: 398.7722594 | H9: 409.5253077 | I9: 420.8631626 | J9: 416.8564303 | K9: 419.0477289 | L9: 475.387328 | M9: 520.4743768 | N9: 546.4610209 | O9: 539.0644953 | P9: 546.8029802 | Q9: 561.8737147 | R9: 574.4343047 | S9: 610.4009219 | T9: 647.0286228 | U9: 673.5379375 | V9: 685.7072336 | W9: 660.6570955 | X9: 641.0261521 | Y9: 637.2693925 | Z9: 565.8342967 | AA9: 560.87631 | AB9: 558.5195261 | AC9: 567.4328932 | AD9: 560.4861502 | AE9: 579.1168634 | AF9: 600.4314397 | AG9: 602.3864696 | AH9: 572.452663 | AI9: 617.1191765
B10: AÇÕES PN COMPANHIA BRASILIANA DE ENERGIA | C10: Holding - Setor Energético | D10: 0 | E10: 341.6329539 | F10: 359.4321013 | G10: 331.6162759 | H10: 328.3640223 | I10: 326.9497779 | J10: 279.9115472 | K10: 272.3358549 | L10: 294.0213933 | M10: 289.6353942 | N10: 302.2572403 | O10: 307.4408557 | P10: 286.4336249 | Q10: 283.708548 | R10: 286.5933172 | S10: 287.9319326 | T10: 287.8906249 | U10: 0 | V10: 0 | W10: 0 | X10: 0 | Y10: 0 | Z10: 0 | AA10: 0 | AB10: 0 | AC10: 0 | AD10: 0 | AE10: 0 | AF10: 0 | AG10: 0 | AH10: 0 | AI10: 0
B11: AÇÕES ON SIX SEMICONDUTORES S/A | C11: Industrial - Semicondutores | D11: 0 | E11: 0 | F11: 245.0454642 | G11: 245.0256513 | H11: 244.5947207 | I11: 244.0340935 | J11: 240.1540353 | K11: 239.3067036 | L11: 235.974504 | M11: 231.9927715 | N11: 229.1882555 | O11: 228.0738107 | P11: 225.7907041 | Q11: 224.3460135 | R11: 233.5692487 | S11: 219.3703339 | T11: 218.5573446 | U11: 209.0917316 | V11: 199.2041038 | W11: 212.5751696 | X11: 201.8468145 | Y11: 196.7522575 | Z11: 51.19898126 | AA11: 47.78026536 | AB11: 48.17619315 | AC11: 45.62561249 | AD11: 42.23265336 | AE11: 0 | AF11: 0 | AG11: 0 | AH11: 0 | AI11: 0
B12: AÇÕES ON OCEANA OFFSHORE S/A | C12: Bens de Capital | D12: 0 | E12: 0 | F12: 0 | G12: 0 | H12: 0 | I12: 0 | J12: 122.2956723 | K12: 122.0321723 | L12: 121.3049223 | M12: 225.1563699 | N12: 224.4823699 | O12: 235.208 | P12: 248.3679714 | Q12: 223.5527714 | R12: 166.68 | S12: 151.7627714 | T12: 99.51637138 | U12: 97.44206111 | V12: 33.80795994 | W12: 100.2145084 | X12: 125.9995023 | Y12: 125.8685639 | Z12: 142.0072168 | AA12: 133.3915301 | AB12: 139.6942405 | AC12: 119.3895403 | AD12: 138.0669087 | AE12: 156.4624355 | AF12: 116.1802354 | AG12: 133.5892354 | AH12: 160.2768355 | AI12: 131.9908354
B13: AÇÕES ON IGUA SANEAMENTO S.A. | C13: Saneamento Básico | D13: 0 | E13: 0 | F13: 120.0000018 | G13: 118.8782911 | H13: 119.6216417 | I13: 120 | J13: 115.3276558 | K13: 110.9043189 | L13: 116.1214767 | M13: 118.3625583 | N13: 122.2925564 | O13: 122.7598244 | P13: 124.1913758 | Q13: 124.7425382 | R13: 128.4191821 | S13: 126.2365926 | T13: 125.9812329 | U13: 115.7183828 | V13: 107.1969249 | W13: 104.8084433 | X13: 94.79535293 | Y13: 80.40599999 | Z13: 79.15901045 | AA13: 66.43220164 | AB13: 65.74099259 | AC13: 94.348076 | AD13: 93.44044001 | AE13: 100.4383225 | AF13: 102.0240355 | AG13: 103.1950869 | AH13: 103.1950869 | AI13: 118.8438669
B14: AÇÕES ON MARFRIG ALIMENTOS S/A | C14: Alimentos Processados - Carnes e Derivados | D14: 0 | E14: 0 | F14: 0 | G14: 0 | H14: 0 | I14: 0 | J14: 0 | K14: 0 | L14: 0 | M14: 0 | N14: 0 | O14: 0 | P14: 0 | Q14: 0 | R14: 0 | S14: 0 | T14: 0 | U14: 0 | V14: 0 | W14: 0 | X14: 0 | Y14: 0 | Z14: 1360.618291 | AA14: 1235.849536 | AB14: 1310.184862 | AC14: 1171.934155 | AD14: 1280.738522 | AE14: 998.2942568 | AF14: 660.692457 | AG14: 609.094314 | AH14: 603.140117 | AI14: 594.5545093
B15: AÇÕES ON STARA S/A | C15: Bens de Capital | D15: 0 | E15: 0 | F15: 0 | G15: 0 | H15: 0 | I15: 0 | J15: 0 | K15: 0 | L15: 0 | M15: 0 | N15: 0 | O15: 0 | P15: 0 | Q15: 0 | R15: 0 | S15: 119.9999994 | T15: 116.6044585 | U15: 116.92284 | V15: 115.9118652 | W15: 112.5107819 | X15: 113.6228542 | Y15: 114.5414556 | Z15: 94.90000001 | AA15: 94.85181024 | AB15: 94.85181024 | AC15: 95.73171752 | AD15: 95.82521985 | AE15: 104.2373553 | AF15: 106.8794378 | AG15: 107.9530212 | AH15: 108.0743381 | AI15: 109.8265575
B16: AÇÕES ON CENTRO DE TECNOLOGIA CANAVIEIRA S/A | C16: Biotecnologia - Sucroalcooleiro | D16: 0 | E16: 0 | F16: 0 | G16: 0 | H16: 0 | I16: 0 | J16: 0 | K16: 0 | L16: 0 | M16: 0 | N16: 0 | O16: 0 | P16: 150.0018499 | Q16: 150.0018499 | R16: 150.0018499 | S16: 146.8316697 | T16: 145.0971608 | U16: 143.3566095 | V16: 152.5784259 | W16: 227.6339696 | X16: 287.8266199 | Y16: 274.9879567 | Z16: 272.8035208 | AA16: 272.8035208 | AB16: 266.1175323 | AC16: 263.7352758 | AD16: 261.5825007 | AE16: 256.6318773 | AF16: 254.1867922 | AG16: 348.5192104 | AH16: 346.9187834 | AI16: 353.896333
B17: OUTROS INVESTIMENTOS | C17: Diversos | D17: =SUM(D18:D87) -> 2277.834562 | E17: =SUM(E18:E87) -> 1541.531173 | F17: =SUM(F18:F71) -> 1450.237914 | G17: =SUM(G18:G70) -> 1863.220065 | H17: 1857.824391 | I17: 1196.779059 | J17: 1045.415402 | K17: 1070.632115 | L17: 1087.034621 | M17: 1132.552685 | N17: =SUM(N18:N59) -> 726.2747395 | O17: 603.1728656 | P17: 571.3412412 | Q17: 591.2815501 | R17: 518.9250361 | S17: =SUM(S18:S59) -> 462.6807252 | T17: =SUM(T18:T59) -> 475.2089681 | U17: 918.5851082 | V17: 917.7468924 | W17: 864.4407282 | X17: 864.5945504 | Y17: 453.2609226 | Z17: 473.616227 | AA17: 483.7868598 | AB17: 474.2848926 | AC17: 457.0145239 | AD17: 440.8634785 | AE17: 380.6129406 | AF17: 385.9486957 | AG17: 383.7309463 | AH17: 346.5959912 | AI17: 361.3282258
B18: AÇÕES ON PADTEC S/A | D18: 0 | E18: 0 | F18: 0 | G18: 0 | H18: 0 | I18: 0 | J18: 0 | K18: 109.9999988 | L18: 109.9999988 | M18: 110.0397805 | N18: 110.7062508 | O18: 109.9708552 | P18: 112.1239698 | Q18: 112.1878105 | R18: 44.551 | S18: 44.551 | T18: 44.551 | U18: 44.551 | V18: 44.551 | W18: 14.49999999 | X18: 14.50000001 | Y18: 14.48113869 | Z18: 14.48113869 | AA18: 25.66000569 | AB18: 26.1599444 | AC18: 26.21763302 | AD18: 26.2618342 | AE18: 41.4496441 | AF18: 43.77385141 | AG18: 42.6243393 | AH18: 45.82317538 | AI18: 47.0517237
B19: AÇÕES ON VALE SOLUCOES EM ENERGIA S/A - VSE | D19: 209.7546917 | E19: 248.2588309 | F19: 203.2155816 | G19: 198.0060749 | H19: 205.2418434 | I19: 153.6957445 | J19: 135.5336896 | K19: 123.5842249 | L19: 118.6580331 | M19: 110.2385399 | N19: 97.65926345 | O19: 0 | P19: 0 | Q19: 0 | R19: 0 | S19: 0 | T19: 0 | U19: 0 | V19: 0 | W19: 0 | X19: 0 | Y19: 0 | Z19: 0 | AA19: 0 | AB19: 0 | AC19: 0 | AD19: 0 | AE19: 0 | AF19: 0 | AG19: 0 | AH19: 0 | AI19: 0
B20: AÇÕES ON ERB S/A | D20: 0 | E20: 0 | F20: 0 | G20: 0 | H20: 0 | I20: 0 | J20: 0 | K20: 0 | L20: 0 | M20: 45.50456914 | N20: 84.651022 | O20: 79.22566698 | P20: 20.52 | Q20: 20.52 | R20: 10.71143999 | S20: 10.71143999 | T20: 10.26276691 | U20: 10.26276686 | V20: 10.26276691 | W20: 5.3 | X20: 5.3 | Y20: 5.29999825 | Z20: 0.89576663 | AA20: 0.23417251 | AB20: 0 | AC20: 0.23417251 | AD20: 0 | AE20: 0 | AF20: 0 | AG20: 0 | AH20: 0 | AI20: 0
B21: AÇÕES ON TECSIS TECNOLOGIA E SISTEMAS AVANCADOS S/A | D21: 0 | E21: 90.47549545 | F21: 80.32853092 | G21: 83.1964258 | H21: 87.68966309 | I21: 115.0599043 | J21: 110.471727 | K21: 97.28769263 | L21: 81.87105336 | M21: 90.61689545 | N21: 75.51905634 | O21: 82.23631376 | P21: 79.7141055 | Q21: 72.46769721 | R21: 82.73422691 | S21: 82.73422575 | T21: 82.73422575 | U21: 85.40794527 | V21: 86.3523925 | W21: 62.28374664 | X21: 57.08309743 | Y21: 45.46385727 | Z21: 13.36865152 | AA21: 13.36863715 | AB21: 0 | AC21: 0 | AD21: 0 | AE21: 2.49775658 | AF21: 2.49775658 | AG21: 2.55194707 | AH21: 2.55194707 | AI21: 2.55194707
B22: AÇÕES PN OURO FINO PARTICIPACOES E EMPREENDIMENTOS S/A | D22: 40.13723952 | E22: 47.57931621 | F22: 46.82411621 | G22: 47.13480471 | H22: 47.96920471 | I22: 48.20960471 | J22: 52.57680471 | K22: 53.04180471 | L22: 54.01440471 | M22: 58.51600471 | N22: 55.10500471 | O22: 54.44760471 | P22: 19.30720754 | Q22: 11.85660471 | R22: 25.05599321 | S22: 0 | T22: 0 | U22: 0 | V22: 0 | W22: 0 | X22: 0 | Y22: 0 | Z22: 0 | AA22: 0 | AB22: 0 | AC22: 0 | AD22: 0 | AE22: 0 | AF22: 0 | AG22: 0 | AH22: 0 | AI22: 0
B23: AÇÕES PN BRQ SOLUCOES EM INFORMATICA S/A | D23: 16.727 | E23: 21.42606 | F23: 20.95599999 | G23: 49.91478621 | H23: 50.19703621 | I23: 50.89945621 | J23: 52.23299621 | K23: 52.40204621 | L23: 51.36911621 | M23: 50.89186621 | N23: 51.93376621 | O23: 51.96481621 | P23: 51.96642621 | Q23: 52.11017621 | R23: 51.92157621 | S23: 52.1034181 | T23: 53.37199883 | U23: 0 | V23: 0 | W23: 0 | X23: 0 | Y23: 0 | Z23: 0 | AA23: 0 | AB23: 0 | AC23: 0 | AD23: 0 | AE23: 0 | AF23: 0 | AG23: 0 | AH23: 0 | AI23: 0
B24: AÇÕES PN RECEPTA BIOPHARMA S/A | D24: 0 | E24: 0 | F24: 0 | G24: 0 | H24: 11.8522988 | I24: 11.852 | J24: 11.852 | K24: 19.06 | L24: 28.904 | M24: 28.42268924 | N24: 28.08354268 | O24: 27.62320711 | P24: 27.21969459 | Q24: 26.6253694 | R24: 26.21263828 | S24: 25.82737621 | T24: 25.80441681 | U24: 25.17067211 | V24: 24.60336313 | W24: 0 | X24: 0 | Y24: 0 | Z24: 0 | AA24: 0 | AB24: 0 | AC24: 0 | AD24: 0 | AE24: 0 | AF24: 0 | AG24: 0 | AH24: 0 | AI24: 0
B25: AÇÕES ON LUPATECH S/A | D25: 0 | E25: 0 | F25: 0 | G25: 0 | H25: 0 | I25: 79.00324257 | J25: 79.00324257 | K25: 31.34707299 | L25: 27.41174533 | M25: 27.41174533 | N25: 27.41174533 | O25: 2.041326 | P25: 38.60823965 | Q25: 37.90449172 | R25: 37.90449172 | S25: 0 | T25: 0 | U25: 0 | V25: 0 | W25: 0 | X25: 0 | Y25: 0 | Z25: 0 | AA25: 0 | AB25: 0 | AC25: 0 | AD25: 0 | AE25: 0 | AF25: 0 | AG25: 0 | AH25: 0 | AI25: 0
B26: AÇÕES PN PROGEN S/A | D26: 0 | E26: 0 | F26: 0 | G26: 0 | H26: 0 | I26: 0 | J26: 0 | K26: 0 | L26: 0 | M26: 0 | N26: 24.75000268 | O26: 23.75074104 | P26: 23.36432386 | Q26: 22.5571702 | R26: 11.43 | S26: 11.44 | T26: 11.45144 | U26: 11.45144 | V26: 11.45144 | W26: 10 | X26: 10 | Y26: 10 | Z26: 9.2 | AA26: 9.22671205 | AB26: 9.22671205 | AC26: 8.91103122 | AD26: 0 | AE26: 0 | AF26: 0 | AG26: 0 | AH26: 0 | AI26: 0
B27: AÇÕES ON AMATA S/A | D27: 2.4998763 | E27: 4.15018398 | F27: 3.93195795 | G27: 5.04993328 | H27: 6.12551002 | I27: 20.04925626 | J27: 20.04900295 | K27: 20.04900273 | L27: 20.04900263 | M27: 21.23500243 | N27: 21.23500241 | O27: 21.90592228 | P27: 21.90600223 | Q27: 21.90600214 | R27: 20.80001216 | S27: 20.80001203 | T27: 20.80001198 | U27: 20.80001192 | V27: 20.80001188 | W27: 33.14890515 | X27: 33.01610374 | Y27: 27.0000021 | Z27: 11.63415563 | AA27: 11.11022367 | AB27: 10.88231758 | AC27: 12.68355881 | AD27: 12.75688872 | AE27: 7.2003619 | AF27: 6.72917219 | AG27: 5.57097656 | AH27: 5.2067935 | AI27: 3.50275069
B28: AÇÕES PN CI&T SOFTWARE S/A | D28: 17.81681141 | E28: 17.39235481 | F28: 17.51331527 | G28: 17.7409721 | H28: 17.38312362 | I28: 18.25658545 | J28: 18.32757014 | K28: 17.85614267 | L28: 18.08246605 | M28: 17.95337227 | N28: 19.26883349 | O28: 20.59430544 | P28: 20.61435941 | Q28: 22.33868256 | R28: 23.91021356 | S28: 24.90781901 | T28: 25.71698082 | U28: 28.00507829 | V28: 31.09080829 | W28: 26.37750158 | X28: 26.95624433 | Y28: 29.24097904 | Z28: 29.76238227 | AA28: 28.76886304 | AB28: 32.94495944 | AC28: 35.19129167 | AD28: 36.7738222 | AE28: 34.89640636 | AF28: 42.23591962 | AG28: 47.64700315 | AH28: 47.96883702 | AI28: 52.57580052
B29: AÇÕES PN COMTRAFO INDUSTRIA DE TRANSFORMADORES ELETRICOS S/A | D29: 3.604 | E29: 7.17698181 | F29: 7.01598101 | G29: 15.636 | H29: 15.636 | I29: 15.636 | J29: 18.34281781 | K29: 11.94405146 | L29: 15.47296204 | M29: 17.13049816 | N29: 17.91451222 | O29: 19.22453661 | P29: 20.12961928 | Q29: 20.12961928 | R29: 18.70881937 | S29: 0 | T29: 0 | U29: 0 | V29: 0 | W29: 0 | X29: 0 | Y29: 0 | Z29: 0 | AA29: 0 | AB29: 0 | AC29: 0 | AD29: 0 | AE29: 0 | AF29: 0 | AG29: 0 | AH29: 0 | AI29: 0
B30: AÇÕES PN ALTUS PARTICIPACOES S/A | D30: 17.19989762 | E30: 7.54370677 | F30: 7.281 | G30: 27.826 | H30: 21.09785055 | I30: 18.28545295 | J30: 19.17264338 | K30: 17.61818138 | L30: 16.72585846 | M30: 17.02632804 | N30: 17.30626479 | O30: 17.48473104 | P30: 17.57198588 | Q30: 18.43116699 | R30: 18.24382343 | S30: 19.91470446 | T30: 18.69368372 | U30: 18.69368372 | V30: 18.69368372 | W30: 12.09900781 | X30: 12.09933965 | Y30: 0 | Z30: 0 | AA30: 0 | AB30: 0 | AC30: 0 | AD30: 0 | AE30: 0 | AF30: 0 | AG30: 0 | AH30: 0 | AI30: 0
B31: AÇÕES PN IBEMA COMPANHIA BRASILEIRA DE PAPEL | D31: 19.936 | E31: 9.62878663 | F31: 11.271 | G31: 10.99737222 | H31: 10.74492621 | I31: 10.26076799 | J31: 10.25650009 | K31: 11.28812039 | L31: 11.72463833 | M31: 12.46298357 | N31: 12.19771742 | O31: 12.84347274 | P31: 13.28268133 | Q31: 13.06458063 | R31: 0 | S31: 0 | T31: 0 | U31: 0 | V31: 0 | W31: 0 | X31: 0 | Y31: 0 | Z31: 0 | AA31: 0 | AB31: 0 | AC31: 0 | AD31: 0 | AE31: 0 | AF31: 0 | AG31: 0 | AH31: 0 | AI31: 0
B32: AÇÕES PN LIFEMED IND. DE EQUIP. E ARTIGOS MED. E HOSPIT. S/A | D32: 10.34171645 | E32: 12.08910834 | F32: 11.92931106 | G32: 7.72531872 | H32: 7.725 | I32: 7.725 | J32: 5.12896321 | K32: 10.97398664 | L32: 9.85550645 | M32: 10.55928657 | N32: 11.36206671 | O32: 11.54972674 | P32: 11.66148676 | Q32: 0 | R32: 0 | S32: 0 | T32: 0 | U32: 0 | V32: 0 | W32: 0 | X32: 0 | Y32: 0 | Z32: 0 | AA32: 0 | AB32: 0 | AC32: 0 | AD32: 0 | AE32: 0 | AF32: 0 | AG32: 0 | AH32: 0 | AI32: 0
B33: AÇÕES PN PROCABLE ENERGIA E TELECOMUNICACOES S/A | D33: 7.835 | E33: 10.23306638 | F33: 11.057 | G33: 11.317 | H33: 11.317 | I33: 11.317 | J33: 11.46822264 | K33: 11.46822264 | L33: 13.6926817 | M33: 12.04044509 | N33: 11.03029984 | O33: 9.45242588 | P33: 7.66834581 | Q33: 9.33858598 | R33: 10.12487552 | S33: 8.40698143 | T33: 9.97161819 | U33: 8.67025459 | V33: 8.67025459 | W33: 0 | X33: 0 | Y33: 0 | Z33: 0 | AA33: 0 | AB33: 0 | AC33: 0 | AD33: 0 | AE33: 0 | AF33: 0 | AG33: 0 | AH33: 0 | AI33: 0
B34: AÇÕES PN GRUPO A EDUCACAO S/A | D34: 9.93812691 | E34: 9.60508455 | F34: 9.58914861 | G34: 8.682 | H34: 8.794 | I34: 8.794 | J34: 9.12675878 | K34: 9.12675878 | L34: 9.231 | M34: 10.412 | N34: 10.412 | O34: 11.26086772 | P34: 11.42941722 | Q34: 0 | R34: 0 | S34: 0 | T34: 0 | U34: 0 | V34: 0 | W34: 0 | X34: 0 | Y34: 0 | Z34: 0 | AA34: 0 | AB34: 0 | AC34: 0 | AD34: 0 | AE34: 0 | AF34: 0 | AG34: 0 | AH34: 0 | AI34: 0
B35: AÇÕES ON NORTEC QUIMICA S/A | D35: 0 | E35: 0 | F35: 0 | G35: 0 | H35: 0 | I35: 0 | J35: 0 | K35: 7.672 | L35: 9.10016907 | M35: 9.64021807 | N35: 10.38216907 | O35: 10.46176907 | P35: 11.63256907 | Q35: 12.4568596 | R35: 13.46598078 | S35: 14.40316907 | T35: 15.91856907 | U35: 16.59810907 | V35: 16.60370907 | W35: 18.32096907 | X35: 19.10076907 | Y35: 19.86456907 | Z35: 18.84516907 | AA35: 19.63116907 | AB35: 20.39396907 | AC35: 20.18736907 | AD35: 21.75096907 | AE35: 22.83376907 | AF35: 23.94320007 | AG35: 24.72900007 | AH35: 24.75880007 | AI35: 25.05540007
B36: AÇÕES PN CIPHER S/A | D36: 10.00023674 | E36: 6.49847323 | F36: 6.384 | G36: 6.438 | H36: 6.438 | I36: 6.438 | J36: 4.91368784 | K36: 4.91368784 | L36: 4.914 | M36: 8.069 | N36: 8.069 | O36: 9.75171569 | P36: 10.04891737 | Q36: 11.10026464 | R36: 10.98878436 | S36: 11.99641068 | T36: 0 | U36: 0 | V36: 0 | W36: 0 | X36: 0 | Y36: 0 | Z36: 0 | AA36: 0 | AB36: 0 | AC36: 0 | AD36: 0 | AE36: 0 | AF36: 0 | AG36: 0 | AH36: 0 | AI36: 0
B37: AÇÕES PN PRÁTICA PARTICIPAÇÕES S/A | D37: 0 | E37: 0 | F37: 0 | G37: 0 | H37: 0 | I37: 0 | J37: 7.39999875 | K37: 7.45797848 | L37: 7.60079921 | M37: 7.39729599 | N37: 7.29715959 | O37: 7.99661023 | P37: 7.99372627 | Q37: 7.99102255 | R37: 7.99003119 | S37: 8.13781724 | T37: 8.05465005 | U37: 8.1184578 | V37: 8.06735752 | W37: 5.4 | X37: 5.4 | Y37: 5.46597073 | Z37: 7.626 | AA37: 7.626 | AB37: 7.62014194 | AC37: 8.05003491 | AD37: 8.04967441 | AE37: 0 | AF37: 0 | AG37: 0 | AH37: 0 | AI37: 0
B38: AÇÕES PN QUALITY SOFTWARE S/A | D38: 4.696 | E38: 3.97142046 | F38: 4.165 | G38: 7.23270352 | H38: 7.34440336 | I38: 7.3057934 | J38: 7.31470339 | K38: 7.4153312 | L38: 7.4180312 | M38: 7.13939148 | N38: 7.14479148 | O38: 5.967 | P38: 5.967 | Q38: 5.967 | R38: 7.69532092 | S38: 0 | T38: 0 | U38: 0 | V38: 0 | W38: 0 | X38: 0 | Y38: 0 | Z38: 0 | AA38: 0 | AB38: 0 | AC38: 0 | AD38: 0 | AE38: 0 | AF38: 0 | AG38: 0 | AH38: 0 | AI38: 0
B39: AÇÕES PN REIVAX S/A AUTOMACAO E CONTROLE | D39: 1.672 | E39: 7.7485175 | F39: 8.08408163 | G39: 7.368 | H39: 6.78766563 | I39: 7.29642557 | J39: 7.39217087 | K39: 7.67646364 | L39: 5.614 | M39: 5.947 | N39: 5.947 | O39: 8.57016626 | P39: 0 | Q39: 0 | R39: 0 | S39: 0 | T39: 0 | U39: 0 | V39: 0 | W39: 0 | X39: 0 | Y39: 0 | Z39: 0 | AA39: 0 | AB39: 0 | AC39: 0 | AD39: 0 | AE39: 0 | AF39: 0 | AG39: 0 | AH39: 0 | AI39: 0
B40: AÇÕES PNB CLAMPER INDUSTRIA E COMERCIO S/A | D40: 3.425 | E40: 2.74897488 | F40: 3.142 | G40: 2.59 | H40: 2.59 | I40: 2.59 | J40: 1.5895824 | K40: 1.5895824 | L40: 2.591 | M40: 5.10287965 | N40: 5.2675591 | O40: 0 | P40: 0 | Q40: 0 | R40: 0 | S40: 0 | T40: 0 | U40: 0 | V40: 0 | W40: 0 | X40: 0 | Y40: 0 | Z40: 0 | AA40: 0 | AB40: 0 | AC40: 0 | AD40: 0 | AE40: 0 | AF40: 0 | AG40: 0 | AH40: 0 | AI40: 0
B41: AÇÕES PN POLY EASY DO BRASIL INDUSTRIA E COMERCIO S/A | D41: 0 | E41: 0 | F41: 0 | G41: 5.924 | H41: 5.924 | I41: 0 | J41: 0 | K41: 0 | L41: 2.768 | M41: 2.988 | N41: 2.988 | O41: 2.254 | P41: 0.088 | Q41: 0.088 | R41: 0.147 | S41: 0.147 | T41: 0.147 | U41: 0.147 | V41: 0.147 | W41: 0 | X41: 0 | Y41: 0 | Z41: 0 | AA41: 0 | AB41: 0 | AC41: 0 | AD41: 0 | AE41: 0 | AF41: 0 | AG41: 0 | AH41: 0 | AI41: 0
B42: AÇÕES PNC GRANO ALIMENTOS S/A | D42: 2.086 | E42: 1.20705692 | F42: 1.20705692 | G42: 1.20705692 | H42: 1.20705692 | I42: 1.20705692 | J42: 1.20705692 | K42: 1.53205799 | L42: 1.69079041 | M42: 1.03367172 | N42: 1.0964739 | O42: 1.12881702 | P42: 0 | Q42: 0 | R42: 0 | S42: 0 | T42: 0 | U42: 0 | V42: 0 | W42: 0 | X42: 0 | Y42: 0 | Z42: 0 | AA42: 0 | AB42: 0 | AC42: 0 | AD42: 0 | AE42: 0 | AF42: 0 | AG42: 0 | AH42: 0 | AI42: 0
B43: AÇÕES PN NANOCORE BIOTECNOLOGIA S/A | D43: 0.4686444 | E43: 2.0344674 | F43: 1.97210663 | G43: 1.97210663 | H43: 2.0446446 | I43: 2.0446446 | J43: 2.0446446 | K43: 2.03804124 | L43: 1.84306127 | M43: 0.99572024 | N43: 0.88679054 | O43: 0.79766624 | P43: 0.79766624 | Q43: 0.79766624 | R43: 0 | S43: 0 | T43: 0.79766624 | U43: 0.79766624 | V43: 0.79766624 | W43: 0.79766624 | X43: 0 | Y43: 0 | Z43: 0 | AA43: 0 | AB43: 0 | AC43: 0 | AD43: 0 | AE43: 0 | AF43: 0 | AG43: 0 | AH43: 0 | AI43: 0
B44: AÇÕES PND GRANO ALIMENTOS S/A | D44: 0 | E44: 0.71494308 | F44: 0.71494308 | G44: 0.71494308 | H44: 0.71494308 | I44: 0.71494308 | J44: 0.71494308 | K44: 0.9074421 | L44: 1.00145973 | M44: 0.61224679 | N44: 0.6494447 | O44: 0.66860163 | P44: 0 | Q44: 0 | R44: 0 | S44: 0 | T44: 0 | U44: 0 | V44: 0 | W44: 0 | X44: 0 | Y44: 0 | Z44: 0 | AA44: 0 | AB44: 0 | AC44: 0 | AD44: 0 | AE44: 0 | AF44: 0 | AG44: 0 | AH44: 0 | AI44: 0
B45: AÇÕES ON OURO FINO SAÚDE ANIMAL S/A | D45: 0 | E45: 0 | F45: 0 | G45: 0 | H45: 0 | I45: 0 | J45: 0 | K45: 0 | L45: 0 | M45: 0 | N45: 0 | O45: 0 | P45: 37.72549717 | Q45: 35.94841576 | R45: 40.79368168 | S45: 41.80539826 | T45: 43.67533131 | U45: 0 | V45: 0 | W45: 0 | X45: 0 | Y45: 0 | Z45: 0 | AA45: 0 | AB45: 0 | AC45: 0 | AD45: 0 | AE45: 0 | AF45: 0 | AG45: 0 | AH45: 0 | AI45: 0
B46: AÇÕES ON ZENVIA MOBILE SERVICOS DIGITAIS S/A | D46: 0 | E46: 0 | F46: 0 | G46: 0 | H46: 0 | I46: 0 | J46: 0 | K46: 0 | L46: 0 | M46: 0 | N46: 0 | O46: 0 | P46: 0 | Q46: 35.50060043 | R46: 35.50060044 | S46: 34.49704854 | T46: 36.24347786 | U46: 36.9309093 | V46: 37.85283199 | W46: 38.98550186 | X46: 39.88124159 | Y46: 40.12754113 | Z46: 40.12754113 | AA46: 39.7096405 | AB46: 39.94387534 | AC46: 40.46868975 | AD46: 40.32250153 | AE46: 39.18700801 | AF46: 41.03660734 | AG46: 41.72097983 | AH46: 42.63443156 | AI46: 42.3624588
B47: AÇÕES ON OURO FINO PARTICIPAÇÕES E EMPREENDIMENTOS S/A | D47: 0 | E47: 0 | F47: 0 | G47: 0 | H47: 0 | I47: 0 | J47: 0 | K47: 0 | L47: 0 | M47: 0 | N47: 0 | O47: 0 | P47: 0 | Q47: 0 | R47: 0 | S47: 24.98148842 | T47: 24.59759065 | U47: 25.71201125 | V47: 29.11005072 | W47: 31.41228714 | X47: 31.54506669 | Y47: 0 | Z47: 0 | AA47: 0 | AB47: 0 | AC47: 0 | AD47: 0 | AE47: 0 | AF47: 0 | AG47: 0 | AH47: 0 | AI47: 0
B48: AÇÕES ON LIFEMED IND. DE EQUIP. E ARTIGOS MED. E HOSP. S/A | D48: 0 | E48: 0 | F48: 0 | G48: 0 | H48: 0 | I48: 0 | J48: 0 | K48: 0 | L48: 0 | M48: 0 | N48: 0 | O48: 0 | P48: 0 | Q48: 19.9910252 | R48: 20.0323852 | S48: 17.85756667 | T48: 17.84590667 | U48: 17.91476668 | V48: 17.91476668 | W48: 17.75130666 | X48: 17.51238663 | Y48: 17.2314466 | Z48: 17.28952661 | AA48: 17.89980667 | AB48: 17.92906668 | AC48: 17.64944665 | AD48: 18.05908669 | AE48: 16.76042655 | AF48: 18.08968175 | AG48: 18.66010417 | AH48: 17.33290706 | AI48: 16.76698798
B49: AÇÕES ON QUALITY SOFTWARE S/A | D49: 0 | E49: 0 | F49: 0 | G49: 0 | H49: 0 | I49: 0 | J49: 0 | K49: 0 | L49: 0 | M49: 0 | N49: 0 | O49: 0 | P49: 0 | Q49: 0 | R49: 0 | S49: 7.45038314 | T49: 7.26452832 | U49: 8.28350729 | V49: 11.2584306 | W49: 11.43181221 | X49: 11.43181221 | Y49: 11.43181221 | Z49: 14.76372884 | AA49: 14.54381977 | AB49: 15.18597778 | AC49: 15.24990771 | AD49: 15.18935619 | AE49: 14.44532609 | AF49: 14.53316478 | AG49: 14.47417252 | AH49: 15.1974124 | AI49: 15.33306861
B50: AÇÕES ON ALTUS PARTICIPAÇÕES S/A | D50: 0 | E50: 0 | F50: 0 | G50: 0 | H50: 0 | I50: 0 | J50: 0 | K50: 0 | L50: 0 | M50: 0 | N50: 0 | P50: 2e-08 | Q50: 0.00273821 | R50: 0.00214115 | S50: 0.00746621 | T50: 0.00357484 | U50: 0.00357485 | V50: 0.00357485 | W50: 0.00099217 | X50: 0 | Y50: 0 | Z50: 0 | AA50: 0 | AB50: 0 | AC50: 0 | AD50: 0 | AE50: 0 | AF50: 0 | AG50: 0 | AH50: 0 | AI50: 0
B51: AÇÕES ON BRQ SOLUCOES EM INFORMATICA S/A | D51: 0 | E51: 0 | F51: 0 | G51: 0 | H51: 0 | I51: 0 | J51: 0 | K51: 0 | L51: 0 | M51: 0 | N51: 0 | O51: 0 | P51: 0 | Q51: 0 | R51: 0 | S51: 0 | T51: 0 | U51: 52.89847561 | V51: 52.69834066 | W51: 47.50000001 | X51: 47.50000001 | Y51: 47.66038369 | Z51: 44.67077879 | AA51: 43.85320322 | AB51: 43.60995782 | AC51: 44.50385048 | AD51: 44.49187872 | AE51: 49.07825019 | AF51: 51.71669392 | AG51: 53.66374049 | AH51: 51.06538683 | AI51: 52.00535746
B52: AÇÕES ON SUNEW FILMES FOTOVOLTAICOS IMPRESSOS S.A | D52: 0 | E52: 0 | F52: 0 | G52: 0 | H52: 0 | I52: 0 | J52: 0 | K52: 0 | L52: 0 | M52: 0 | N52: 0 | O52: 0 | P52: 0 | Q52: 0 | R52: 0 | S52: 0 | T52: 0 | U52: 55.31817121 | V52: 58.20320903 | W52: 55.53675151 | X52: 53.98720293 | Y52: 52.23585575 | Z52: 45.48990366 | AA52: 50.40531486 | AB52: 47.23439101 | AC52: 43.41960762 | AD52: 40.76884997 | AE52: 43.03074961 | AF52: 42.16118308 | AG52: 39.86332093 | AH52: 38.28499025 | AI52: 55.44785486
B53: AÇÕES ON BRASILIANA PARTICIPAÇÕES S/A | D53: 0 | E53: 0 | F53: 0 | G53: 0 | H53: 0 | I53: 0 | J53: 0 | K53: 0 | L53: 0 | M53: 0 | N53: 0 | O53: 0 | P53: 0 | Q53: 0 | R53: 0 | S53: 0 | T53: 0 | U53: 311.5948983 | V53: 311.5948983 | W53: 315.9324744 | X53: 315.9324744 | Y53: 14.77742552 | Z53: 83.79080917 | AA53: 81.99588612 | AB53: 81.96127074 | AC53: 82.30927073 | AD53: 71.51342472 | AE53: 69.40465552 | AF53: 61.50265563 | AG53: 56.1261942 | AH53: 32.58265607 | AI53: 26.98557922
B54: AÇÕES PNA PRÁTICA KLIMAQUIP INDÚSTRIA E COMÉRCIO S.A | D54: 0 | E54: 0 | F54: 0 | G54: 0 | H54: 0 | I54: 0 | J54: 0 | K54: 0 | L54: 0 | M54: 0 | N54: 0 | O54: 0 | P54: 0 | Q54: 0 | R54: 0 | S54: 0 | T54: 0 | U54: 0 | V54: 0 | W54: 0 | X54: 0 | Y54: 0 | Z54: 0 | AA54: 0 | AB54: 0 | AC54: 0 | AE54: 8.4053009 | AF54: 8.47539644 | AG54: 8.42894528 | AH54: 8.59232681 | AI54: 8.25903814
B55: AÇÕES ON BLOCKBIT TECNOLOGIA S/A | D55: 0 | E55: 0 | F55: 0 | G55: 0 | H55: 0 | I55: 0 | J55: 0 | K55: 0 | L55: 0 | M55: 0 | N55: 0 | O55: 0 | P55: 0 | Q55: 0 | R55: 0 | S55: 0 | T55: 0 | U55: 0 | V55: 0 | W55: 0 | X55: 0 | Y55: 0 | Z55: 0 | AA55: 0 | AB55: 0 | AC55: 0 | AD55: 0 | AE55: 0 | AF55: 0 | AG55: 0 | AH55: 6.76771535 | AI55: 6.61340394
B56: AÇÕES PN BRASILIANA PARTICIPAÇÕES S/A | D56: 0 | E56: 0 | F56: 0 | G56: 0 | H56: 0 | I56: 0 | J56: 0 | K56: 0 | L56: 0 | M56: 0 | N56: 0 | O56: 0 | P56: 0 | Q56: 0 | R56: 0 | S56: 0 | T56: 0 | U56: 51.93248386 | V56: 51.93248382 | W56: 52.65541322 | X56: 52.65541322 | Y56: 2.46290429 | Z56: 13.96513508 | AA56: 13.66598123 | AB56: 13.660212 | AC56: 13.718212 | AD56: 11.91890431 | AE56: 11.56744277 | AF56: 10.25044277 | AG56: 9.35436584 | AH56: 5.43044276 | AI56: 4.4975966
B57: AÇÕES ON RECEPTA BIOPHARMA S.A | D57: 0 | E57: 0 | F57: 0 | G57: 0 | H57: 0 | I57: 0 | J57: 0 | K57: 0 | L57: 0 | M57: 0 | N57: 0 | O57: 0 | P57: 0 | Q57: 0 | R57: 0 | S57: 0 | T57: 0 | U57: 0 | V57: 0 | W57: 24.95023099 | X57: 24.69093404 | Y57: 24.5345288 | Z57: 18.190132 | AA57: 18.190132 | AB57: 17.98691328 | AC57: 3.08060745 | AD57: 3.13065807 | AE57: 2.93092635 | AF57: 2.69722293 | AG57: 2.55555827 | AH57: 2.39816911 | AI57: 2.31925814
B58: AÇÕES ON CIPHER S/A | D58: 0 | E58: 0 | F58: 0 | G58: 0 | H58: 0 | I58: 0 | J58: 0 | K58: 0 | L58: 0 | M58: 0 | N58: 0 | O58: 0 | P58: 0 | Q58: 0 | R58: 0 | S58: 0 | T58: 17.30253009 | U58: 16.74011375 | V58: 17.40577652 | W58: 16.82483446 | X58: 16.73313127 | Y58: 16.74383773 | Z58: 16.49758906 | AA58: 16.89698672 | AB58: 17.0689884 | AC58: 17.41834498 | AD58: 17.78050277 | AE58: 16.92491663 | AF58: 16.30574719 | AG58: 15.76029858 | AH58: 0 | AI58: 0
B59: AÇÕES PN OCEANA OFFSHORE S/A | D59: 0 | E59: 0 | F59: 0 | G59: 0 | H59: 0 | I59: 0 | J59: 0 | K59: 0 | L59: 0 | M59: 0 | N59: 0 | O59: 0 | P59: 0 | Q59: 0 | R59: 0 | S59: 0 | T59: 0 | U59: 62.58211027 | V59: 47.68107544 | W59: 63.23132714 | X59: 69.26933326 | Y59: 69.23867173 | Z59: 73.01781884 | AA59: 71.0003055 | AB59: 72.47619509 | AC59: 67.72149532 | AD59: 72.09512696 | AE59: 0 | AF59: 0 | AG59: 0 | AH59: 0 | AI59: 0
B60: AÇÕES ON TECNORED DESENVOLVIMENTO TECNOLOGICO S/A | D60: 55.37116471 | E60: 63.76860904 | F60: 67.58425207 | G60: 67.865427 | H60: 63.59746223 | I60: 58.15357103 | J60: 57.89447436 | K60: 49.92447013 | L60: 40.02482482 | M60: 26.018619 | N60: 0 | O60: 0 | P60: 0 | Q60: 0 | R60: 0 | S60: 0 | T60: 0 | U60: 0 | V60: 0 | W60: 0 | X60: 0 | Y60: 0 | Z60: 0 | AA60: 0 | AB60: 0 | AC60: 0 | AD60: 0 | AE60: 0 | AF60: 0 | AG60: 0 | AH60: 0 | AI60: 0
B61: AÇÕES ON VIGOR ALIMENTOS S/A | D61: 0 | E61: 0 | F61: 0 | G61: 374.4931978 | H61: 383.2374336 | I61: 384.6425553 | J61: 384.8564806 | K61: 382.4577528 | L61: 415.4060183 | M61: 417.1466352 | N61: 0 | O61: 0 | P61: 0 | Q61: 0 | R61: 0 | S61: 0 | T61: 0 | U61: 0 | V61: 0 | W61: 0 | X61: 0 | Y61: 0 | Z61: 0 | AA61: 0 | AB61: 0 | AC61: 0 | AD61: 0 | AE61: 0 | AF61: 0 | AG61: 0 | AH61: 0 | AI61: 0
B62: AÇÕES PNA TOPSPORTS VENTURES S/A | D62: 0 | E62: 0 | F62: 0 | H62: 8.071 | I62: 8.64770733 | J62: 8.62892016 | K62: 0 | L62: 0 | M62: 0 | N62: 0 | O62: 0 | P62: 0 | Q62: 0 | R62: 0 | S62: 0 | T62: 0 | U62: 0 | V62: 0 | W62: 0 | X62: 0 | Y62: 0 | Z62: 0 | AA62: 0 | AB62: 0 | AC62: 0 | AD62: 0 | AE62: 0 | AF62: 0 | AG62: 0 | AH62: 0 | AI62: 0
B63: AÇÕES PNB NORTEC QUIMICA S/A | D63: 5.513 | E63: 7.18871627 | F63: 7.4957148 | G63: 6.225 | H63: 6.225 | I63: 6.225 | J63: 7.9158 | K63: 0 | L63: 0 | M63: 0 | N63: 0 | O63: 0 | P63: 0 | Q63: 0 | R63: 0 | S63: 0 | T63: 0 | U63: 0 | V63: 0 | W63: 0 | X63: 0 | Y63: 0 | Z63: 0 | AA63: 0 | AB63: 0 | AC63: 0 | AD63: 0 | AE63: 0 | AF63: 0 | AG63: 0 | AH63: 0 | AI63: 0
B64: AÇÕES ON LBR - LACTEOS BRASIL S/A | D64: 0 | E64: 858.2424025 | F64: 819.0994706 | G64: 793.2437099 | H64: 767.7794875 | I64: 48.73285128 | J64: 0 | K64: 0 | L64: 0 | M64: 0 | N64: 0 | O64: 0 | P64: 0 | Q64: 0 | R64: 0 | S64: 0 | T64: 0 | U64: 0 | V64: 0 | W64: 0 | X64: 0 | Y64: 0 | Z64: 0 | AA64: 0 | AB64: 0 | AC64: 0 | AD64: 0 | AE64: 0 | AF64: 0 | AG64: 0 | AH64: 0 | AI64: 0
B65: AÇÕES ON SENIOR SOLUTION S/A | D65: 0 | E65: 0 | F65: 0 | H65: 5.9647526 | I65: 6.48332238 | J65: 0 | K65: 0 | L65: 0 | M65: 0 | N65: 0 | O65: 0 | P65: 0 | Q65: 0 | R65: 0 | S65: 0 | T65: 0 | U65: 0 | V65: 0 | W65: 0 | X65: 0 | Y65: 0 | Z65: 0 | AA65: 0 | AB65: 0 | AC65: 0 | AD65: 0 | AE65: 0 | AF65: 0 | AG65: 0 | AH65: 0 | AI65: 0
B66: AÇÕES PNA LINX S/A | D66: 53.97009952 | E66: 90.10869415 | F66: 91.50401167 | G66: 88.51937636 | H66: 88.12508493 | I66: 87.25317356 | J66: 0 | K66: 0 | L66: 0 | M66: 0 | N66: 0 | O66: 0 | P66: 0 | Q66: 0 | R66: 0 | S66: 0 | T66: 0 | U66: 0 | V66: 0 | W66: 0 | X66: 0 | Y66: 0 | Z66: 0 | AA66: 0 | AB66: 0 | AC66: 0 | AD66: 0 | AE66: 0 | AF66: 0 | AG66: 0 | AH66: 0 | AI66: 0
B67: AÇÕES PN SENIOR SOLUTION S/A | D67: 0 | E67: 1.79861588 | F67: 2.147 | G67: 5.72050495 | H67: 0 | I67: 0 | J67: 0 | K67: 0 | L67: 0 | M67: 0 | N67: 0 | O67: 0 | P67: 0 | Q67: 0 | R67: 0 | S67: 0 | T67: 0 | U67: 0 | V67: 0 | W67: 0 | X67: 0 | Y67: 0 | Z67: 0 | AA67: 0 | AB67: 0 | AC67: 0 | AD67: 0 | AE67: 0 | AF67: 0 | AG67: 0 | AH67: 0 | AI67: 0
B68: AÇÕES PNB TEIKON TECNOLOGIA INDUSTRIAL S/A | D68: -4.656612873e-16 | E68: 0 | F68: 0 | G68: 3.06866974 | H68: 0 | I68: 0 | J68: 0 | K68: 0 | L68: 0 | M68: 0 | N68: 0 | O68: 0 | P68: 0 | Q68: 0 | R68: 0 | S68: 0 | T68: 0 | U68: 0 | V68: 0 | W68: 0 | X68: 0 | Y68: 0 | Z68: 0 | AA68: 0 | AB68: 0 | AC68: 0 | AD68: 0 | AE68: 0 | AF68: 0 | AG68: 0 | AH68: 0 | AI68: 0
B69: AÇÕES PN TOPSPORTS VENTURES S/A | D69: 7.3157356 | E69: 4.68147705 | F69: 4.721 | G69: 7.41068151 | H69: 0 | I69: 0 | J69: 0 | K69: 0 | L69: 0 | M69: 0 | N69: 0 | O69: 0 | P69: 0 | Q69: 0 | R69: 0 | S69: 0 | T69: 0 | U69: 0 | V69: 0 | W69: 0 | X69: 0 | Y69: 0 | Z69: 0 | AA69: 0 | AB69: 0 | AC69: 0 | AD69: 0 | AE69: 0 | AF69: 0 | AG69: 0 | AH69: 0 | AI69: 0
B70: AÇÕES PN CRP CADERI CAPITAL DE RISCO S/A | D70: 0.08900055 | E70: 0.06000055 | F70: 0.05939449 | G70: 0 | H70: 0 | I70: 0 | J70: 0 | K70: 0 | L70: 0 | M70: 0 | N70: 0 | O70: 0 | P70: 0 | Q70: 0 | R70: 0 | S70: 0 | T70: 0 | U70: 0 | V70: 0 | W70: 0 | X70: 0 | Y70: 0 | Z70: 0 | AA70: 0 | AB70: 0 | AC70: 0 | AD70: 0 | AE70: 0 | AF70: 0 | AG70: 0 | AH70: 0 | AI70: 0
B71: AÇÕES PNB ALFATEST IND E COM DE PRODUTOS ELETRONICOS S/A | D71: 0 | E71: 0.96994792 | F71: 1.04493936 | G71: 0 | H71: 0 | I71: 0 | J71: 0 | K71: 0 | L71: 0 | M71: 0 | N71: 0 | O71: 0 | P71: 0 | Q71: 0 | R71: 0 | S71: 0 | T71: 0 | U71: 0 | V71: 0 | W71: 0 | X71: 0 | Y71: 0 | Z71: 0 | AA71: 0 | AB71: 0 | AC71: 0 | AD71: 0 | AE71: 0 | AF71: 0 | AG71: 0 | AH71: 0 | AI71: 0
B72: AÇÕES PN COMTEX IND. E COMERCIO, IMPORTACAO E EXPORTACAO S/A | D72: 3.77319802 | E72: 4.22988034 | F72: 0 | G72: 0 | H72: 0 | I72: 0 | J72: 0 | K72: 0 | L72: 0 | M72: 0 | N72: 0 | O72: 0 | P72: 0 | Q72: 0 | R72: 0 | S72: 0 | T72: 0 | U72: 0 | V72: 0 | W72: 0 | X72: 0 | Y72: 0 | Z72: 0 | AA72: 0 | AB72: 0 | AC72: 0 | AD72: 0 | AE72: 0 | AF72: 0 | AG72: 0 | AH72: 0 | AI72: 0
B73: AÇÕES ON NUTRIPLANT INDUSTRIA E COMERCIO S/A | D73: 1.591 | E73: 0 | F73: 0 | G73: 0 | H73: 0 | I73: 0 | J73: 0 | K73: 0 | L73: 0 | M73: 0 | N73: 0 | O73: 0 | P73: 0 | Q73: 0 | R73: 0 | S73: 0 | T73: 0 | U73: 0 | V73: 0 | W73: 0 | X73: 0 | Y73: 0 | Z73: 0 | AA73: 0 | AB73: 0 | AC73: 0 | AD73: 0 | AE73: 0 | AF73: 0 | AG73: 0 | AH73: 0 | AI73: 0
B74: AÇÕES PN GENOA BIOTECNOLOGIA S/A | D74: 0.442 | E74: 0 | F74: 0 | G74: 0 | H74: 0 | I74: 0 | J74: 0 | K74: 0 | L74: 0 | M74: 0 | N74: 0 | O74: 0 | P74: 0 | Q74: 0 | R74: 0 | S74: 0 | T74: 0 | U74: 0 | V74: 0 | W74: 0 | X74: 0 | Y74: 0 | Z74: 0 | AA74: 0 | AB74: 0 | AC74: 0 | AD74: 0 | AE74: 0 | AF74: 0 | AG74: 0 | AH74: 0 | AI74: 0
B75: AÇÕES PN HIGH BRIDGE SOLUTIONS INDUSTRIA ELETRONICA S/A | D75: 0.309 | E75: 0 | F75: 0 | G75: 0 | H75: 0 | I75: 0 | J75: 0 | K75: 0 | L75: 0 | M75: 0 | N75: 0 | O75: 0 | P75: 0 | Q75: 0 | R75: 0 | S75: 0 | T75: 0 | U75: 0 | V75: 0 | W75: 0 | X75: 0 | Y75: 0 | Z75: 0 | AA75: 0 | AB75: 0 | AC75: 0 | AD75: 0 | AE75: 0 | AF75: 0 | AG75: 0 | AH75: 0 | AI75: 0
B76: AÇÕES PN TAUM CHEMIE IND. E COM. DE PRODUTOS QUIMICOS S/A | D76: 0 | E76: 0 | F76: 0 | G76: 0 | H76: 0 | I76: 0 | J76: 0 | K76: 0 | L76: 0 | M76: 0 | N76: 0 | O76: 0 | P76: 0 | Q76: 0 | R76: 0 | S76: 0 | T76: 0 | U76: 0 | V76: 0 | W76: 0 | X76: 0 | Y76: 0 | Z76: 0 | AA76: 0 | AB76: 0 | AC76: 0 | AD76: 0 | AE76: 0 | AF76: 0 | AG76: 0 | AH76: 0 | AI76: 0
B77: RIO POLIMEROS S/A | D77: 0 | E77: 0 | F77: 0 | G77: 0 | H77: 0 | I77: 0 | J77: 0 | K77: 0 | L77: 0 | M77: 0 | N77: 0 | O77: 0 | P77: 0 | Q77: 0 | R77: 0 | S77: 0 | T77: 0 | U77: 0 | V77: 0 | W77: 0 | X77: 0 | Y77: 0 | Z77: 0 | AA77: 0 | AB77: 0 | AC77: 0 | AD77: 0 | AE77: 0 | AF77: 0 | AG77: 0 | AH77: 0 | AI77: 0
B78: TELEMAR PARTICIPACOES S/A | D78: 0 | E78: 0 | F78: 0 | G78: 0 | H78: 0 | I78: 0 | J78: 0 | K78: 0 | L78: 0 | M78: 0 | N78: 0 | O78: 0 | P78: 0 | Q78: 0 | R78: 0 | S78: 0 | T78: 0 | U78: 0 | V78: 0 | W78: 0 | X78: 0 | Y78: 0 | Z78: 0 | AA78: 0 | AB78: 0 | AC78: 0 | AD78: 0 | AE78: 0 | AF78: 0 | AG78: 0 | AH78: 0 | AI78: 0
B79: CTX PARTICIPACOES SA | D79: 0 | E79: 0 | F79: 0 | G79: 0 | H79: 0 | I79: 0 | J79: 0 | K79: 0 | L79: 0 | M79: 0 | N79: 0 | O79: 0 | P79: 0 | Q79: 0 | R79: 0 | S79: 0 | T79: 0 | U79: 0 | V79: 0 | W79: 0 | X79: 0 | Y79: 0 | Z79: 0 | AA79: 0 | AB79: 0 | AC79: 0 | AD79: 0 | AE79: 0 | AF79: 0 | AG79: 0 | AH79: 0 | AI79: 0
B80: AES TIETE ENERGIA S.A. | D80: 1646.789274 | E80: 0 | F80: 0 | G80: 0 | H80: 0 | I80: 0 | J80: 0 | K80: 0 | L80: 0 | M80: 0 | N80: 0 | O80: 0 | P80: 0 | Q80: 0 | R80: 0 | S80: 0 | T80: 0 | U80: 0 | V80: 0 | W80: 0 | X80: 0 | Y80: 0 | Z80: 0 | AA80: 0 | AB80: 0 | AC80: 0 | AD80: 0 | AE80: 0 | AF80: 0 | AG80: 0 | AH80: 0 | AI80: 0
B81: POLY EASY DO BRASIL INDUSTRIA E COMERCIO LTDA. | D81: 0 | E81: 0 | F81: 0 | G81: 0 | H81: 0 | I81: 0 | J81: 0 | K81: 0 | L81: 0 | M81: 0 | N81: 0 | O81: 0 | P81: 0 | Q81: 0 | R81: 0 | S81: 0 | T81: 0 | U81: 0 | V81: 0 | W81: 0 | X81: 0 | Y81: 0 | Z81: 0 | AA81: 0 | AB81: 0 | AC81: 0 | AD81: 0 | AE81: 0 | AF81: 0 | AG81: 0 | AH81: 0 | AI81: 0
B82: ALFATEST IND E COM DE PRODUTOS ELETRONICOS S/A | D82: 0.59681385 | E82: 0 | F82: 0 | G82: 0 | H82: 0 | I82: 0 | J82: 0 | K82: 0 | L82: 0 | M82: 0 | N82: 0 | O82: 0 | P82: 0 | Q82: 0 | R82: 0 | S82: 0 | T82: 0 | U82: 0 | V82: 0 | W82: 0 | X82: 0 | Y82: 0 | Z82: 0 | AA82: 0 | AB82: 0 | AC82: 0 | AD82: 0 | AE82: 0 | AF82: 0 | AG82: 0 | AH82: 0 | AI82: 0
B83: BRADAR INDUSTRIA S.A | D83: 1e-08 | E83: 0 | F83: 0 | G83: 0 | H83: 0 | I83: 0 | J83: 0 | K83: 0 | L83: 0 | M83: 0 | N83: 0 | O83: 0 | P83: 0 | Q83: 0 | R83: 0 | S83: 0 | T83: 0 | U83: 0 | V83: 0 | W83: 0 | X83: 0 | Y83: 0 | Z83: 0 | AA83: 0 | AB83: 0 | AC83: 0 | AD83: 0 | AE83: 0 | AF83: 0 | AG83: 0 | AH83: 0 | AI83: 0
B84: GRAUNA AEROSPACE S/A | D84: 1e-08 | E84: 0 | F84: 0 | G84: 0 | H84: 0 | I84: 0 | J84: 0 | K84: 0 | L84: 0 | M84: 0 | N84: 0 | O84: 0 | P84: 0 | Q84: 0 | R84: 0 | S84: 0 | T84: 0 | U84: 0 | V84: 0 | W84: 0 | X84: 0 | Y84: 0 | Z84: 0 | AA84: 0 | AB84: 0 | AC84: 0 | AD84: 0 | AE84: 0 | AF84: 0 | AG84: 0 | AH84: 0 | AI84: 0
B85: LATICINIOS BOM GOSTO S/A | D85: 108.1276891 | E85: 0 | F85: 0 | G85: 0 | H85: 0 | I85: 0 | J85: 0 | K85: 0 | L85: 0 | M85: 0 | N85: 0 | O85: 0 | P85: 0 | Q85: 0 | R85: 0 | S85: 0 | T85: 0 | U85: 0 | V85: 0 | W85: 0 | X85: 0 | Y85: 0 | Z85: 0 | AA85: 0 | AB85: 0 | AC85: 0 | AD85: 0 | AE85: 0 | AF85: 0 | AG85: 0 | AH85: 0 | AI85: 0
B86: MECTRON - ENGENHARIA, INDUSTRIA E COMERCIO S.A. | D86: 11.26394144 | E86: 0 | F86: 0 | G86: 0 | H86: 0 | I86: 0 | J86: 0 | K86: 0 | L86: 0 | M86: 0 | N86: 0 | O86: 0 | P86: 0 | Q86: 0 | R86: 0 | S86: 0 | T86: 0 | U86: 0 | V86: 0 | W86: 0 | X86: 0 | Y86: 0 | Z86: 0 | AA86: 0 | AB86: 0 | AC86: 0 | AD86: 0 | AE86: 0 | AF86: 0 | AG86: 0 | AH86: 0 | AI86: 0
B87: SINQIA S.A. | D87: 4.54440394 | E87: 0 | F87: 0 | G87: 0 | H87: 0 | I87: 0 | J87: 0 | K87: 0 | L87: 0 | M87: 0 | N87: 0 | O87: 0 | P87: 0 | Q87: 0 | R87: 0 | S87: 0 | T87: 0 | U87: 0 | V87: 0 | W87: 0 | X87: 0 | Y87: 0 | Z87: 0 | AA87: 0 | AB87: 0 | AC87: 0 | AD87: 0 | AE87: 0 | AF87: 0 | AG87: 0 | AH87: 0 | AI87: 0
B88: Investimento Total | D88: =SUM(D3:D17) -> 13641.37384 | E88: =SUM(E3:E17) -> 19332.19218 | F88: =SUM(F3:F17) -> 19473.3913 | G88: 19567.73889 | H88: 19686.43317 | I88: 16667.57286 | J88: =SUM(J3:J17) -> 16232.47713 | K88: 16906.67932 | L88: 17814.34932 | M88: 18117.98305 | N88: =SUM(N3:N17) -> 18069.14192 | O88: 18180.3899 | P88: 18391.592 | Q88: 18544.62815 | R88: 18388.17185 | S88: 18125.09488 | T88: 18275.97823 | U88: 16405.5477 | V88: =SUM(V3:V17) -> 16100.00254 | W88: 14970.02516 | X88: 15072.38111 | Y88: 14609.24279 | Z88: 15682.53168 | AA88: 14959.60466 | AB88: 15599.91416 | AC88: 15152.49013 | AD88: 15391.07817 | AE88: 15399.38899 | AF88: 15922.41677 | AG88: 9121.441652 | AH88: 9109.410583 | AI88: =SUM(AI3:AI17) -> 9159.74777

Sheet Participações em Não Coligadas (hidden)
Z1: R$ milhões
B2: Empresa / Company | C2: Setor/Segmento (Sector) | D2: 4T/10 | E2: 4T/11 | F2: 1T/12 | G2: 2T/12 | H2: 3T/12 | I2: 4T/12 | J2: 1T/13 | K2: 2T/13 | L2: 3T/13 | M2: 4T/13 | N2: 1T/14 | O2: 2T/14 | P2: 3T/14 | Q2: 4T/14 | R2: 1T/15 | S2: 2T/15 | T2: 3T/15 | U2: 4T/15 | V2: 1T/16 | W2: 2T/16 | X2: 3T/16 | Y2: 4T/16 | Z2: 1T/17 | AA2: 2T/17 | AB2: 3T/17 | AC2: 4T/17 | AD2: 1T/18 | AE2: 2T/18 | AF2: 3T/18 | AG2: 4T/18 | AH2: 1T/19 | AI2: 2T/19
B3: AÇÕES PN PETROLEO BRASILEIRO S/A - PETROBRAS | C3: Petróleo, Gás e Biocombustíveis | D3: 41865.5588 | E3: 28678.03662 | F3: 31226.59927 | G3: 24358.89359 | H3: 30059.62585 | I3: 26156.30094 | J3: 24613.74986 | K3: 21689.60955 | L3: 25056.39495 | M3: 22950.47739 | N3: 21018.93516 | O3: 23151.6797 | P3: 24452.788 | Q3: 13601.27649 | R3: 13051.32349 | S3: 17142.43723 | T3: 9577.230189 | U3: 8893.142319 | V3: 11253.91615 | W3: 12595.26491 | X3: 18282.58368 | Y3: 19561.04179 | Z3: 18236.11592 | AA3: 15400.65907 | AB3: 19238.3233 | AC3: 20100.86022 | AD3: 25204.28845 | AE3: 18371.70997 | AF3: 23199.54909 | AG3: 23471.85745 | AH3: 25558.65635 | AI3: 24770.70344
B4: AÇÕES ON VALE S/A | C4: Materiais Básicos - Mineração | D4: 15434.02309 | E4: 8665.575606 | F4: 9309.815728 | G4: 8683.494858 | H4: 7904.540671 | I4: 8713.316398 | J4: 7200.559193 | K4: 5964.34969 | L4: 7130.390373 | M4: 7394.555342 | N4: 6517.445094 | O4: 6001.497889 | P4: 5510.316149 | Q4: 4554.781926 | R4: 3712.756087 | S4: 3805.626584 | T4: 3430.017019 | U4: 2684.989255 | V4: 3120.448696 | W4: 3324.763789 | X4: 3692.118199 | Y4: 5339.021677 | Z4: 6183.111305 | AA4: 5972.604845 | AB4: 13951.46642 | AC4: 16114.51437 | AD4: 17025.82347 | AE4: 19884.2027 | AF4: 23201.83852 | AG4: 17217.86934 | AH4: 16530.6597 | AI4: 16779.75184
B5: AÇÕES ON SUZANO PAPEL E CELULOSE S/A | C5: Materiais Básicos - Papel e Celulose | D5: 260.8727383 | E5: 0 | F5: 0 | G5: 0 | H5: 0 | I5: 0 | J5: 0 | K5: 0 | L5: 0 | M5: 0 | N5: 0 | O5: 0 | P5: 0 | Q5: 0 | R5: 0 | S5: 0 | T5: 0 | U5: 0 | V5: 0 | W5: 0 | X5: 0 | Y5: 0 | Z5: 0 | AA5: 0 | AB5: 0 | AC5: 1403.575623 | AD5: 2524.766101 | AE5: 3374.957933 | AF5: 3637.606481 | AG5: 2842.828938 | AH5: 6961.075475 | AI5: 4918.118495
B6: AÇÕES ON CENTRAIS ELETRICAS BRASILEIRAS S/A | C6: Utilidade Pública - Energia Elétrica | D6: 4742.63072 | E6: 3213.876369 | F6: 3081.923065 | G6: 2566.762904 | H6: 2194.401525 | I6: 904.4157274 | J6: 963.9540668 | K6: 654.9217336 | L6: 885.9871937 | M6: 844.877388 | N6: 925.67942 | O6: 905.8333069 | P6: 941.2727946 | Q6: 837.7894904 | R6: 816.5257978 | S6: 837.7894904 | T6: 748.4819813 | U6: 812.2730592 | V6: 934.1848971 | W6: 1834.347886 | X6: 2717.499921 | Y6: 3229.246124 | Z6: 2448.159814 | AA6: 1750.710695 | AB6: 2771.367942 | AC6: 2663.631899 | AD6: 2989.675187 | AE6: 1749.293115 | AF6: 2229.852569 | AG6: 3441.88305 | AH6: 5186.923427 | AI6: 4972.868921
B7: AÇÕES UNIT AES TIETE ENERGIA SA | C7: Utilidade Pública - Energia Elétrica | D7: 0 | E7: 0 | F7: 0 | G7: 0 | H7: 0 | I7: 0 | J7: 0 | K7: 0 | L7: 0 | M7: 0 | N7: 0 | O7: 0 | P7: 0 | Q7: 0 | R7: 0 | S7: 0 | T7: 0 | U7: 0 | V7: 1675.221255 | W7: 1579.216946 | X7: 1744.258062 | Y7: 1561.801176 | Z7: 1530.587448 | AA7: 1526.128344 | AB7: 1593.014904 | AC7: 1430.257608 | AD7: 1353.338064 | AE7: 1083.562272 | AF7: 1066.840632 | AG7: 1117.005552 | AH7: 1239.630912 | AI7: 1318.780008
B8: AÇÕES ON COMPANHIA PARANAENSE DE ENERGIA | C8: Utilidade Pública - Energia Elétrica | D8: 0 | E8: 0 | F8: 0 | G8: 0 | H8: 0 | I8: 0 | J8: 0 | K8: 0 | L8: 0 | M8: 0 | N8: 0 | O8: 0 | P8: 0 | Q8: 0 | R8: 0 | S8: 0 | T8: 0 | U8: 0 | V8: 0 | W8: 0 | X8: 0 | Y8: 0 | Z8: 0 | AA8: 0 | AB8: 0 | AC8: 0 | AD8: 0 | AE8: 0 | AF8: 0 | AG8: 1136.707642 | AH8: 1232.837567 | AI8: 1791.999682
B9: AÇÕES ON COMPANHIA DISTRIBUIDORA DE GAS DO RJ - CEG | C9: Utilidade Pública - Gás | D9: 789.5711754 | E9: 717.7919777 | F9: 807.5159749 | G9: 807.5159749 | H9: 807.5159749 | I9: 807.5159749 | J9: 1678.197644 | K9: 1702.602571 | L9: 1435.404507 | M9: 1435.404507 | N9: 1217.810266 | O9: 1185.054529 | P9: 1078.696151 | Q9: 973.5891719 | R9: 962.461207 | S9: 1025.806672 | T9: 782.0038535 | U9: 647.4920056 | V9: 555.3974825 | W9: 659.3646362 | X9: 635.0503016 | Y9: 519.9546685 | Z9: 480.9278119 | AA9: 634.803636 | AB9: 1026.09705 | AC9: 1141.44521 | AD9: 1352.90036 | AE9: 1218.287558 | AF9: 1201.477506 | AG9: 1476.715993 | AH9: 1219.956799 | AI9: 1249.183899
B10: AÇÕES PNB COMPANHIA PARANAENSE DE ENERGIA | C10: Utilidade Pública - Energia Elétrica | D10: 0 | E10: 0 | F10: 0 | G10: 0 | H10: 0 | I10: 0 | J10: 0 | K10: 0 | L10: 0 | M10: 0 | N10: 0 | O10: 0 | P10: 0 | Q10: 0 | R10: 0 | S10: 0 | T10: 0 | U10: 0 | V10: 0 | W10: 0 | X10: 0 | Y10: 0 | Z10: 0 | AA10: 0 | AB10: 0 | AC10: 0 | AD10: 0 | AE10: 0 | AF10: 0 | AG10: 828.2817022 | AH10: 1000.15834 | AI10: 1326.723952
B11: AÇÕES UNIT KLABIN S/A | C11: Materiais Básicos - Papel e Celulose | D11: 0 | E11: 0 | F11: 0 | G11: 0 | H11: 0 | I11: 0 | J11: 0 | K11: 0 | L11: 0 | M11: 0 | N11: 919.1268416 | O11: 881.6927328 | P11: 878.0716104 | Q11: 959.722656 | R11: 1072.392727 | S11: 937.6098542 | T11: 1079.956527 | U11: 1148.658567 | V11: 829.7502647 | W11: 653.9232461 | X11: 728.4262201 | Y11: 746.3069338 | Z11: 647.1115456 | AA11: 690.5361362 | AB11: 781.6426301 | AC11: 750.5642466 | AD11: 1150.513892 | AE11: 1097.067036 | AF11: 1116.195384 | AG11: 886.6552045 | AH11: 961.4808023 | AI11: 920.9737118
B12: AÇÕES ON COMPANHIA ENERGÉTICA DE MINAS GERAIS - CEMIG | C12: Utilidade Pública - Energia Elétrica | D12: 310.6008174 | E12: 13.2104104 | F12: 18.1412616 | G12: 19.206539 | H12: 13.3402335 | I12: 13.2553025 | J12: 14.2623415 | K12: 13.54204074 | L12: 0 | M12: 0 | N12: 0 | O12: 0 | P12: 0 | Q12: 0 | R12: 0 | S12: 0 | T12: 0 | U12: 0 | V12: 430.9399266 | W12: 388.0089629 | X12: 475.50118 | Y12: 429.3096368 | Z12: 644.5078851 | AA12: 447.7862541 | AB12: 434.2005061 | AC12: 349.4254386 | AD12: 420.0713282 | AE12: 352.6860181 | AF12: 353.7728779 | AG12: 806.9934312 | AH12: 903.180527 | AI12: 1008.062502
B13: AÇÕES ON EMBRAER S/A | C13: Bens de Capital | D13: 470.3902449 | E13: 462.835372 | F13: 578.1465901 | G13: 527.2506041 | H13: 537.9864762 | I13: 572.9774665 | J13: 707.7723042 | K13: 815.5286494 | L13: 714.1343024 | M13: 753.8967914 | N13: 802.8046529 | O13: 796.0450298 | P13: 952.7092364 | Q13: 974.9762303 | R13: 981.3382285 | S13: 934.4184915 | T13: 1012.750595 | U13: 1193.272295 | V13: 941.9733644 | W13: 693.4578082 | X13: 559.4582202 | Y13: 630.6330755 | Z13: 693.855433 | AA13: 600.015959 | AB13: 709.7604286 | AC13: 802.8046529 | AD13: 854.0982637 | AE13: 963.0474836 | AF13: 790.0806564 | AG13: 849.326765 | AH13: 736.0036714 | AI13: 764.2350386
B14: AÇÕES PNB CENTRAIS ELETRICAS BRASILEIRAS S/A | C14: Utilidade Pública - Energia Elétrica | D14: 0 | E14: 498.1178683 | F14: 440.9230962 | G14: 363.7288449 | H14: 344.1031878 | I14: 197.1911261 | J14: 231.2089317 | K14: 162.0518543 | L14: 192.8921726 | M14: 188.0324861 | N14: 204.4806559 | O14: 195.1351049 | P14: 188.7801302 | Q14: 153.4539474 | R14: 130.2769809 | S14: 159.8089221 | T14: 164.4816976 | U14: 194.5743718 | V14: 197.5649481 | W14: 335.5052809 | X14: 447.8388039 | Y14: 483.9126308 | Z14: 413.0733542 | AA14: 304.1042295 | AB14: 419.8021509 | AC14: 413.8209983 | AD14: 453.8199566 | AE14: 257.7502966 | AF14: 349.3366964 | AG14: 525.7806993 | AH14: 708.3927658 | AI14: 668.9545406
B15: AÇÕES ON LIGHT S/A | C15: Utilidade Pública - Energia Elétrica | D15: 780.191513 | E15: 885.2585287 | F15: 769.804958 | G15: 680.8587784 | H15: 651.2084768 | I15: 608.9293429 | J15: 545.5106422 | K15: 428.007595 | L15: 439.439703 | M15: 465.2653572 | N15: 390.9069209 | O15: 456.0230657 | P15: 429.1070256 | Q15: 328.2648572 | R15: 274.8620029 | S15: 325.9679602 | T15: 222.2247809 | U15: 181.2634518 | V15: 188.3455507 | W15: 212.845785 | X15: 301.0849098 | Y15: 330.178938 | Z15: 378.2223661 | AA15: 427.6056507 | AB15: 377.8395499 | AC15: 317.5460047 | AD15: 262.0376615 | AE15: 215.1426819 | AF15: 244.2367101 | AG15: 314.1006593 | AH15: 388.1755862 | AI15: 371.5230833
B16: AÇÕES PN GERDAU S/A | C16: Materiais Básicos - Siderurgia e Metalurgia | D16: 923.9748038 | E16: 305.9646271 | F16: 373.0137409 | G16: 369.6188491 | H16: 410.5697319 | I16: 381.2887898 | J16: 328.031424 | K16: 268.1964554 | L16: 352.0078477 | M16: 389.7760194 | N16: 307.0255308 | O16: 273.5009739 | P16: 248.6758273 | Q16: 204.1178719 | R16: 215.9999933 | S16: 159.7720972 | T16: 116.2750455 | U16: 99.30058632 | V16: 140.0392884 | W16: 123.4891907 | X16: 190.7504853 | Y16: 227.4577533 | Z16: 231.0648259 | AA16: 217.4852585 | AB16: 274.183514 | AC16: 307.3347934 | AD16: 384.8539506 | AE16: 346.4682586 | AF16: 426.4799931 | AG16: 365.4118468 | AH16: 378.8717648 | AI16: 377.3762184
B17: AÇÕES ON PETROLEO BRASILEIRO S/A - PETROBRAS | C17: Petróleo, Gás e Biocombustíveis | D17: 0 | E17: 3963.932961 | F17: 4194.555482 | G17: 3259.92737 | H17: 4033.293118 | I17: 228.7426636 | J17: 196.4495817 | K17: 172.4637781 | L17: 202.7677934 | M17: 188.3763112 | N17: 174.4528447 | O17: 188.8443269 | P17: 202.5337855 | Q17: 113.6108063 | R17: 112.2067593 | S17: 164.6245154 | T17: 98.8683124 | U17: 99.80434376 | V17: 124.375167 | W17: 133.9694884 | X17: 178.7819898 | Y17: 197.385613 | Z17: 177.7289545 | AA17: 154.3281705 | AB17: 186.1532367 | AC17: 197.385613 | AD17: 273.3211571 | AE17: 226.1685774 | AF17: 286.3085922 | AG17: 295.9029137 | AH17: 365.0522304 | AI17: 351.2457678
B18: AÇÕES PN COMPANHIA ENERGÉTICA DE MINAS GERAIS - CEMIG | C18: Utilidade Pública - Energia Elétrica | D18: 0 | E18: 369.1797307 | F18: 485.3286677 | G18: 482.399129 | H18: 319.4960595 | I18: 290.0060968 | J18: 301.8535927 | K18: 288.4824717 | L18: 138.9366463 | M18: 134.2652523 | N18: 145.6678215 | O18: 153.9346842 | P18: 143.2922863 | Q18: 126.2834539 | R18: 122.9577045 | S18: 111.5551353 | T18: 66.32494418 | U18: 58.53318856 | V18: 216.0605291 | W18: 187.7419161 | X18: 227.5977418 | Y18: 200.8523851 | Z18: 271.3867083 | AA18: 211.865179 | AB18: 209.767504 | AC18: 179.3512159 | AD18: 222.3535542 | AE18: 189.5773817 | AF18: 186.9552879 | AG18: 358.9646412 | AH18: 363.4222007 | AI18: 388.5943012
B19: AÇÕES ON LINX S/A | C19: Tecnologia da Informação - Programas e Serviços | D19: 0 | E19: 0 | F19: 0 | G19: 0 | H19: 0 | I19: 0 | J19: 153.584275 | K19: 176.996807 | L19: 157.7701341 | M19: 155.7610761 | N19: 144.7965283 | O19: 168.3380574 | P19: 164.0167356 | Q19: 167.3705973 | R19: 150.5367916 | S19: 156.1158115 | T19: 136.9278528 | U19: 143.3775868 | V19: 156.5995415 | W19: 154.890362 | X19: 187.4937674 | Y19: 166.7901212 | Z19: 159.7276625 | AA19: 170.2729776 | AB19: 190.2994017 | AC19: 208.4876516 | AD19: 194.4594801 | AE19: 172.3046438 | AF19: 158.0829803 | AG19: 313.8440564 | AH19: 358.5407131 | AI19: 0
B20: AÇÕES ON ENGIE BRASIL ENERGIA S.A. | C20: Utilidade Pública - Energia Elétrica | D20: 169.759895 | E20: 187.1903206 | F20: 204.0604826 | G20: 232.1359181 | H20: 198.8936064 | I20: 206.4882918 | J20: 215.4525107 | K20: 214.7054925 | L20: 230.2683725 | M20: 224.7279872 | N20: 219.2498534 | O20: 206.2392858 | P20: 214.7054925 | Q20: 211.0949043 | R20: 221.6776627 | S20: 212.0909286 | T20: 208.3558374 | U20: 209.0406042 | V20: 229.9571149 | W20: 238.112064 | X20: 242.0961613 | Y20: 217.3823078 | Z20: 221.4909082 | AA20: 211.9664256 | AB20: 226.8445389 | AC20: 222.3624294 | AD20: 243.9014554 | AE20: 213.335959 | AF20: 220.9306445 | AG20: 258.2659936 | AH20: 334.990992 | AI20: 336.8585376
B21: AÇÕES ON TOTVS S/A | C21: Tecnologia da Informação - Programas e Serviços | D21: 281.7300342 | E21: 276.8687846 | F21: 169.6122706 | G21: 195.4865295 | H21: 264.4521588 | I21: 257.9435394 | J21: 262.0509206 | K21: 220.1556323 | L21: 277.6233415 | M21: 273.8264012 | N21: 261.765532 | O21: 285.2916719 | P21: 276.9532932 | Q21: 262.137781 | R21: 268.5404647 | S21: 289.7586605 | T21: 221.0414859 | U21: 232.5813626 | V21: 204.215966 | W21: 225.8808752 | X21: 228.114371 | Y21: 178.9774634 | Z21: 207.4917598 | AA21: 224.1685285 | AB21: 231.6135145 | AC21: 223.2006803 | AD21: 213.0010495 | AE21: 204.4393156 | AF21: 186.8691486 | AG21: 201.9080203 | AH21: 292.8112994 | AI21: 325.9414871
B22: AÇÕES ON ROCHA TERMINAIS PORTUÁRIOS E LOGÍSTICO S/A | C22: Transporte e Logística | D22: 0 | E22: 0 | F22: 0 | G22: 0 | H22: 0 | I22: 0 | J22: 0 | K22: 0 | L22: 0 | M22: 0 | N22: 0 | O22: 0 | P22: 0 | Q22: 0 | R22: 0 | S22: 200.0000024 | T22: 200.0000024 | U22: 200.0000024 | V22: 200.0000024 | W22: 200.0000024 | X22: 200.0000024 | Y22: 200.0000024 | Z22: 213.0525434 | AA22: 213.0525434 | AB22: 213.0525434 | AC22: 213.0525434 | AD22: 213.0525434 | AE22: 274.6139362 | AF22: 274.6139362 | AG22: 274.6139362 | AH22: 274.6139362 | AI22: 274.6139362
B23: AÇÕES ON COMPANHIA DE SANEAMENTO DE MINAS GERAIS - COPASA | C23: Utilidade Pública - Água e Saneamento | D23: 0 | E23: 0 | F23: 0.12311544 | G23: 189.7606822 | H23: 201.4288147 | I23: 192.6996479 | J23: 215.1586098 | K23: 157.7829805 | L23: 153.4841948 | M23: 164.1872939 | N23: 160.5026204 | O23: 175.1535839 | P23: 138.9209617 | Q23: 109.926091 | R23: 80.36097312 | S23: 60.13913436 | T23: 54.04187712 | U23: 66.58731288 | V23: 82.20330984 | W23: 128.5249188 | X23: 142.56177 | Y23: 158.6602837 | Z23: 192.2609963 | AA23: 178.0048193 | AB23: 186.9533119 | AC23: 189.716817 | AD23: 209.4122738 | AE23: 180.1980773 | AF23: 170.8986634 | AG23: 262.6645781 | AH23: 269.4198127 | AI23: 291.6155837
B24: AÇÕES ON OURO FINO SAÚDE ANIMAL S/A | C24: Agronegócio | D24: 0 | E24: 0 | F24: 0 | G24: 0 | H24: 0 | I24: 0 | J24: 0 | K24: 0 | L24: 0 | M24: 0 | N24: 0 | O24: 0 | P24: 0 | Q24: 0 | R24: 0 | S24: 0 | T24: 0 | U24: 231.3375436 | V24: 289.9386101 | W24: 285.2051906 | X24: 265.2048266 | Y24: 186.670064 | Z24: 166.6697 | AA24: 208.1371214 | AB24: 173.4031559 | AC24: 158.6401228 | AD24: 174.608544 | AE24: 131.6839436 | AF24: 144.9780032 | AG24: 220.0464492 | AH24: 205.6280164 | AI24: 232.6129732
B25: AÇÕES ON VALEPAR S/A | C25: Materiais Básicos - Mineração | D25: 9557.503514 | E25: 6018.48933 | F25: 6302.94513 | G25: 5747.10219 | H25: 5311.77587 | I25: 6304.0291 | J25: 5500.19048 | K25: 4448.46873 | L25: 5681.44104 | M25: 5301.23646 | N25: 4882.55058 | O25: 4395.04679 | P25: 3992.38993 | Q25: 3121.36509 | R25: 2649.609871 | S25: 2712.5098 | T25: 2405.54989 | U25: 1890.588 | V25: 2536.206161 | W25: 2700.9226 | X25: 2995.67265 | Y25: 4308.62786 | Z25: 5063.80157 | AA25: 4895.81471 | AB25: 0 | AC25: 0 | AD25: 0 | AE25: 0 | AF25: 0 | AG25: 0 | AH25: 0 | AI25: 0
B26: AÇÕES PNA VALE S/A | C26: Materiais Básicos - Mineração | D26: 0 | E26: 2584.9283 | F26: 2819.797644 | G26: 2589.829693 | H26: 2338.32566 | I26: 2698.373539 | J26: 2207.940674 | K26: 1775.750848 | L26: 2094.763859 | M26: 2172.86248 | N26: 1873.70505 | O26: 1732.068568 | P26: 1556.015745 | Q26: 1283.332424 | R26: 1027.195421 | S26: 1044.403592 | T26: 881.587823 | U26: 677.0753326 | V26: 754.5121008 | W26: 861.0703887 | X26: 1023.224305 | Y26: 1555.353892 | Z26: 1873.70505 | AA26: 1781.04567 | AB26: 0 | AC26: 0 | AD26: 0 | AE26: 0 | AF26: 0 | AG26: 0 | AH26: 0 | AI26: 0
B27: AÇÕES ON CPFL ENERGIA S/A | C27: Utilidade Pública - Energia Elétrica | D27: 1686.31761 | E27: 2113.874237 | F27: 2227.349081 | G27: 2044.168261 | H27: 1818.839642 | I27: 1728.059767 | J27: 1708.606937 | K27: 1655.111653 | L27: 1467.838649 | M27: 1232.012592 | N27: 1209.317623 | O27: 1309.823914 | P27: 1236.551586 | Q27: 1212.559762 | R27: 1313.066052 | S27: 1278.060781 | T27: 995.6829538 | U27: 1014.418923 | V27: 1321.554996 | W27: 1411.625356 | X27: 1661.98651 | Y27: 1731.264528 | Z27: 1767.61834 | AA27: 1818.376491 | AB27: 1867.762801 | AH27: 0 | AI27: 0
B28: AÇÕES PNA SUZANO PAPEL E CELULOSE S/A | C28: Materiais Básicos - Papel e Celulose | D28: 0 | E28: 121.0749072 | F28: 138.5496361 | G28: 71.14711044 | H28: 1052.960032 | I28: 1387.452974 | J28: 1524.021099 | K28: 1609.12877 | L28: 1489.20883 | M28: 1192.785829 | N28: 1077.522052 | O28: 1072.341657 | P28: 1211.778141 | Q28: 1092.739455 | R28: 1385.685893 | S28: 1247.960153 | T28: 1443.048815 | U28: 1410.407521 | V28: 961.77951 | W28: 863.0965295 | X28: 797.0548425 | Y28: 1060.46249 | Z28: 995.1799034 | AA28: 1074.126288 | AB28: 1404.334722 | AC28: 0 | AD28: 0 | AE28: 0 | AF28: 0 | AG28: 0 | AH28: 0 | AI28: 0
B29: OUTROS INVESTIMENTOS | C29: Diversos | D29: =SUM(D30:D167) -> 11960.93861 | E29: 11270.4532 | F29: =SUM(F30:F157) -> 11538.60667 | G29: =SUM(G30:G157) -> 10309.09691 | H29: 10624.90673 | I29: 9898.235046 | J29: 10004.69018 | K29: 8899.78592 | L29: 8777.500254 | M29: 8968.243514 | N29: 7514.006663 | O29: 6988.106962 | P29: 6451.861184 | Q29: 5193.307486 | R29: 4288.859828 | S29: 4464.682618 | T29: 4295.844745 | U29: 5997.868376 | V29: 3712.599662 | W29: 3175.02142 | X29: 3413.031124 | Y29: 3807.301614 | Z29: 3176.944274 | AA29: 2993.335636 | AB29: 2405.619884 | AC29: 2309.590276 | AD29: 2301.814576 | AE29: 1462.326097 | AF29: 1272.749247 | AG29: 1204.01911 | AH29: 991.0475908 | AI29: 1041.150464
B30: AÇÕES ON ODEBRECHT TRANSPORT S/A | D30: 0 | E30: 0 | F30: 0 | G30: 0 | H30: 0 | I30: 0 | J30: 0 | K30: 0 | L30: 0 | M30: 1000.000016 | N30: 1000.000016 | O30: 1000.000016 | P30: 1000.000016 | Q30: 1000.000016 | R30: 1000.000016 | S30: 1000.000016 | T30: 1000.000016 | U30: 1000.000016 | V30: 1000.000016 | W30: 221.1748494 | X30: 221.1748494 | Y30: 221.1748494 | Z30: 221.1748494 | AA30: 221.1748494 | AB30: 221.1748494 | AC30: 221.1748494 | AD30: 221.1748494 | AE30: 70.07641283 | AF30: 70.07641283 | AG30: 0 | AH30: 0 | AI30: 0
B31: AÇÕES PNA BRASKEM S/A | D31: 903.6328463 | E31: 575.6837015 | F31: 641.2735304 | G31: 586.5590821 | H31: 634.5943488 | I31: 564.9652466 | J31: 598.0170356 | K31: 730.6648822 | L31: 729.175103 | M31: 841.3575203 | N31: 712.2263851 | O31: 566.2520584 | P31: 641.645392 | Q31: 700.9975908 | R31: 446.7456042 | S31: 541.3882995 | T31: 666.9101793 | U31: 1114.056812 | V31: 417.876167 | W31: 81.316782 | X31: 103.916 | Y31: 141.7225 | Z31: 105.267803 | AA31: 113.754458 | AB31: 0 | AC31: 0 | AD31: 0 | AE31: 0 | AF31: 0 | AG31: 0 | AH31: 0 | AI31: 0
B32: AÇÕES PNC VALEPAR S/A | D32: 0 | E32: 904.740202 | F32: 904.740202 | G32: 840.068172 | H32: 840.068172 | I32: 775.396142 | J32: 775.396142 | K32: 700.709542 | L32: 700.709542 | M32: 626.022942 | N32: 626.022942 | O32: 429.36646 | P32: 429.36646 | Q32: 232.709978 | R32: 232.709978 | S32: 116.355018 | T32: 116.355018 | U32: 0 | V32: 0 | W32: 0 | X32: 0 | Y32: 0 | Z32: 0 | AA32: 0 | AB32: 0 | AC32: 0 | AD32: 0 | AE32: 0 | AF32: 0 | AG32: 0 | AH32: 0 | AI32: 0
B33: AÇÕES ON ALL - AMERICA LATINA LOGISTICA S/A | D33: 0 | E33: 778.9613069 | F33: 770.5673273 | G33: 708.338326 | H33: 696.6852865 | I33: 690.8587668 | J33: 834.8570399 | K33: 786.5801622 | L33: 736.6385646 | M33: 541.033974 | N33: 621.7728901 | O33: 690.8587668 | P33: 528.5485746 | Q33: 419.5094198 | R33: 335.4410639 | S33: 0 | T33: 0 | U33: 0 | V33: 0 | W33: 0 | X33: 0 | Y33: 0 | Z33: 0 | AA33: 0 | AB33: 0 | AC33: 0 | AD33: 0 | AE33: 0 | AF33: 0 | AG33: 0 | AH33: 0 | AI33: 0
B34: AÇÕES ON MARFRIG ALIMENTOS S/A | D34: 738.9186779 | E34: 405.8509633 | F34: 560.575618 | G34: 439.2442313 | H34: 562.961493 | I34: 498.014678 | J34: 841.1259742 | K34: 760.3860569 | L34: 817.619416 | M34: 403.6995866 | N34: 449.6906788 | O34: 610.1484892 | P34: 678.6241153 | Q34: 632.6330231 | R34: 410.8537565 | S34: 582.5538339 | T34: 723.5931832 | U34: 646.9413629 | V34: 678.6241153 | W34: 573.3556155 | X34: 532.4746447 | Y34: 675.5580425 | Z34: 0 | AA34: 0 | AB34: 0 | AC34: 0 | AD34: 0 | AE34: 0 | AF34: 0 | AG34: 0 | AH34: 0 | AI34: 0
B35: AÇÕES ON GERDAU S/A | D35: 0 | E35: 461.831764 | F35: 544.1121357 | G35: 539.9412413 | H35: 595.6795576 | I35: 585.0627355 | J35: 529.7035913 | K35: 429.6021253 | L35: 522.4993192 | M35: 570.6541911 | N35: 447.4232196 | O35: 395.0974532 | P35: 376.8971867 | Q35: 29.884062 | R35: 28.475136 | S35: 22.542816 | T35: 16.870035 | U35: 12.754488 | V35: 17.722806 | W35: 15.646494 | X35: 24.137127 | Y35: 28.957137 | Z35: 39.190389 | AA35: 37.410693 | AB35: 0 | AC35: 0 | AD35: 0 | AE35: 0 | AF35: 0 | AG35: 0 | AH35: 0 | AI35: 0
B36: AÇÕES ON ECORODOVIAS INFRAESTRUTURA E LOGISTICA S/A | D36: 267.75 | E36: 287.7 | F36: 337.05 | G36: 336.84 | H36: 365.82 | I36: 363.72 | J36: 362.04 | K36: 326.55 | L36: 321.93 | M36: 310.38 | N36: 284.97 | O36: 317.73 | P36: 250.95 | Q36: 222.6 | R36: 189.21 | S36: 161.49 | T36: 128.31 | U36: 104.79 | V36: 126.21 | W36: 172.83 | X36: 187.32 | Y36: 171.36 | Z36: 187.32 | AA36: 218.19 | AB36: 238.98 | AC36: 259.77 | AD36: 183.54 | AE36: 95.794974 | AF36: 0 | AG36: 0 | AH36: 0 | AI36: 0
B37: AÇÕES PN TELEMAR PARTICIPACOES S/A | D37: 0 | E37: 1311.995353 | F37: 1332.568975 | G37: 1242.275788 | H37: 1256.48688 | I37: 1173.805113 | J37: 1198.741441 | K37: 1103.553545 | L37: 1110.848556 | M37: 1017.055674 | N37: 1038.250387 | O37: 0 | P37: 0 | Q37: 0 | R37: 0 | S37: 0 | T37: 0 | U37: 0 | V37: 0 | W37: 0 | X37: 0 | Y37: 0 | Z37: 0 | AA37: 0 | AB37: 0 | AC37: 0 | AD37: 0 | AE37: 0 | AF37: 0 | AG37: 0 | AH37: 0 | AI37: 0
B38: AÇÕES PN KLABIN S/A | D38: 634.266594 | E38: 694.436386 | F38: 690.8009022 | G38: 716.82336 | H38: 839.4798016 | I38: 1013.110349 | J38: 1103.111504 | K38: 876.11744 | L38: 921.5162528 | M38: 975.67624 | AI38: 0
B39: AÇÕES ON IOCHPE-MAXION S/A | D39: 153.1640208 | E39: 164.654532 | F39: 232.1853576 | G39: 148.7347176 | H39: 169.9825344 | I39: 174.7969944 | J39: 169.468992 | K39: 153.6775632 | L39: 175.8240792 | M39: 166.9654728 | N39: 144.3054144 | O39: 126.0104664 | P39: 107.5871328 | Q39: 77.5449024 | R39: 64.2569928 | S39: 82.2309768 | T39: 126.0101798 | U39: 100.9069108 | V39: 104.2515564 | W39: 117.7316088 | X39: 150.6208912 | Y39: 100.3853032 | Z39: 203.2802649 | AA39: 138.7206378 | AB39: 178.55708 | AC39: 15.848388 | AD39: 94.98528 | AE39: 72.192238 | AF39: 58.758168 | AG39: 71.877123 | AH39: 64.967625 | AI39: 67.841487
B40: AÇÕES UNIT TRANSMISSORA ALIANÇA DE ENERGIA ELETRICA S/A | D40: 0 | E40: 0 | F40: 0 | G40: 0 | H40: 187.434 | I40: 194.94 | J40: 202.95 | K40: 193.05 | L40: 195.03 | M40: 164.7 | N40: 170.91 | O40: 179.1 | P40: 174.78 | Q40: 170.01 | R40: 190.71 | S40: 186.57 | T40: 170.19 | U40: 149.94 | V40: 182.52 | W40: 174.06 | X40: 182.840814 | Y40: 0 | Z40: 0 | AA40: 0 | AB40: 0 | AC40: 0 | AD40: 0 | AE40: 0 | AF40: 0 | AG40: 0 | AH40: 0 | AI40: 0
B41: AÇÕES ON BANCO DO BRASIL S/A | D41: 7.35217113 | E41: 87.45559368 | F41: 96.6595002 | G41: 107.0841447 | H41: 135.5257819 | I41: 140.6618446 | J41: 150.9891963 | K41: 120.7250853 | L41: 143.3127156 | M41: 134.8078377 | N41: 125.0879772 | O41: 136.9064439 | P41: 33.75214816 | Q41: 0 | R41: 0 | S41: 0 | T41: 0 | U41: 0 | V41: 0 | W41: 0 | X41: 0 | Y41: 0 | Z41: 0 | AA41: 0 | AB41: 0 | AC41: 0 | AD41: 0 | AE41: 0 | AF41: 0 | AG41: 0 | AH41: 0 | AI41: 0
B42: AÇÕES PNA BCPAR S/A | D42: 0 | E42: 0 | F42: 0 | G42: 0 | H42: 0 | I42: 0 | J42: 0 | K42: 120.0000005 | L42: 120.0000005 | M42: 120.0000005 | N42: 120.0000005 | O42: 135.6781872 | P42: 135.6781872 | Q42: 135.6781872 | R42: 135.6781872 | S42: 123.910315 | T42: 123.910315 | U42: 123.910315 | V42: 123.910315 | W42: 118.1895591 | X42: 128.8371991 | Y42: 128.8371991 | Z42: 128.8371991 | AA42: 107.233534 | AB42: 107.233534 | AC42: 115.9915589 | AD42: 115.9915589 | AE42: 135.2179652 | AF42: 107.9386586 | AG42: 0 | AH42: 0 | AI42: 0
B43: AÇÕES ON ENEVA S/A | D43: 93.3076 | E43: 166.5012 | F43: 168.3168 | G43: 616.3818429 | H43: 645.4959642 | I43: 661.0500839 | J43: 573.1094845 | K43: 450.4712336 | L43: 383.5931088 | M43: 220.1301363 | N43: 119.1463444 | O43: 87.9067541 | P43: 50.855147 | Q43: 0 | R43: 0 | S43: 0 | T43: 0 | U43: 0 | V43: 0 | W43: 0 | X43: 0 | Y43: 0 | Z43: 0 | AA43: 0 | AB43: 0 | AC43: 0 | AD43: 0 | AE43: 0 | AF43: 0 | AG43: 0 | AH43: 0 | AI43: 0
B44: AÇÕES ON HIDROVIAS DO BRASIL SA | D44: 0 | E44: 0 | F44: 0 | G44: 0 | H44: 0 | I44: 0 | J44: 0 | K44: 0 | L44: 0 | M44: 0 | N44: 0 | O44: 0 | P44: 0 | Q44: 0 | R44: 21.5866659 | S44: 21.5866659 | T44: 43.18412485 | U44: 42.93066487 | V44: 43.18412485 | W44: 42.93066487 | X44: 42.93066487 | Y44: 71.70139861 | Z44: 82.12733899 | AA44: 80.92329334 | AB44: 80.92329334 | AC44: 95.94723159 | AD44: 95.94723159 | AE44: 131.3548664 | AF44: 131.3548664 | AG44: 151.2596296 | AH44: 151.2596296 | AI44: 151.2596296
B45: AÇÕES ON COMPANHIA SIDERURGICA NACIONAL | D45: 848.9883475 | E45: 474.696329 | F45: 485.5873094 | G45: 309.7548982 | H45: 313.8812956 | I45: 324.885022 | J45: 250.0596824 | K45: 168.0819208 | L45: 83.0237616 | M45: 127.1741094 | N45: 87.069411 | O45: 81.9683748 | P45: 76.6914408 | Q45: 50.3947197 | R45: 48.8995884 | S45: 45.733428 | T45: 35.0916111 | U45: 35.7952023 | V45: 63.1473102 | W45: 68.6880909 | X45: 79.9455501 | Y45: 94.105323 | Z45: 81.0009369 | AA45: 62.1798723 | AB45: 83.551455 | AC45: 73.4373315 | AD45: 76.8673386 | AE45: 68.7760398 | AF45: 82.4960682 | AG45: 76.6914408 | AH45: 144.5879916 | AI45: 146.3469696
B46: AÇÕES PNB TRANSNORDESTINA LOGISTICA S/A | D46: 0 | E46: 95.69183445 | F46: 95.69183445 | G46: 95.69183445 | H46: 95.69183445 | I46: 95.69183445 | J46: 95.69183445 | K46: 95.69183445 | L46: 95.69183445 | M46: 95.69183445 | N46: 95.69183445 | O46: 95.69183445 | P46: 95.69183445 | Q46: 95.69183445 | R46: 95.69183445 | S46: 95.69183445 | T46: 95.69183445 | U46: 95.69183445 | V46: 95.69183445 | W46: 95.69183445 | X46: 95.69183445 | Y46: 95.69183445 | Z46: 95.69183445 | AA46: 80.94422328 | AB46: 80.94422328 | AC46: 78.68538718 | AD46: 78.68538718 | AE46: 99.97869324 | AF46: 99.11438206 | AG46: 98.61187556 | AH46: 98.61187556 | AI46: 98.27017114
B47: AÇÕES ON MRV ENGENHARIA E PARTICIPACOES S/A | D47: 0 | E47: 59.58880434 | F47: 72.0787938 | G47: 64.30601338 | H47: 84.2678156 | I47: 81.71215234 | J47: 57.88231924 | K47: 45.79472274 | L47: 62.57921388 | M47: 58.78025498 | N47: 55.257584 | O47: 50.97512124 | P47: 55.257584 | Q47: 52.1493449 | R47: 56.01737578 | S47: 53.73800044 | T47: 42.96277156 | U47: 59.26375884 | V47: 82.12658422 | W47: 74.11423454 | X47: 82.47194412 | Y47: 75.35753018 | Z47: 99.94715506 | AA47: 92.48738122 | AB47: 94.55954062 | AC47: 102.7791062 | AD47: 111.2749598 | AE47: 83.16266392 | AF47: 85.09667936 | AG47: 84.33688758 | AH47: 96.49355606 | AI47: 135.7955127
B48: AÇÕES ON CYRELA BRAZIL REALTY S/A EMPREEND. E PARTICIPAÇOES | D48: 0 | E48: 76.17802914 | F48: 83.92840426 | G48: 76.33099707 | H48: 89.58821767 | I48: 91.52581145 | J48: 86.22292321 | K48: 78.57452671 | L48: 84.08137219 | M48: 73.67955295 | N48: 69.60040815 | O48: 70.67118366 | P48: 62.46190475 | Q48: 56.70011272 | R48: 68.27468609 | S48: 50.68337414 | T48: 42.42310592 | U48: 37.27318561 | V48: 53.07987171 | W48: 52.31503206 | X48: 52.0090962 | Y48: 52.56997861 | Z48: 67.91776092 | AA48: 55.93527307 | AB48: 70.31425849 | AC48: 67.50984644 | AD48: 78.31958016 | AE48: 56.19021962 | AF48: 55.47636928 | AG48: 78.5235374 | AH48: 81.83784255 | AI48: 105.5478717
B49: AÇÕES UNT ENERGISA S/A | D49: 13.16537704 | E49: 15.10431762 | F49: 13.95240308 | G49: 13.9135745 | H49: 14.3018603 | I49: 16.61863224 | J49: 15.8550035 | K49: 17.76486465 | L49: 16.53058125 | M49: 18.3673125 | N49: 16.41303045 | O49: 15.44323635 | P49: 19.8660852 | Q49: 20.20404375 | R49: 17.63262 | S49: 20.1599622 | T49: 20.14526835 | U49: 22.099518 | V49: 22.099518 | W49: 26.70884604 | X49: 32.29686702 | Y49: 29.15557839 | Z49: 35.32765806 | AA49: 37.52182449 | AB49: 40.11062517 | AC49: 43.0940601 | AD49: 54.1438191 | AE49: 46.29849021 | AF49: 48.24009072 | AG49: 59.05306917 | AH49: 63.96231924 | AI49: 72.31277997
B50: AÇÕES ON OI S/A | D50: 165.4203183 | E50: 0 | F50: 0 | G50: 44.44824986 | H50: 46.02409029 | I50: 42.1771623 | J50: 32.02683423 | K50: 20.16161055 | L50: 20.71779291 | M50: 17.00991051 | N50: 15.06327225 | O50: 257.2326519 | P50: 213.1356259 | Q50: 113.1823585 | R50: 65.41058382 | S50: 73.25005454 | T50: 39.55978448 | U50: 94.10640458 | V50: 40.93246089 | W50: 73.44890112 | X50: 141.9246996 | Y50: 100.2271463 | Z50: 158.7567394 | AA50: 153.018544 | AB50: 192.4208191 | AC50: 140.3945141 | AD50: 147.662895 | AE50: 130.4483088 | AF50: 83.77765284 | AG50: 47.818295 | AH50: 59.67723216 | AI50: 59.67723216
B51: AÇÕES ON TIM PARTICIPACOES S/A | D51: 0 | E51: 33.79446979 | F51: 41.98160388 | G51: 65.026137 | H51: 46.16855727 | I51: 47.82376803 | J51: 52.0209096 | K51: 47.70553869 | L51: 61.42014213 | M51: 72.59281476 | N51: 69.57796659 | O51: 76.2579243 | P51: 76.49438298 | Q51: 69.87353994 | R51: 62.83889421 | S51: 59.94227538 | T51: 44.80891986 | U51: 40.25709027 | V51: 47.11439199 | W51: 40.07974626 | X51: 47.17350666 | Y51: 45.99121326 | Z51: 59.7058167 | AA51: 57.81414726 | AB51: 68.5730172 | AC51: 77.02641501 | AD51: 84.5339781 | AE51: 77.4402177 | AF51: 46.01219458 | AG51: 46.32573594 | AH51: 46.56089196 | AI51: 45.42430453
B52: AÇÕES ON BIOMM S/A | D52: 0 | E52: 0 | F52: 0 | G52: 0 | H52: 0 | I52: 0 | J52: 0 | K52: 0 | L52: 23.659104 | M52: 41.43111741 | N52: 37.91075139 | O52: 35.66802207 | P52: 31.4844693 | Q52: 33.72719862 | R52: 30.06119877 | S52: 32.3470575 | T52: 28.07724591 | U52: 24.71315193 | V52: 28.0341165 | W52: 30.31997523 | X52: 32.3470575 | Y52: 27.81846945 | Z52: 30.190587 | AA52: 41.4042336 | AB52: 52.53162138 | AC52: 38.64395136 | AD52: 32.26079868 | AE52: 41.30710423 | AF52: 49.60358061 | AG52: 48.02608158 | AH52: 39.1453463 | AI52: 42.88460326
B53: AÇÕES UNIT RENOVA ENERGIA S/A | D53: 0 | E53: 0 | F53: 0 | G53: 0 | H53: 74.88972498 | I53: 290.7026885 | J53: 314.4468223 | K53: 373.7605995 | L53: 451.045427 | M53: 448.9969135 | N53: 387.35528 | O53: 360.0728047 | P53: 394.7113058 | Q53: 348.619752 | R53: 259.5094148 | S53: 316.3091073 | T53: 242.469507 | U53: 245.3560488 | V53: 112.9475853 | W53: 165.370908 | X53: 108.757444 | Y53: 58.103292 | Z53: 47.674496 | AA53: 58.95539901 | AB53: 57.96401728 | AC53: 41.800974 | AD53: 19.5071212 | AE53: 12.12228246 | AF53: 18.18342369 | AG53: 14.95778401 | AH53: 23.07414096 | AI53: 15.10408744
B54: AÇÕES PN COMPANHIA DE TECIDOS NORTE DE MINAS - COTEMINAS | D54: 64.93849914 | E54: 44.29819551 | F54: 50.81618613 | G54: 35.97 | H54: 29.81377191 | I54: 36.09035547 | J54: 29.85309 | K54: 21.14593875 | L54: 18.82403175 | M54: 18.65818125 | N54: 18.49233075 | O54: 14.263143 | P54: 11.69246025 | Q54: 5.3822475 | R54: 6.84314325 | S54: 6.6124755 | T54: 5.03624784 | U54: 4.325022 | V54: 5.53602816 | W54: 4.44035592 | X54: 5.88202992 | Y54: 6.8239236 | Z54: 11.1489456 | AA54: 10.72605456 | AB54: 11.16816792 | AC54: 11.84094912 | AD54: 16.5311952 | AE54: 11.32194648 | AF54: 10.55305368 | AG54: 13.51329096 | AH54: 19.29920928 | AI54: 17.16553176
B55: AÇÕES ON SPRINGS GLOBAL PARTICIPACOES S/A | D55: 47.9588533 | E55: 28.25828345 | F55: 30.75428325 | G55: 23.534 | H55: 22.9988553 | I55: 25.58399795 | J55: 30.04114045 | K55: 25.73771865 | L55: 18.1678014 | M55: 15.6741816 | N55: 13.3586775 | O55: 8.10426435 | P55: 6.4121652 | Q55: 4.26993915 | R55: 5.6450043 | S55: 6.73058205 | T55: 5.71737615 | U55: 5.15649645 | V55: 5.91640119 | W55: 5.95258713 | X55: 7.0562583 | Y55: 7.56286146 | Z55: 16.84455507 | AA55: 16.91692695 | AB55: 23.28565239 | AC55: 19.30519899 | AD55: 19.82989512 | AE55: 12.52033524 | AF55: 11.0367117 | AG55: 12.26703366 | AH55: 15.9218136 | AI55: 16.66362537
B56: AÇÕES ON TPI TRIUNFO PARTICIPAÇÕES E INVESTIMENTOS S/A | D56: 0 | E56: 0 | F56: 0 | G56: 0 | H56: 0 | I56: 0 | J56: 0 | K56: 214.1340798 | L56: 251.8702388 | M56: 243.3014575 | N56: 222.0093342 | O56: 196.5626503 | P56: 151.1221433 | Q56: 193.1870698 | R56: 85.42815316 | S56: 104.9026562 | T56: 99.44979532 | U56: 121.2612387 | V56: 142.553362 | W56: 101.0077556 | X56: 90.881014 | Y56: 81.53325256 | Z56: 126.1947794 | AA56: 39.1419448 | AB56: 31.8293142 | AC56: 30.21543348 | AD56: 20.44248912 | AE56: 14.52492648 | AF56: 11.207505 | AG56: 14.16628632 | AH56: 15.51118692 | AI56: 14.52492648
B57: AÇÕES PN BOMBRIL S/A | D57: 54.17572576 | E57: 51.59319646 | F57: 45.73946338 | G57: 42.98476546 | H57: 33.8598286 | I57: 44.1899458 | J57: 44.30472488 | K57: 41.83697466 | L57: 36.09802066 | M57: 36.67191606 | N57: 32.25292148 | O57: 2.35297114 | P57: 2.35297114 | Q57: 2.35297114 | R57: 2.35297114 | S57: 2.35297114 | T57: 2.35297114 | U57: 2.35297114 | V57: 2.35297114 | W57: 2.35297114 | X57: 2.35297114 | Y57: 2.35297114 | Z57: 2.35297114 | AA57: 18.02031556 | AB57: 25.99746162 | AC57: 28.63738046 | AD57: 34.26155538 | AE57: 16.47079798 | AF57: 15.7821235 | AG57: 15.38039672 | AH57: 12.9126465 | AI57: 12.56830926
B58: AÇÕES PN PROGEN S/A | D58: 0 | E58: 0 | F58: 0 | G58: 0 | H58: 0 | I58: 0 | J58: 0 | K58: 0 | L58: 0 | M58: 0 | N58: 0 | O58: 0 | P58: 0 | Q58: 0 | R58: 0 | S58: 0 | T58: 0 | U58: 0 | V58: 0 | W58: 0 | X58: 0 | Y58: 0 | Z58: 0 | AA58: 0 | AB58: 0 | AC58: 0 | AD58: 9.22671205 | AE58: 10.96360173 | AF58: 10.96360173 | AG58: 10.96360173 | AH58: 10.96360173 | AI58: 10.96360173
B59: AÇÕES ON TRANSNORDESTINA LOGISTICA S/A | D59: 0 | E59: 0.18000025 | F59: 0.18000025 | G59: 0.18000025 | H59: 0.18000025 | I59: 0.18000025 | J59: 0.23742125 | K59: 0.23742125 | L59: 0.27526725 | M59: 0.27526725 | N59: 0.27526725 | O59: 0.27526725 | P59: 0.27526725 | Q59: 0.28844125 | R59: 0.28844125 | S59: 0.28844125 | T59: 0.28844125 | U59: 0.28844125 | V59: 0.28844125 | W59: 0.28844125 | X59: 0.28844125 | Y59: 0.28844125 | Z59: 0.28844125 | AA59: 10.84628628 | AB59: 10.84628628 | AC59: 10.54360893 | AD59: 10.54360893 | AE59: 10.38287682 | AF59: 10.29311733 | AG59: 10.24093158 | AH59: 10.24093158 | AI59: 10.20544527
B60: AÇÕES PN METALURGICA GERDAU S/A | D60: 36.013093 | E60: 24.107604 | F60: 30.444614 | G60: 29.500804 | H60: 33.262561 | I60: 30.687308 | J60: 26.130054 | K60: 21.478419 | L60: 28.368232 | M60: 31.334492 | N60: 23.285141 | O60: 20.831235 | P60: 19.078445 | Q60: 15.23579 | R60: 14.575123 | S60: 8.602154 | T60: 4.085349 | U60: 2.211212 | V60: 3.316818 | W60: 2.683117 | X60: 4.638152 | Y60: 6.417908 | Z60: 6.754983 | AA60: 6.714534 | AB60: 7.065092 | AC60: 7.806657 | AD60: 9.545964 | AE60: 8.372943 | AF60: 10.665053 | AG60: 9.235855 | AH60: 9.640345 | AI60: 9.653828
B61: AÇÕES ON LOG COMMERCIAL PROPERTIES E PARTICIPAÇÕES S.A | D61: 0 | E61: 0 | F61: 0 | G61: 0 | H61: 0 | I61: 0 | J61: 0 | K61: 0 | L61: 0 | M61: 0 | N61: 0 | O61: 0 | P61: 0 | Q61: 0 | R61: 0 | S61: 0 | T61: 0 | U61: 0 | V61: 0 | W61: 0 | X61: 0 | Y61: 0 | Z61: 0 | AA61: 0 | AB61: 0 | AC61: 0 | AD61: 0 | AE61: 0 | AF61: 0 | AG61: 9.11000252 | AH61: 8.44650549 | AI61: 0
B62: AÇÕES ON BR MALLS PARTICIPACOES S/A | D62: 0 | E62: 0 | F62: 0 | G62: 12.80182 | H62: 15.699605 | I62: 15.083055 | J62: 14.085365 | K62: 11.148345 | L62: 11.33331 | M62: 9.500475 | N62: 10.834465 | O62: 10.48135 | P62: 10.744785 | Q62: 9.175385 | R62: 9.53971 | S62: 8.12725 | T62: 5.93009 | U62: 6.249575 | V62: 8.31782 | W62: 9.3777255 | X62: 8.933249 | Y62: 8.6636485 | Z62: 10.477987 | AA62: 12.13934217 | AB62: 14.49153147 | AC62: 12.95749497 | AD62: 11.95525779 | AE62: 9.97123725 | AF62: 9.85874124 | AG62: 13.23362154 | AH62: 6.78277314 | AI62: 0
B63: AÇÕES PN ESTRUTURADORA BRASILEIRA DE PROJETOS S/A - EBP | D63: 0 | E63: 7.2019464 | F63: 7.39659191 | G63: 5.65693425 | H63: 3.8199513 | I63: 3.892944 | J63: 1.98296835 | K63: 13.51786881 | L63: 13.79207817 | M63: 14.11851789 | N63: 14.44495761 | O63: 14.77139733 | P63: 15.17944698 | Q63: 13.33334208 | R63: 13.68056453 | S63: 14.09723147 | T63: 14.5833429 | U63: 15.06945433 | V63: 6.2535957 | W63: 6.2535957 | X63: 6.2535957 | Y63: 6.2535957 | Z63: 6.25359568 | AA63: 4.82252286 | AB63: 4.82252286 | AC63: 4.82252286 | AD63: 4.82252287 | AE63: 3.729839 | AF63: 3.729839 | AG63: 3.729839 | AH63: 3.79224408 | AI63: 3.79224408
B64: AÇÕES ON ESTRUTURADORA BRASILEIRA DE PROJETOS S/A - EBP | D64: 0 | E64: 5.7116456 | F64: 5.86601306 | G64: 5.981791 | H64: 6.0589754 | I64: 6.174752 | J64: 6.2905286 | K64: 6.39241201 | L64: 6.5220818 | M64: 6.6764506 | N64: 6.8308194 | O64: 6.9851882 | P64: 7.1781492 | Q64: 9.74546688 | R64: 9.99925508 | S64: 10.30380092 | T64: 10.6591044 | U64: 11.01440788 | V64: 4.57081273 | W64: 4.57081273 | X64: 4.57081273 | Y64: 4.57081273 | Z64: 4.57081272 | AA64: 3.78212695 | AB64: 3.78212695 | AC64: 3.78212695 | AD64: 3.52482795 | AE64: 2.726175 | AF64: 2.726175 | AG64: 2.726175 | AH64: 2.77178737 | AI64: 2.77178737
B65: AÇÕES ON KEPLER WEBER S/A | D65: 0 | E65: 0 | F65: 0 | G65: 0 | H65: 0 | I65: 0 | J65: 0 | K65: 0 | L65: 0 | M65: 0 | N65: 0 | O65: 0 | P65: 5.60291154 | Q65: 6.17155425 | R65: 3.37378299 | S65: 3.29272377 | T65: 2.46493719 | U65: 1.98349455 | V65: 1.86190572 | W65: 2.29176522 | X65: 2.42440758 | Y65: 2.24141025 | Z65: 2.78057688 | AA65: 2.90462205 | AB65: 2.81496564 | AC65: 2.36422725 | AD65: 1.47134766 | AE65: 1.22939817 | AF65: 1.10166849 | AG65: 1.82874513 | AH65: 2.1247341 | AI65: 2.37650895
B66: AÇÕES ON SEGURADORA BRASILEIRA DE CREDITO A EXPORTACAO S/A | D66: 1.16515202 | E66: 1.16515202 | F66: 1.16515202 | G66: 2.753 | H66: 2.753 | I66: 2.753 | J66: 2.753 | K66: 2.753 | L66: 2.753 | M66: 2.9394417 | N66: 3.0725526 | O66: 3.0725526 | P66: 3.0725526 | Q66: 3.0725526 | R66: 2.05992156 | S66: 2.05992156 | T66: 2.05992156 | U66: 3.149 | V66: 3.14868224 | W66: 3.14868224 | X66: 3.14868224 | Y66: 3.14868224 | Z66: 2.44635165 | AA66: 2.44635165 | AB66: 2.44635165 | AC66: 2.44635165 | AD66: 2.44635165 | AE66: 2.44635165 | AF66: 2.44635165 | AG66: 1.66257516 | AH66: 1.66257516 | AI66: 0
B67: AÇÕES ON ROSSI RESIDENCIAL S/A | D67: 0 | E67: 34.50028848 | F67: 42.02067156 | G67: 20.86162764 | H67: 21.58392432 | I67: 19.28957016 | J67: 12.78890004 | K67: 12.49148376 | L67: 13.51119672 | M67: 8.75253624 | N67: 7.6478472 | O67: 7.30794288 | P67: 4.58870832 | Q67: 3.4840201 | R67: 2.20088099 | S67: 1.09619169 | T67: 0.73929207 | U67: 0.55234465 | V67: 0.86336124 | W67: 0.48776511 | X67: 0.62372751 | Y67: 0.46397169 | Z67: 1.28824374 | AA67: 1.25595267 | AB67: 1.24745502 | AC67: 1.20326724 | AD67: 1.07580249 | AE67: 0.76818756 | AF67: 0.6288261 | AG67: 0.88885419 | AH67: 0.7987791 | AI67: 0
B68: AÇÕES PN AES TIETE ENERGIA SA | D68: 0 | E68: 0 | F68: 0 | G68: 0 | H68: 0 | I68: 0 | J68: 0 | K68: 0 | L68: 0 | M68: 0 | N68: 0 | O68: 0 | P68: 0 | Q68: 0 | R68: 0 | S68: 0 | T68: 0 | U68: 0 | V68: 0 | W68: 0 | X68: 0 | Y68: 8.28e-06 | Z68: 8.28e-06 | AA68: 8.25e-06 | AB68: 8.58e-06 | AC68: 7.77e-06 | AD68: 7.26e-06 | AE68: 5.82e-06 | AF68: 5.73e-06 | AG68: 6e-06 | AH68: 6.66e-06 | AI68: 7.05e-06
B69: AÇÕES PN INDEPENDENCIA PARTICIPACOES S/A | D69: 0 | E69: 2e-08 | F69: 2e-08 | G69: 2e-08 | H69: 2e-08 | I69: 6.02e-06 | J69: 6.02e-06 | K69: 2e-08 | L69: 6.02e-06 | M69: 6.02e-06 | N69: 6.02e-06 | O69: 6.02e-06 | P69: 6.02e-06 | Q69: 2e-08 | R69: 6.02e-06 | S69: 6.02e-06 | T69: 0 | U69: 0 | V69: 0 | W69: 0 | X69: 0 | Y69: 0 | Z69: 0 | AA69: 0 | AB69: 0 | AC69: 0 | AD69: 0 | AE69: 0 | AF69: 0 | AG69: 0 | AH69: 2e-08 | AI69: 0
B70: AÇÕES ON AES ELPA S/A | D70: 0 | E70: 4.5e-05 | F70: 3.734e-05 | G70: 2.449e-05 | H70: 1.777e-05 | I70: 1.429e-05 | J70: 9.59e-06 | K70: 8.01e-06 | L70: 9.86e-06 | M70: 9.24e-06 | N70: 7.43e-06 | O70: 8.28e-06 | P70: 7.7e-06 | Q70: 7.51e-06 | R70: 8.17e-06 | S70: 1.106e-05 | T70: 6.73e-06 | U70: 5.66e-06 | V70: 9.31e-06 | W70: 9.32e-06 | X70: 1.198e-05 | Y70: 1.234e-05 | Z70: 1.404e-05 | AA70: 7.49e-06 | AB70: 6e-06 | AC70: 4.89e-06 | AD70: 2.39e-06 | AE70: 1.44e-06 | AF70: 1e-08 | AG70: 1e-08 | AH70: 1e-08 | AI70: 1e-08
B71: AÇÕES ON AES URUGUAIANA | D71: 0 | E71: 0 | F71: 0 | G71: 0 | H71: 0 | I71: 0 | J71: 1e-08 | K71: 1e-08 | L71: 1e-08 | M71: 1e-08 | N71: 1e-08 | O71: 1e-08 | P71: 1e-08 | Q71: 1e-08 | R71: 1e-08 | S71: 1e-08 | T71: 1e-08 | U71: 1e-08 | V71: 1e-08 | W71: 1e-08 | X71: 1e-08 | Y71: 1e-08 | Z71: 1e-08 | AA71: 1e-08 | AB71: 1e-08 | AC71: 1e-08 | AD71: 1e-08 | AE71: 1e-08 | AF71: 1e-08 | AG71: 1e-08 | AH71: 1e-08 | AI71: 1e-08
B72: AÇÕES PN TELEFONICA BRASIL S/A | D72: 0 | E72: 49.96218838 | F72: 54.38362098 | G72: 70.7200338 | H72: 62.6255721 | I72: 69.41355928 | J72: 76.24414889 | K72: 71.11765648 | L72: 70.25140707 | M72: 63.87524338 | N72: 68.06448233 | O72: 63.97464905 | P72: 28.948976 | Q72: 0 | R72: 0 | S72: 0 | T72: 0 | U72: 0 | V72: 0 | W72: 0 | X72: 0 | Y72: 0 | Z72: 0 | AA72: 0 | AB72: 0 | AC72: 0 | AD72: 0 | AE72: 0 | AF72: 0 | AG72: 0 | AH72: 0 | AI72: 0
B73: AÇÕES ON EQUATORIAL ENERGIA S/A | D73: 0 | E73: 0 | F73: 0 | G73: 0 | H73: 0 | I73: 0 | J73: 65.23190643 | K73: 60.32232993 | L73: 68.83226253 | M73: 75.96751371 | N73: 66.54112683 | O73: 82.51361571 | P73: 80.97528174 | Q73: 90.49986015 | R73: 102.0537302 | S73: 114.7204375 | T73: 111.6110391 | U73: 112.0692662 | V73: 134.0968995 | W73: 159.4303142 | X73: 166.1073382 | Y73: 178.5122015 | Z73: 191.8007886 | AA73: 176.2537963 | AB73: 0 | AC73: 0 | AD73: 0 | AE73: 0 | AF73: 0 | AG73: 0 | AH73: 0 | AI73: 0
B74: AÇÕES PN OI S/A | D74: 0 | E74: 0 | F74: 0 | G74: 179.3790863 | H74: 176.3643036 | I74: 177.8716908 | J74: 132.4347335 | K74: 84.41368376 | L74: 77.35648455 | M74: 66.5668094 | N74: 57.60589275 | O74: 522.666017 | P74: 451.0315883 | Q74: 230.5567276 | R74: 139.5544749 | S74: 156.2691744 | T74: 77.82651652 | U74: 0 | V74: 0 | W74: 0 | X74: 0 | Y74: 0 | Z74: 0 | AA74: 0 | AB74: 0 | AC74: 0 | AD74: 0 | AE74: 0 | AF74: 0 | AG74: 0 | AH74: 0 | AI74: 0
B75: AÇÕES UNIT BANCO SANTANDER (BRASIL) S/A | D75: 0 | E75: 36.93634472 | F75: 41.7262183 | G75: 66.77347608 | H75: 64.48138137 | I75: 64.56787551 | J75: 62.92448685 | K75: 57.86457966 | L75: 65.13008742 | M75: 60.84862749 | N75: 53.84260215 | O75: 65.21658156 | P75: 6.061 | Q75: 0 | R75: 0 | S75: 0 | T75: 0 | U75: 0 | V75: 0 | W75: 0 | X75: 0 | Y75: 0 | Z75: 0 | AA75: 0 | AB75: 0 | AC75: 0 | AD75: 0 | AE75: 0 | AF75: 0 | AG75: 0 | AH75: 0 | AI75: 0
B76: AÇÕES ON MAGNESITA REFRATARIOS S/A | D76: 85.2987121 | E76: 48.3219305 | F76: 57.48208776 | G76: 53.70037146 | H76: 63.70091012 | I76: 69.66761806 | J76: 60.17130824 | K76: 54.624791 | L76: 52.69191378 | M76: 49.24635004 | N76: 42.35522256 | O76: 37.06081974 | P76: 26.8922048 | Q76: 17.47993312 | R76: 19.58088662 | S76: 23.61471734 | T76: 23.27856478 | U76: 24.3710606 | V76: 23.614678 | W76: 24.0852908 | X76: 36.7582212 | Y76: 39.91805 | Z76: 42.2879216 | AA76: 61.4822008 | AB76: 67.8690888 | AC76: 84.4749976 | AD76: 0 | AE76: 0 | AF76: 0 | AG76: 0 | AH76: 0 | AI76: 0
B77: AÇÕES ON GAFISA S/A | D77: 0 | E77: 40.88574078 | F77: 43.04278226 | G77: 25.39426106 | H77: 44.31739768 | I77: 45.39591842 | J77: 38.92479398 | K77: 28.13958658 | L77: 35.49313708 | M77: 34.8068057 | N77: 34.21852166 | O77: 32.94390624 | P77: 28.23763392 | Q77: 21.76650948 | R77: 20.98213076 | S77: 22.74698288 | T77: 19.31532598 | U77: 23.72745628 | V77: 25.68840308 | W77: 20.19775204 | X77: 24.511835 | Y77: 18.43289992 | Z77: 19.94684913 | AA77: 7.80275943 | AB77: 9.71527176 | AC77: 14.64562674 | AD77: 0 | AE77: 0 | AF77: 0 | AG77: 0 | AH77: 0 | AI77: 0
B78: AÇÕES ON PDG REALTY S/A EMPREENDIMENTOS E PARTICIPACOES | D78: 251.6329659 | E78: 147.0742777 | F78: 158.9390934 | G78: 82.36007498 | H78: 90.75940274 | I78: 76.9938378 | J78: 73.26080324 | K78: 49.22939326 | L78: 56.92877704 | M78: 42.69658278 | N78: 33.36399638 | O78: 34.53056968 | P78: 25.19798328 | Q78: 20.29837542 | R78: 11.43241834 | S78: 8.63264242 | T78: 1.39988796 | U78: 0.7652732 | V78: 2.1091676 | W78: 1.1339109 | X78: 1.1245783 | Y78: 0.5552897 | Z78: 1.0312523 | AA78: 0.8679318 | AB78: 1.1339109 | AC78: 1.0592501 | AD78: 0.7372754 | AE78: 0 | AF78: 0 | AG78: 0 | AH78: 0 | AI78: 0
B79: AÇÕES UNITS CONTAX PARTICIPACOES S/A | D79: 0 | E79: 0 | F79: 0 | G79: 0 | H79: 0 | I79: 0 | J79: 0 | K79: 25.7024 | L79: 24.3328 | M79: 25.5872 | N79: 22.2976 | O79: 20.48 | P79: 34.88775258 | Q79: 22.53662732 | R79: 16.0537681 | S79: 10.81839914 | T79: 4.88770774 | U79: 0.83847706 | V79: 1.3292929 | W79: 0 | X79: 0 | Y79: 0 | Z79: 0 | AA79: 0 | AB79: 0 | AC79: 0 | AD79: 0 | AE79: 0 | AF79: 0 | AG79: 0 | AH79: 0 | AI79: 0
B80: AÇÕES ON SOUZA CRUZ S/A | D80: 0 | E80: 0 | F80: 0 | G80: 30.319055 | H80: 27.94129 | I80: 31.53345 | J80: 29.992495 | K80: 28.00252 | L80: 26.9412 | M80: 24.440975 | N80: 21.012095 | O80: 23.359245 | P80: 20.08344 | Q80: 19.807905 | R80: 25.788035 | S80: 24.94102 | T80: 27.18612 | U80: 0 | V80: 0 | W80: 0 | X80: 0 | Y80: 0 | Z80: 0 | AA80: 0 | AB80: 0 | AC80: 0 | AD80: 0 | AE80: 0 | AF80: 0 | AG80: 0 | AH80: 0 | AI80: 0
B81: AÇÕES ON CCX CARVÃO DA COLOMBIA S/A | D81: 0 | E81: 0 | G81: 85.54765791 | H81: 62.01706669 | I81: 41.07882874 | J81: 70.79118545 | K81: 18.94412005 | L81: 27.12000344 | M81: 19.54235542 | N81: 19.14353184 | O81: 15.35470783 | P81: 7.37823623 | Q81: 0 | R81: 0 | S81: 0 | T81: 0 | U81: 0 | V81: 0 | W81: 0 | X81: 0 | Y81: 0 | Z81: 0 | AA81: 0 | AB81: 0 | AC81: 0 | AD81: 0 | AE81: 0 | AF81: 0 | AG81: 0 | AH81: 0 | AI81: 0
B82: AÇÕES ON BEMATECH S/A | D82: 38.5617 | E82: 17.47536 | F82: 17.92116 | G82: 17.342 | H82: 21.88878 | I82: 25.99014 | J82: 38.65086 | K82: 30.31805 | L82: 30.033381 | M82: 16.42001 | N82: 14.749265 | O82: 15.91699 | P82: 12.462576 | Q82: 0 | R82: 0 | S82: 0 | T82: 0 | U82: 0 | V82: 0 | W82: 0 | X82: 0 | Y82: 0 | Z82: 0 | AA82: 0 | AB82: 0 | AC82: 0 | AD82: 0 | AE82: 0 | AF82: 0 | AG82: 0 | AH82: 0 | AI82: 0
B83: AÇÕES ON SENIOR SOLUTION S/A | D83: 0 | E83: 0 | F83: 0 | G83: 0 | H83: 0 | I83: 0 | J83: 16.2120882 | K83: 15.299 | L83: 15.636336 | M83: 15.1510704 | N83: 10.6758432 | O83: 10.8106392 | P83: 11.2824252 | Q83: 11.5385376 | R83: 13.4930796 | S83: 14.82756 | T83: 13.4661204 | U83: 12.1451196 | V83: 11.2015476 | W83: 13.4391612 | X83: 17.590878 | Y83: 18.7231644 | Z83: 21.7156356 | AA83: 23.0905548 | AB83: 35.4243888 | AC83: 35.5996236 | AD83: 36.799308 | AE83: 29.3316096 | AF83: 28.7519868 | AG83: 32.7947328 | AH83: 0 | AI83: 0
B84: AÇÕES PN ELETROPAULO METROPOLITANA ELETRICIDADE DE SP S/A | D84: 23.55788476 | E84: 26.58430544 | F84: 28.22240992 | G84: 14.52026752 | H84: 11.2657248 | I84: 9.5872456 | J84: 5.6613112 | K84: 3.61868736 | L84: 4.91026288 | M84: 5.46785936 | N84: 4.88750384 | O84: 6.0880432 | P84: 4.83060624 | Q84: 5.06957616 | R84: 5.5190672 | S84: 9.99121856 | T84: 6.19614864 | U84: 4.70543152 | V84: 4.58594656 | W84: 4.79077792 | X84: 5.99131728 | Y84: 205.3913441 | Z84: 258.381836 | AA84: 236.8031061 | AB84: 238.3042351 | AC84: 0 | AD84: 0 | AE84: 0 | AF84: 0 | AG84: 0 | AH84: 0 | AI84: 0
B85: AÇÕES PNB SETAL TELECOM S/A | D85: 0 | E85: 4.12800775 | F85: 4.12800775 | G85: 4.12800775 | H85: 4.12800775 | I85: 4.12800775 | J85: 4.12800775 | K85: 4.12800775 | L85: 4.12800775 | M85: 4.12800775 | N85: 4.12800775 | O85: 4.12800775 | P85: 4.12800775 | Q85: 4.14300775 | R85: 4.12800775 | S85: 4.12800775 | T85: 4.12800775 | U85: 0 | V85: 0 | W85: 0 | X85: 0 | Y85: 0 | Z85: 0 | AA85: 0 | AB85: 0 | AC85: 0 | AD85: 0 | AE85: 0 | AF85: 0 | AG85: 0 | AH85: 0 | AI85: 0
B86: AÇÕES ON COSAN S/A INDUSTRIA E COMERCIO | D86: 0 | E86: 0 | F86: 0 | G86: 3.406893 | H86: 4.12923 | I86: 4.642323 | J86: 5.01963 | K86: 4.801482 | L86: 4.746945 | M86: 4.404141 | N86: 3.894387 | O86: 4.448661 | P86: 4.342926 | Q86: 3.209892 | R86: 3.108609 | S86: 2.794743 | T86: 2.244921 | U86: 2.791404 | V86: 3.507063 | W86: 3.702951 | X86: 4.177089 | Y86: 4.190445 | Z86: 4.290615 | AA86: 3.830946 | AB86: 4.0068 | AC86: 4.620063 | AD86: 4.594464 | AE86: 3.923325 | AF86: 3.593877 | AG86: 3.718533 | AH86: 0 | AI86: 0
B87: AÇÕES ON MMX MINERACAO E METALICOS S/A | D87: 0 | E87: 37.08608656 | F87: 50.8258114 | G87: 35.61376678 | H87: 32.2889627 | I87: 28.26083468 | J87: 14.45011004 | K87: 9.84653516 | L87: 10.2301664 | M87: 4.4756978 | N87: 2.69607679 | O87: 2.21653744 | P87: 0.60741651 | Q87: 0 | R87: 0 | S87: 0 | T87: 0 | U87: 0 | V87: 0 | W87: 0 | X87: 0 | Y87: 0 | Z87: 0 | AA87: 0 | AB87: 0 | AC87: 0 | AD87: 0 | AE87: 0 | AF87: 0 | AG87: 0 | AH87: 0 | AI87: 0
B88: AÇÕES PN INEPAR S/A INDUSTRIA E CONSTRUCOES | D88: 0 | E88: 4.37804674 | F88: 8.47366944 | G88: 6.87349152 | H88: 7.01896224 | I88: 4.94600312 | J88: 5.30967982 | K88: 5.01873846 | L88: 3.70950234 | M88: 3.09125195 | N88: 2.43663389 | O88: 1.89111884 | P88: 0 | Q88: 0 | R88: 0 | S88: 0 | T88: 0 | U88: 0 | V88: 0 | W88: 0 | X88: 0 | Y88: 0 | Z88: 0 | AA88: 0 | AB88: 0 | AC88: 0 | AD88: 0 | AE88: 0 | AF88: 0 | AG88: 0 | AH88: 0 | AI88: 0
B89: AÇÕES ON OGX PETROLEO E GAS PARTICIPACOES S/A | D89: 0 | E89: 82.074804 | F89: 92.893206 | G89: 45.15912 | H89: 52.100244 | I89: 36.210924 | J89: 20.07072 | K89: 6.69024 | L89: 1.923444 | M89: 2.007072 | N89: 2.007072 | O89: 1.505304 | P89: 1.338048 | Q89: 0 | R89: 0 | S89: 0 | T89: 0 | U89: 0 | V89: 0 | W89: 0 | X89: 0 | Y89: 0 | Z89: 0 | AA89: 0 | AB89: 0 | AC89: 0 | AD89: 0 | AE89: 0 | AF89: 0 | AG89: 0 | AH89: 0 | AI89: 0
B90: AÇÕES UNIT ALUPAR INVESTIMENTO S.A. | D90: 0 | E90: 0 | F90: 0 | G90: 0 | H90: 0 | I90: 0 | J90: 0 | K90: 0 | L90: 1.102526 | M90: 1.028982 | N90: 1.12852 | O90: 1.03659 | P90: 1.09999 | Q90: 1.132324 | R90: 1.20143 | S90: 1.039126 | T90: 0.930078 | U90: 0.806448 | V90: 0.945928 | W90: 0.93043938 | X90: 0 | Y90: 0 | Z90: 0 | AA90: 0 | AB90: 0 | AC90: 0 | AD90: 0 | AE90: 0 | AF90: 0 | AG90: 0 | AH90: 0 | AI90: 0
B91: AÇÕES PN GOL LINHAS AEREAS INTELIGENTES S/A | D91: 0 | E91: 0 | F91: 0 | G91: 0.873549 | H91: 1.117643 | I91: 1.237768 | J91: 1.145512 | K91: 0.696725 | L91: 1.021543 | M91: 1.013855 | N91: 1.059022 | O91: 1.157044 | P91: 0 | Q91: 0 | R91: 0 | S91: 0 | T91: 0 | U91: 0 | V91: 0 | W91: 0 | X91: 0 | Y91: 0 | Z91: 0 | AA91: 0 | AB91: 0 | AC91: 0 | AD91: 0 | AE91: 0 | AF91: 0 | AG91: 0 | AH91: 0 | AI91: 0
B92: AÇÕES ON INEPAR S/A INDUSTRIA E CONSTRUCOES | D92: 0 | E92: 0 | F92: 2.32727296 | G92: 1.83636382 | H92: 1.84545473 | I92: 1.2545442 | J92: 1.3454532 | K92: 1.2545442 | L92: 1.0818171 | M92: 0.9272718 | N92: 0.6727266 | O92: 0.5545449 | P92: 0 | Q92: 0 | R92: 0 | S92: 0 | T92: 0 | U92: 0 | V92: 0 | W92: 0 | X92: 0 | Y92: 0 | Z92: 0 | AA92: 0 | AB92: 0 | AC92: 0 | AD92: 0 | AE92: 0 | AF92: 0 | AG92: 0 | AH92: 0 | AI92: 0
B93: AÇÕES ON CIA BRASILEIRA DE PARTICIPACAO AGROIND. BRASAGRO | D93: 0 | E93: 0 | F93: 0.00079308 | G93: 0.00079308 | H93: 0.00079308 | I93: 0.00079308 | J93: 0.00079308 | K93: 0 | L93: 0.00079308 | M93: 0.00079308 | N93: 0.00079308 | O93: 0.00079308 | P93: 0.00079308 | Q93: 0.00079308 | R93: 0.00079308 | S93: 0.00079308 | T93: 0.00079308 | U93: 0.00079308 | V93: 0.00079308 | W93: 0.00079308 | X93: 0 | Y93: 0 | Z93: 0 | AA93: 0 | AB93: 0 | AC93: 0 | AD93: 0 | AE93: 0 | AF93: 0 | AG93: 0 | AH93: 0 | AI93: 0
B94: AÇÕES PNA METANOR S/A - METANOL DO NORDESTE | D94: 0 | E94: 0.00065748 | F94: 0.00065748 | G94: 0.00065748 | H94: 0.00065748 | I94: 0.00065748 | J94: 0.00065748 | K94: 0.00065748 | L94: 0.00065748 | M94: 0.00065748 | N94: 0.00065748 | O94: 0.00065748 | P94: 0.00065748 | Q94: 0.00065748 | R94: 0.00065748 | S94: 0.00065748 | T94: 0.00065748 | U94: 0.00065748 | V94: 0.00065748 | W94: 0.00065748 | X94: 0 | Y94: 0 | Z94: 0 | AA94: 0 | AB94: 0 | AC94: 0 | AD94: 0 | AE94: 0 | AF94: 0 | AG94: 0 | AH94: 0 | AI94: 0
B95: AÇÕES ON COMPANHIA DO METROPOLITANO DE SAO PAULO - METRO | D95: 0 | E95: 8.9e-07 | F95: 8.9e-07 | G95: 8.9e-07 | H95: 8.9e-07 | I95: 0.00027241 | J95: 0 | K95: 0 | L95: 0.00027241 | M95: 0.00027241 | N95: 0.00027241 | O95: 0.00027241 | P95: 0.00027241 | Q95: 0.00027241 | R95: 0.00027241 | S95: 0.00027241 | T95: 0.00027241 | U95: 0.00027241 | V95: 0.00027241 | W95: 0.00027241 | X95: 0 | Y95: 0 | Z95: 0 | AA95: 0 | AB95: 0 | AC95: 0 | AD95: 0 | AE95: 0 | AF95: 0 | AG95: 0 | AH95: 0 | AI95: 0
B96: AÇÕES ON SAM INDUSTRIAS S/A | D96: 0 | E96: 0 | F96: 0 | G96: 0 | H96: 0 | I96: 0.00025088 | J96: 0 | K96: 0 | L96: 0.00025088 | M96: 0.00025088 | N96: 0.00025088 | O96: 0.00025088 | P96: 0.00025088 | Q96: 0.00025088 | R96: 0.00025088 | S96: 0.00025088 | T96: 0.00025088 | U96: 0.00025088 | V96: 0.00025088 | W96: 0.00025088 | X96: 0 | Y96: 0 | Z96: 0 | AA96: 0 | AB96: 0 | AC96: 0 | AD96: 0 | AE96: 0 | AF96: 0 | AG96: 0 | AH96: 0 | AI96: 0
B97: AÇÕES ON ELETROPAULO METROPOLITANA ELETRICIDADE DE SP S/A | D97: 0 | E97: 4.408e-05 | F97: 4.408e-05 | G97: 4.35e-05 | H97: 2.8e-05 | I97: 2.4e-05 | J97: 1.5e-05 | K97: 9.83e-06 | L97: 1.01e-05 | M97: 1.1e-05 | N97: 1.53e-05 | O97: 1.399e-05 | P97: 1.268e-05 | Q97: 1.15e-05 | R97: 1.35e-05 | S97: 1.5e-05 | T97: 1.249e-05 | U97: 1e-05 | V97: 1.69e-05 | W97: 3.476e-05 | X97: 2e-05 | Y97: 136.6165269 | Z97: 173.3121943 | AA97: 158.8380459 | AB97: 159.8449432 | AC97: 509.4428463 | AD97: 552.0792937 | AE97: 0 | AF97: 0 | AG97: 0 | AH97: 0 | AI97: 0
B98: AÇÕES PN CARBOMIL S/A MINERACAO E INDUSTRIA | D98: 0 | E98: 0 | F98: 0 | G98: 0 | H98: 0 | I98: 9.91e-06 | J98: 0 | K98: 0 | L98: 9.91e-06 | M98: 9.91e-06 | N98: 9.91e-06 | O98: 9.91e-06 | P98: 9.91e-06 | Q98: 9.91e-06 | R98: 9.91e-06 | S98: 9.91e-06 | T98: 9.91e-06 | U98: 9.91e-06 | V98: 9.91e-06 | W98: 9.91e-06 | X98: 9.91e-06 | Y98: 9.91e-06 | Z98: 9.91e-06 | AA98: 0 | AB98: 0 | AC98: 0 | AD98: 0 | AE98: 0 | AF98: 0 | AG98: 0 | AH98: 0 | AI98: 0
B99: AÇÕES ONB TBM - TEXTIL BEZERRA DE MENEZES S/A | D99: 0 | E99: 0 | F99: 1.8e-06 | G99: 1.8e-06 | H99: 1.8e-06 | I99: 1.8e-06 | J99: 1.8e-06 | K99: 0 | L99: 1.8e-06 | M99: 1.8e-06 | N99: 1.8e-06 | O99: 1.8e-06 | P99: 1.8e-06 | Q99: 1.8e-06 | R99: 1.8e-06 | S99: 1.8e-06 | T99: 1.8e-06 | U99: 1.8e-06 | V99: 1.8e-06 | W99: 1.8e-06 | X99: 0 | Y99: 0 | Z99: 0 | AA99: 0 | AB99: 0 | AC99: 0 | AD99: 0 | AE99: 0 | AF99: 0 | AG99: 0 | AH99: 0 | AI99: 0
B100: AÇÕES PN KOSMOS COM DE VEST SA EM RECUP JUDICIAL | D100: 0 | E100: 1.31e-06 | F100: 1.31e-06 | G100: 1.31e-06 | H100: 1.31e-06 | I100: 1.31e-06 | J100: 1.31e-06 | K100: 1.31e-06 | L100: 1.31e-06 | M100: 1.31e-06 | N100: 1.31e-06 | O100: 1.31e-06 | P100: 1.31e-06 | Q100: 1.31e-06 | R100: 1.31e-06 | S100: 1.31e-06 | T100: 1.31e-06 | U100: 1.31e-06 | V100: 1.31e-06 | W100: 1.31e-06 | X100: 0 | Y100: 0 | Z100: 0 | AA100: 0 | AB100: 0 | AC100: 0 | AD100: 0 | AE100: 0 | AF100: 0 | AG100: 0 | AH100: 0 | AI100: 0
B101: AÇÕES ON CIA DE TRANSITO E TRANSPORTE URBANO DO RECIFE CTTU | D101: 0 | E101: 0 | F101: 1e-06 | G101: 1e-06 | H101: 1e-06 | I101: 1e-06 | J101: 1e-06 | K101: 0 | L101: 1e-06 | M101: 1e-06 | N101: 1e-06 | O101: 1e-06 | P101: 1e-06 | Q101: 1e-06 | R101: 1e-06 | S101: 1e-06 | T101: 1e-06 | U101: 1e-06 | V101: 1e-06 | W101: 1e-06 | X101: 0 | Y101: 0 | Z101: 0 | AA101: 0 | AB101: 0 | AC101: 0 | AD101: 0 | AE101: 0 | AF101: 0 | AG101: 0 | AH101: 0 | AI101: 0
B102: AÇÕES ON CIA DE TRANSPORTES COLETIVOS DO ESTADO DO RJ | D102: 0 | E102: 0 | F102: 1e-06 | G102: 1e-06 | H102: 1e-06 | I102: 1e-06 | J102: 1e-06 | K102: 0 | L102: 1e-06 | M102: 1e-06 | N102: 1e-06 | O102: 1e-06 | P102: 1e-06 | Q102: 1e-06 | R102: 1e-06 | S102: 1e-06 | T102: 1e-06 | U102: 1e-06 | V102: 1e-06 | W102: 1e-06 | X102: 0 | Y102: 0 | Z102: 0 | AA102: 0 | AB102: 0 | AC102: 0 | AD102: 0 | AE102: 0 | AF102: 0 | AG102: 0 | AH102: 0 | AI102: 0
B103: AÇÕES ON S/A INDUSTRIA E COMERCIO CHAPECO | D103: 0 | E103: 6e-08 | F103: 1e-06 | G103: 6e-08 | H103: 6e-08 | I103: 1e-06 | J103: 1e-06 | K103: 6e-08 | L103: 1e-06 | M103: 1e-06 | N103: 1e-06 | O103: 1e-06 | P103: 1e-06 | Q103: 1e-06 | R103: 1e-06 | S103: 1e-06 | T103: 1e-06 | U103: 1e-06 | V103: 1e-06 | W103: 1e-06 | X103: 0 | Y103: 0 | Z103: 0 | AA103: 0 | AB103: 0 | AC103: 0 | AD103: 0 | AE103: 0 | AF103: 0 | AG103: 0 | AH103: 0 | AI103: 0
B104: AÇÕES PN CIA DE TRANSITO E TRANSPORTE URBANO DO RECIFE CTTU | D104: 0 | E104: 0 | F104: 1e-06 | G104: 1e-06 | H104: 1e-06 | I104: 1e-06 | J104: 1e-06 | K104: 0 | L104: 1e-06 | M104: 1e-06 | N104: 1e-06 | O104: 1e-06 | P104: 1e-06 | Q104: 1e-06 | R104: 1e-06 | S104: 1e-06 | T104: 1e-06 | U104: 1e-06 | V104: 1e-06 | W104: 1e-06 | X104: 0 | Y104: 0 | Z104: 0 | AA104: 0 | AB104: 0 | AC104: 0 | AD104: 0 | AE104: 0 | AF104: 0 | AG104: 0 | AH104: 0 | AI104: 0
B105: AÇÕES PN COMPANHIA DE SANEAMENTO DE ALAGOAS - CASAL | D105: 0 | E105: 0 | F105: 0 | G105: 0 | H105: 0 | I105: 1e-06 | J105: 0 | K105: 0 | L105: 1e-06 | M105: 0 | N105: 1e-06 | O105: 1e-06 | P105: 1e-06 | Q105: 1e-06 | R105: 1e-06 | S105: 1e-06 | T105: 1e-06 | U105: 1e-06 | V105: 1e-06 | W105: 1e-06 | X105: 0 | Y105: 0 | Z105: 0 | AA105: 0 | AB105: 0 | AC105: 0 | AD105: 0 | AE105: 0 | AF105: 0 | AG105: 0 | AH105: 0 | AI105: 0
B106: AÇÕES PN ELEBRA SA ELETRONICA BRASILEIRA | D106: 0 | E106: 0 | F106: 1e-06 | G106: 1e-06 | H106: 1e-06 | I106: 1e-06 | J106: 1e-06 | K106: 0 | L106: 1e-06 | M106: 1e-06 | N106: 1e-06 | O106: 1e-06 | P106: 1e-06 | Q106: 1e-06 | R106: 1e-06 | S106: 1e-06 | T106: 1e-06 | U106: 1e-06 | V106: 1e-06 | W106: 1e-06 | X106: 0 | Y106: 0 | Z106: 0 | AA106: 0 | AB106: 0 | AC106: 0 | AD106: 0 | AE106: 0 | AF106: 0 | AG106: 0 | AH106: 0 | AI106: 0
B107: AÇÕES PNA BRASPEROLA INDUSTRIA E COMERCIO S/A | D107: 0 | E107: 0 | F107: 1e-06 | G107: 0 | H107: 1e-06 | I107: 1e-06 | J107: 1e-06 | K107: 0 | L107: 1e-06 | M107: 1e-06 | N107: 1e-06 | O107: 1e-06 | P107: 1e-06 | Q107: 1e-06 | R107: 1e-06 | S107: 1e-06 | T107: 1e-06 | U107: 1e-06 | V107: 1e-06 | W107: 1e-06 | X107: 0 | Y107: 0 | Z107: 0 | AA107: 0 | AB107: 0 | AC107: 0 | AD107: 0 | AE107: 0 | AF107: 0 | AG107: 0 | AH107: 0 | AI107: 0
B108: AÇÕES ON NESBER S/A | D108: 0 | E108: 8e-08 | F108: 9.8e-07 | G108: 9.8e-07 | H108: 9.8e-07 | I108: 9.8e-07 | J108: 9.8e-07 | K108: 8e-08 | L108: 9.8e-07 | M108: 9.8e-07 | N108: 9.8e-07 | O108: 9.8e-07 | P108: 9.8e-07 | Q108: 9.8e-07 | R108: 9.8e-07 | S108: 9.8e-07 | T108: 9.8e-07 | U108: 9.8e-07 | V108: 9.8e-07 | W108: 9.8e-07 | X108: 0 | Y108: 0 | Z108: 0 | AA108: 0 | AB108: 0 | AC108: 0 | AD108: 0 | AE108: 0 | AF108: 0 | AG108: 0 | AH108: 0 | AI108: 0
B109: AÇÕES PN CASA ANGLO BRASILEIRA S/A | D109: 0 | E109: 7.3e-07 | F109: 7.3e-07 | G109: 7.3e-07 | H109: 7.3e-07 | I109: 7.3e-07 | J109: 7.3e-07 | K109: 7.3e-07 | L109: 7.3e-07 | M109: 7.3e-07 | N109: 7.3e-07 | O109: 7.3e-07 | P109: 7.3e-07 | Q109: 7.3e-07 | R109: 7.3e-07 | S109: 7.3e-07 | T109: 7.3e-07 | U109: 7.3e-07 | V109: 7.3e-07 | W109: 7.3e-07 | X109: 0 | Y109: 0 | Z109: 0 | AA109: 0 | AB109: 0 | AC109: 0 | AD109: 0 | AE109: 0 | AF109: 0 | AG109: 0 | AH109: 0 | AI109: 0
B110: AÇÕES PNA MADEF S/A INDUSTRIA E COMERCIO | D110: 0 | E110: 2e-08 | F110: 7.1e-07 | G110: 7.1e-07 | H110: 7.1e-07 | I110: 7.1e-07 | J110: 7.1e-07 | K110: 2e-08 | L110: 7.1e-07 | M110: 7.1e-07 | N110: 7.1e-07 | O110: 7.1e-07 | P110: 7.1e-07 | Q110: 7.1e-07 | R110: 7.1e-07 | S110: 7.1e-07 | T110: 7.1e-07 | U110: 7.1e-07 | V110: 7.1e-07 | W110: 7.1e-07 | X110: 0 | Y110: 0 | Z110: 0 | AA110: 0 | AB110: 0 | AC110: 0 | AD110: 0 | AE110: 0 | AF110: 0 | AG110: 0 | AH110: 0 | AI110: 0
B111: AÇÕES PN S/A INDUSTRIA E COMERCIO CHAPECO | D111: 0 | E111: 0 | F111: 0 | G111: 0 | H111: 0 | I111: 0 | J111: 0 | K111: 0 | L111: 0 | M111: 0 | N111: 0 | O111: 0 | P111: 0 | Q111: 0 | R111: 0 | S111: 0 | T111: 0 | U111: 0 | V111: 0 | W111: 0 | X111: 0 | Y111: 0 | Z111: 0 | AA111: 0 | AB111: 0 | AC111: 0 | AD111: 0 | AE111: 0 | AF111: 0 | AG111: 0 | AH111: 0 | AI111: 0
B112: AÇÕES ON REDE ENERGIA S/A | D112: 0 | E112: 0 | F112: 0 | G112: 0 | H112: 0 | I112: 0 | J112: 0 | K112: 0 | L112: 0 | M112: 0 | N112: 0 | O112: 0 | P112: 0 | Q112: 0 | R112: 0 | S112: 0 | T112: 0 | U112: 0 | V112: 0 | W112: 0 | X112: 0 | Y112: 0 | Z112: 0 | AA112: 0 | AB112: 181.6859691 | AC112: 151.7190237 | AD112: 167.0318977 | AE112: 203.2820625 | AF112: 203.2820628 | AG112: 271.0771699 | AH112: 0 | AI112: 0
B113: AÇÕES PN REDE ENERGIA S/A | D113: 408.5636354 | E113: 338.21493 | F113: 39.87518302 | G113: 39.87518302 | H113: 0 | I113: 0 | J113: 0 | K113: 0 | L113: 0 | M113: 0 | N113: 0 | O113: 0 | P113: 0 | Q113: 0 | R113: 0 | S113: 0 | T113: 0 | U113: 0 | V113: 0 | W113: 134.6095421 | X113: 99.45852625 | Y113: 112.6796861 | Z113: 170.5607746 | AA113: 177.64102 | AB113: 0 | AC113: 0 | AD113: 0 | AE113: 0 | AF113: 0 | AG113: 0 | AH113: 0 | AI113: 0
B114: AÇÕES ON RUMO LOGÍSTICA OPERADORA MULTIMODAL S.A | D114: 1270.009113 | E114: 0 | F114: 0 | G114: 0 | H114: 0 | I114: 0 | J114: 0 | K114: 0 | L114: 0 | M114: 0 | N114: 0 | O114: 0 | P114: 0 | Q114: 0 | R114: 0 | S114: 304.3703057 | T114: 143.3176667 | U114: 148.590223 | V114: 81.0056377 | W114: 524.8060714 | X114: 671.8376293 | Y114: 650.1184506 | Z114: 458.8033028 | AA114: 0 | AB114: 0 | AC114: 0 | AD114: 0 | AE114: 0 | AF114: 0 | AG114: 0 | AH114: 0 | AI114: 0
B115: AÇÕES ON CONTAX PARTICIPACOES S/A | D115: 0 | E115: 3.193524 | F115: 3.6378 | G115: 3.484548 | H115: 3.006216 | I115: 3.87 | J115: 4.091364 | K115: 0 | L115: 0 | M115: 0 | N115: 0 | O115: 0 | P115: 0 | Q115: 0 | R115: 0 | S115: 0 | T115: 0 | U115: 0 | V115: 0 | W115: 0.66567354 | X115: 1.09309526 | Y115: 0.96732284 | Z115: 0 | AA115: 0 | AB115: 0 | AC115: 0 | AD115: 0 | AE115: 0 | AF115: 0 | AG115: 0 | AH115: 0 | AI115: 0
B116: AÇÕES ON COSAN LOGÍSTICA S.A. | D116: 0 | E116: 0 | F116: 0 | G116: 0 | H116: 0 | I116: 0 | J116: 0 | K116: 0 | L116: 0 | M116: 0 | N116: 0 | O116: 0 | P116: 0 | Q116: 0.316092 | R116: 0.294945 | S116: 0.259329 | T116: 0.124656 | U116: 0.114639 | V116: 0.060102 | W116: 0.39877864 | X116: 0.4570431 | Y116: 0.5148183 | Z116: 0 | AA116: 0 | AB116: 0 | AC116: 0 | AD116: 0 | AE116: 0 | AF116: 0 | AG116: 0 | AH116: 0 | AI116: 0
B117: AÇÕES ON COMPANHIA BRASILIANA DE ENERGIA | D117: 0 | E117: 0 | F117: 0 | G117: 0 | H117: 0 | I117: 0 | J117: 0 | K117: 0 | L117: 0 | M117: 0 | N117: 0 | O117: 0 | P117: 0 | Q117: 0 | R117: 0 | S117: 0 | T117: 0 | U117: 309.3711887 | V117: 0 | W117: 0 | X117: 0 | Y117: 0 | Z117: 0 | AA117: 0 | AB117: 0 | AC117: 0 | AD117: 0 | AE117: 0 | AF117: 0 | AG117: 0 | AH117: 0 | AI117: 0
B118: AÇÕES PN COMPANHIA BRASILIANA DE ENERGIA | D118: 0 | E118: 0 | F118: 0 | G118: 0 | H118: 0 | I118: 0 | J118: 0 | K118: 0 | L118: 0 | M118: 0 | N118: 0 | O118: 0 | P118: 0 | Q118: 0 | R118: 0 | S118: 0 | T118: 0 | U118: 1233.169954 | V118: 0 | W118: 0 | X118: 0 | Y118: 0 | Z118: 0 | AA118: 0 | AB118: 0 | AC118: 0 | AD118: 0 | AE118: 0 | AF118: 0 | AG118: 0 | AH118: 0 | AI118: 0
B119: AÇÕES ON TELEMAR PARTICIPACOES S/A | D119: 15.13087262 | E119: 81.03564517 | F119: 37.17307158 | G119: 14.57492792 | H119: 35.29552116 | I119: 1.52271884 | J119: 3.8e-07 | K119: 0 | L119: 4.1e-07 | M119: 0 | N119: 0 | O119: 35.24393444 | P119: 29.28607009 | Q119: 15.7748386 | R119: 9.67667349 | S119: 10.5774908 | T119: 0 | U119: 0 | V119: 0 | W119: 0 | X119: 0 | Y119: 0 | Z119: 0 | AA119: 0 | AB119: 0 | AC119: 0 | AD119: 0 | AE119: 0 | AF119: 0 | AG119: 0 | AH119: 0 | AI119: 0
B120: AÇÕES ON RUMO S.A | D120: 0 | E120: 0 | F120: 0 | G120: 0 | H120: 0 | I120: 0 | J120: 0 | K120: 0 | L120: 0 | M120: 0 | N120: 0 | O120: 0 | P120: 0 | Q120: 0 | R120: 0 | S120: 0 | T120: 0 | U120: 0 | V120: 0 | W120: 0 | X120: 0 | Y120: 0 | Z120: 0 | AA120: 459.3399148 | AB120: 0 | AC120: 0 | AD120: 0 | AE120: 0 | AF120: 0 | AG120: 0 | AH120: 0 | AI120: 0
B121: AÇÕES PN LOJAS AMERICANAS S/A | D121: 6.811014 | E121: 26.14264 | F121: 31.67528 | G121: 41.99518716 | H121: 51.06563112 | I121: 58.8126113 | J121: 56.32711675 | K121: 21.81815145 | N121: 0 | O121: 0 | P121: 0 | Q121: 0 | R121: 0 | S121: 0 | T121: 0 | U121: 0 | V121: 0 | W121: 0 | X121: 0 | Y121: 191.6431099 | Z121: 0 | AA121: 0 | AB121: 0 | AC121: 0 | AD121: 0 | AE121: 0 | AF121: 0 | AG121: 0 | AH121: 0 | AI121: 0
B122: AÇÕES ON NUTRIPLANT INDUSTRIA E COMERCIO S/A | D122: 0 | E122: 0 | F122: 0 | G122: 0 | H122: 0 | I122: 0 | J122: 0 | K122: 0 | L122: 0.7112 | M122: 0.924 | N122: 0.9744 | O122: 0.9632 | P122: 1.008 | Q122: 1.3664 | R122: 0 | S122: 0 | T122: 0 | U122: 0 | V122: 0 | W122: 0 | X122: 0 | Y122: 0 | Z122: 0 | AA122: 0 | AB122: 0 | AC122: 0 | AD122: 0 | AE122: 0 | AF122: 0 | AG122: 0 | AH122: 0 | AI122: 0
B123: AÇÕES PN BANCO DO NORDESTE DO BRASIL S/A | D123: 18.53720785 | E123: 11.681209 | F123: 10.8998831 | G123: 6.96231 | H123: 6.517368 | I123: 5.687568 | J123: 6.004788 | K123: 10.67352 | L123: 11.51348124 | M123: 11.51348124 | N123: 0 | O123: 0 | P123: 0 | Q123: 0 | R123: 0 | S123: 0 | T123: 0 | U123: 0 | V123: 0 | W123: 0 | X123: 0 | Y123: 0 | Z123: 0 | AA123: 0 | AB123: 0 | AC123: 0 | AD123: 0 | AE123: 0 | AF123: 0 | AG123: 0 | AH123: 0 | AI123: 0
B124: AÇÕES ON CIELO S/A | D124: 0 | E124: 44.94189762 | F124: 57.3081471 | G124: 106.5133468 | H124: 92.05035466 | I124: 103.0104499 | J124: 107.6508855 | K124: 120.795755 | L124: 0 | M124: 0 | N124: 0 | O124: 0 | P124: 0 | Q124: 0 | R124: 0 | S124: 0 | T124: 0 | U124: 0 | V124: 0 | W124: 0 | X124: 0 | Y124: 0 | Z124: 0 | AA124: 0 | AB124: 0 | AC124: 0 | AD124: 0 | AE124: 0 | AF124: 0 | AG124: 0 | AH124: 0 | AI124: 0
B125: AÇÕES ON LOJAS RENNER S/A | D125: 13.922181 | E125: 21.41480442 | F125: 27.60953372 | G125: 18.4908966 | H125: 22.34399074 | I125: 26.26630214 | J125: 24.78966726 | K125: 21.09148794 | L125: 0 | M125: 0 | N125: 0 | O125: 0 | P125: 0 | Q125: 0 | R125: 0 | S125: 0 | T125: 0 | U125: 0 | V125: 0 | W125: 0 | X125: 0 | Y125: 0 | Z125: 0 | AA125: 0 | AB125: 0 | AC125: 0 | AD125: 0 | AE125: 0 | AF125: 0 | AG125: 0 | AH125: 0 | AI125: 0
B126: AÇÕES PN BIOMM S/A | D126: 0 | E126: 0 | F126: 0 | G126: 0 | H126: 0 | I126: 12.30273408 | J126: 19.923456 | K126: 22.23955776 | L126: 0 | M126: 0 | N126: 0 | O126: 0 | P126: 0 | Q126: 0 | R126: 0 | S126: 0 | T126: 0 | U126: 0 | V126: 0 | W126: 0 | X126: 0 | Y126: 0 | Z126: 0 | AA126: 0 | AB126: 0 | AC126: 0 | AD126: 0 | AE126: 0 | AF126: 0 | AG126: 0 | AH126: 0 | AI126: 0
B127: AÇÕES PN BRADESPAR S/A | D127: 85.8959024 | E127: 62.947832 | F127: 69.123094 | G127: 58.459405 | H127: 50.2304628 | I127: 58.0667006 | J127: 46.8032244 | K127: 35.8967522 | L127: 2.7104 | M127: 0 | N127: 0 | O127: 0 | P127: 0 | Q127: 0 | R127: 0 | S127: 0 | T127: 0 | U127: 0 | V127: 0 | W127: 0 | X127: 0 | Y127: 0 | Z127: 0 | AA127: 0 | AB127: 0 | AC127: 0 | AD127: 0 | AE127: 0 | AF127: 0 | AG127: 0 | AH127: 0 | AI127: 0
B128: AÇÕES PN COMPANHIA DE BEBIDAS DAS AMERICAS - AMBEV | D128: 190.1096798 | E128: 251.8781293 | F128: 232.6225292 | G128: 126.8084745 | H128: 127.3840544 | I128: 141.1157463 | J128: 138.9468437 | K128: 136.7400312 | L128: 0 | M128: 0 | N128: 0 | O128: 0 | P128: 0 | Q128: 0 | R128: 0 | S128: 0 | T128: 0 | U128: 0 | V128: 0 | W128: 0 | X128: 0 | Y128: 0 | Z128: 0 | AA128: 0 | AB128: 0 | AC128: 0 | AD128: 0 | AE128: 0 | AF128: 0 | AG128: 0 | AH128: 0 | AI128: 0
B129: AÇÕES ON CCR S/A | D129: 28.041344 | E129: 29.193728 | F129: 35.603864 | G129: 35.51925 | H129: 39.606696 | I129: 42.382662 | J129: 44.502888 | K129: 0 | L129: 0 | M129: 0 | N129: 0 | O129: 0 | P129: 0 | Q129: 0 | R129: 0 | S129: 0 | T129: 0 | U129: 0 | V129: 0 | W129: 0 | X129: 0 | Y129: 0 | Z129: 0 | AA129: 0 | AB129: 0 | AC129: 0 | AD129: 0 | AE129: 0 | AF129: 0 | AG129: 0 | AH129: 0 | AI129: 0
B130: AÇÕES ON HYPERMARCAS S/A | D130: 0 | E130: 44.1547736 | F130: 66.02678936 | G130: 60.8411706 | H130: 76.44936964 | I130: 85.7424092 | J130: 82.45647256 | K130: 0 | L130: 0 | M130: 0 | N130: 0 | O130: 0 | P130: 0 | Q130: 0 | R130: 0 | S130: 0 | T130: 0 | U130: 0 | V130: 0 | W130: 0 | X130: 0 | Y130: 0 | Z130: 0 | AA130: 0 | AB130: 0 | AC130: 0 | AD130: 0 | AE130: 0 | AF130: 0 | AG130: 0 | AH130: 0 | AI130: 0
B131: AÇÕES PN CONTAX PARTICIPACOES S/A | D131: 0 | E131: 23.156616 | F131: 23.336648 | G131: 25.013196 | H131: 21.3788 | I131: 28.062488 | J131: 29.48024 | K131: 0 | L131: 0 | M131: 0 | N131: 0 | O131: 0 | P131: 0 | Q131: 0 | R131: 0 | S131: 0 | T131: 0 | U131: 0 | V131: 0 | W131: 0 | X131: 0 | Y131: 0 | Z131: 0 | AA131: 0 | AB131: 0 | AC131: 0 | AD131: 0 | AE131: 0 | AF131: 0 | AG131: 0 | AH131: 0 | AI131: 0
B132: AÇÕES ON ODEBRECHT AGROINDUSTRIAL (EX-ETH BIO) | D132: 0 | E132: 405.3688427 | F132: 405.3688427 | G132: 405.3688427 | H132: 405.3688427 | I132: 337.807369 | J132: 309.5585828 | K132: 0 | L132: 0 | M132: 0 | N132: 0 | O132: 0 | P132: 0 | Q132: 0 | R132: 0 | S132: 0 | T132: 0 | U132: 0 | V132: 0 | W132: 0 | X132: 0 | Y132: 0 | Z132: 0 | AA132: 0 | AB132: 0 | AC132: 0 | AD132: 0 | AE132: 0 | AF132: 0 | AG132: 0 | AH132: 0 | AI132: 0
B133: AÇÕES ON BANCO DO NORDESTE DO BRASIL S/A | D133: 0 | E133: 0.405444 | F133: 0.393576 | G133: 0.371358 | H133: 0.051328 | I133: 0 | J133: 0 | K133: 0 | L133: 0 | M133: 0 | N133: 0 | O133: 0 | P133: 0 | Q133: 0 | R133: 0 | S133: 0 | T133: 0 | U133: 0 | V133: 0 | W133: 0 | X133: 0 | Y133: 0 | Z133: 0 | AA133: 0 | AB133: 0 | AC133: 0 | AD133: 0 | AE133: 0 | AF133: 0 | AG133: 0 | AH133: 0 | AI133: 0
B134: AÇÕES ON BM&F BOVESPA S/A BOLSA DE VALORES, MERC. E FUTUROS | D134: 109.150528 | E134: 81.363732 | F134: 93.510056 | G134: 56.93153 | H134: 0 | I134: 0 | J134: 0 | K134: 0 | L134: 0 | M134: 0 | N134: 0 | O134: 0 | P134: 0 | Q134: 0 | R134: 0 | S134: 0 | T134: 0 | U134: 0 | V134: 0 | W134: 0 | X134: 0 | Y134: 0 | Z134: 0 | AA134: 0 | AB134: 0 | AC134: 0 | AD134: 0 | AE134: 0 | AF134: 0 | AG134: 0 | AH134: 0 | AI134: 0
B135: AÇÕES ON BRASIL TELECOM S/A | D135: 0 | E135: 19.45701983 | F135: 19.15793669 | G135: 0 | H135: 0 | I135: 0 | J135: 0 | K135: 0 | L135: 0 | M135: 0 | N135: 0 | O135: 0 | P135: 0 | Q135: 0 | R135: 0 | S135: 0 | T135: 0 | U135: 0 | V135: 0 | W135: 0 | X135: 0 | Y135: 0 | Z135: 0 | AA135: 0 | AB135: 0 | AC135: 0 | AD135: 0 | AE135: 0 | AF135: 0 | AG135: 0 | AH135: 0 | AI135: 0
B136: AÇÕES ON BRF - BRASIL FOODS S/A | D136: 609.657496 | E136: 604.5604689 | F136: 538.1137812 | G136: 414.8730394 | H136: 472.838246 | I136: 289.3587241 | K136: 0 | L136: 0 | M136: 0 | N136: 0 | O136: 0 | P136: 0 | Q136: 0 | R136: 0 | S136: 0 | T136: 0 | U136: 0 | V136: 0 | W136: 0 | X136: 0 | Y136: 0 | Z136: 0 | AA136: 0 | AB136: 0 | AC136: 0 | AD136: 0 | AE136: 0 | AF136: 0 | AG136: 0 | AH136: 0 | AI136: 0
B137: AÇÕES ON INDUSTRIAS ROMI S/A | D137: 77.1784 | E137: 36.4039 | F137: 31.98 | G137: 33.5257 | H137: 30.4343 | I137: 0 | J137: 0 | K137: 0 | L137: 0 | M137: 0 | N137: 0 | O137: 0 | P137: 0 | Q137: 0 | R137: 0 | S137: 0 | T137: 0 | U137: 0 | V137: 0 | W137: 0 | X137: 0 | Y137: 0 | Z137: 0 | AA137: 0 | AB137: 0 | AC137: 0 | AD137: 0 | AE137: 0 | AF137: 0 | AG137: 0 | AH137: 0 | AI137: 0
B138: AÇÕES ON LUPATECH S/A | D138: 105.5972123 | E138: 24.07878522 | F138: 29.4842268 | G138: 92.2548493 | H138: 81.29640035 | I138: 0 | J138: 0 | K138: 0 | L138: 0 | M138: 0 | N138: 0 | O138: 0 | P138: 0 | Q138: 0 | R138: 0 | S138: 0 | T138: 0 | U138: 0 | V138: 0 | W138: 0 | X138: 0 | Y138: 0 | Z138: 0 | AA138: 0 | AB138: 0 | AC138: 0 | AD138: 0 | AE138: 0 | AF138: 0 | AG138: 0 | AH138: 0 | AI138: 0
B139: AÇÕES ON METALFRIO SOLUTIONS S/A | D139: 27.49404 | E139: 9.1036 | F139: 8.143584 | G139: 6.37252 | H139: 7.018048 | I139: 0 | J139: 0 | K139: 0 | L139: 0 | M139: 0 | N139: 0 | O139: 0 | P139: 0 | Q139: 0 | R139: 0 | S139: 0 | T139: 0 | U139: 0 | V139: 0 | W139: 0 | X139: 0 | Y139: 0 | Z139: 0 | AA139: 0 | AB139: 0 | AC139: 0 | AD139: 0 | AE139: 0 | AF139: 0 | AG139: 0 | AH139: 0 | AI139: 0
B140: AÇÕES ON NATURA COSMETICOS S/A | D140: 29.120208 | E140: 22.199289 | F140: 24.232347 | G140: 24.22776 | H140: 0 | I140: 0 | J140: 0 | K140: 0 | L140: 0 | M140: 0 | N140: 0 | O140: 0 | P140: 0 | Q140: 0 | R140: 0 | S140: 0 | T140: 0 | U140: 0 | V140: 0 | W140: 0 | X140: 0 | Y140: 0 | Z140: 0 | AA140: 0 | AB140: 0 | AC140: 0 | AD140: 0 | AE140: 0 | AF140: 0 | AG140: 0 | AH140: 0 | AI140: 0
B141: AÇÕES ON PARANAPANEMA S/A | D141: 278.2300556 | E141: 164.4086692 | F141: 176.5056282 | G141: 119.8698659 | H141: 141.3144749 | I141: 0 | J141: 0 | K141: 0 | L141: 0 | M141: 0 | N141: 0 | O141: 0 | P141: 0 | Q141: 0 | R141: 0 | S141: 0 | T141: 0 | U141: 0 | V141: 0 | W141: 0 | X141: 0 | Y141: 0 | Z141: 0 | AA141: 0 | AB141: 0 | AC141: 0 | AD141: 0 | AE141: 0 | AF141: 0 | AG141: 0 | AH141: 0 | AI141: 0
B142: AÇÕES ON REDECARD S/A | D142: 36.553198 | E142: 50.767364 | F142: 61.536726 | G142: 30.779671 | I142: 0 | J142: 0 | K142: 0 | L142: 0 | M142: 0 | N142: 0 | O142: 0 | P142: 0 | Q142: 0 | R142: 0 | S142: 0 | T142: 0 | U142: 0 | V142: 0 | W142: 0 | X142: 0 | Y142: 0 | Z142: 0 | AA142: 0 | AB142: 0 | AC142: 0 | AD142: 0 | AE142: 0 | AF142: 0 | AG142: 0 | AH142: 0 | AI142: 0
B143: AÇÕES ON SAO MARTINHO S/A | D143: 41.7463 | E143: 26.3132 | F143: 36.5182 | G143: 32.1379 | H143: 17.329968 | I143: 0 | J143: 0 | K143: 0 | L143: 0 | M143: 0 | N143: 0 | O143: 0 | P143: 0 | Q143: 0 | R143: 0 | S143: 0 | T143: 0 | U143: 0 | V143: 0 | W143: 0 | X143: 0 | Y143: 0 | Z143: 0 | AA143: 0 | AB143: 0 | AC143: 0 | AD143: 0 | AE143: 0 | AF143: 0 | AG143: 0 | AH143: 0 | AI143: 0
B144: AÇÕES ON TELE NORTE LESTE PARTICIPACOES S/A | D144: 161.235606 | E144: 16.6434558 | F144: 20.4091539 | G144: 0 | H144: 0 | I144: 0 | J144: 0 | K144: 0 | L144: 0 | M144: 0 | N144: 0 | O144: 0 | P144: 0 | Q144: 0 | R144: 0 | S144: 0 | T144: 0 | U144: 0 | V144: 0 | W144: 0 | X144: 0 | Y144: 0 | Z144: 0 | AA144: 0 | AB144: 0 | AC144: 0 | AD144: 0 | AE144: 0 | AF144: 0 | AG144: 0 | AH144: 0 | AI144: 0
B145: AÇÕES ON VULCABRAS AZALEIA S/A | D145: 10.55925 | E145: 2.495228 | F145: 2.430918 | G145: 2.5724 | H145: 1.142664 | I145: 0 | J145: 0 | K145: 0 | L145: 0 | M145: 0 | N145: 0 | O145: 0 | P145: 0 | Q145: 0 | R145: 0 | S145: 0 | T145: 0 | U145: 0 | V145: 0 | W145: 0 | X145: 0 | Y145: 0 | Z145: 0 | AA145: 0 | AB145: 0 | AC145: 0 | AD145: 0 | AE145: 0 | AF145: 0 | AG145: 0 | AH145: 0 | AI145: 0
B146: AÇÕES PN BANCO BRADESCO S/A | D146: 305.1956912 | E146: 291.3976494 | F146: 302.2536403 | G146: 174.970824 | I146: 0 | J146: 0 | K146: 0 | L146: 0 | M146: 0 | N146: 0 | O146: 0 | P146: 0 | Q146: 0 | R146: 0 | S146: 0 | T146: 0 | U146: 0 | V146: 0 | W146: 0 | X146: 0 | Y146: 0 | Z146: 0 | AA146: 0 | AB146: 0 | AC146: 0 | AD146: 0 | AE146: 0 | AF146: 0 | AG146: 0 | AH146: 0 | AI146: 0
B147: AÇÕES PN BRASIL TELECOM S/A | D147: 0 | E147: 126.4688085 | F147: 115.5322235 | G147: 0 | H147: 0 | I147: 0 | J147: 0 | K147: 0 | L147: 0 | M147: 0 | N147: 0 | O147: 0 | P147: 0 | Q147: 0 | R147: 0 | S147: 0 | T147: 0 | U147: 0 | V147: 0 | W147: 0 | X147: 0 | Y147: 0 | Z147: 0 | AA147: 0 | AB147: 0 | AC147: 0 | AD147: 0 | AE147: 0 | AF147: 0 | AG147: 0 | AH147: 0 | AI147: 0
B148: AÇÕES PN COMPANHIA BRASILEIRA DE DISTRIBUICAO | D148: 36.5905096 | E148: 35.33903208 | F148: 45.93594672 | G148: 24.3842272 | I148: 0 | J148: 0 | K148: 0 | L148: 0 | M148: 0 | N148: 0 | O148: 0 | P148: 0 | Q148: 0 | R148: 0 | S148: 0 | T148: 0 | U148: 0 | V148: 0 | W148: 0 | X148: 0 | Y148: 0 | Z148: 0 | AA148: 0 | AB148: 0 | AC148: 0 | AD148: 0 | AE148: 0 | AF148: 0 | AG148: 0 | AH148: 0 | AI148: 0
B149: AÇÕES PN ITAU UNIBANCO HOLDING S/A | D149: 445.0705627 | E149: 381.11715 | F149: 394.065 | G149: 193.8816 | H149: 49.393938 | I149: 0 | J149: 0 | K149: 0 | L149: 0 | M149: 0 | N149: 0 | O149: 0 | P149: 0 | Q149: 0 | R149: 0 | S149: 0 | T149: 0 | U149: 0 | V149: 0 | W149: 0 | X149: 0 | Y149: 0 | Z149: 0 | AA149: 0 | AB149: 0 | AC149: 0 | AD149: 0 | AE149: 0 | AF149: 0 | AG149: 0 | AH149: 0 | AI149: 0
B150: AÇÕES PN ITAUSA-INVESTIMENTOS ITAU S/A | D150: 151.6766099 | E150: 130.2675936 | F150: 131.4327778 | G150: 99.52443619 | H150: 9.889 | I150: 0 | J150: 0 | K150: 0 | L150: 0 | M150: 0 | N150: 0 | O150: 0 | P150: 0 | Q150: 0 | R150: 0 | S150: 0 | T150: 0 | U150: 0 | V150: 0 | W150: 0 | X150: 0 | Y150: 0 | Z150: 0 | AA150: 0 | AB150: 0 | AC150: 0 | AD150: 0 | AE150: 0 | AF150: 0 | AG150: 0 | AH150: 0 | AI150: 0
B151: AÇÕES PN MANGELS INDUSTRIAL S/A | D151: 21.29941439 | E151: 6.9771264 | F151: 6.99166208 | G151: 4.95666688 | H151: 4.9421312 | I151: 0 | J151: 0 | K151: 0 | L151: 0 | M151: 0 | N151: 0 | O151: 0 | P151: 0 | Q151: 0 | R151: 0 | S151: 0 | T151: 0 | U151: 0 | V151: 0 | W151: 0 | X151: 0 | Y151: 0 | Z151: 0 | AA151: 0 | AB151: 0 | AC151: 0 | AD151: 0 | AE151: 0 | AF151: 0 | AG151: 0 | AH151: 0 | AI151: 0
B152: AÇÕES PN TELE NORTE LESTE PARTICIPACOES S/A | D152: 0 | E152: 98.63715539 | F152: 118.7809669 | G152: 0 | H152: 0 | I152: 0 | J152: 0 | K152: 0 | L152: 0 | M152: 0 | N152: 0 | O152: 0 | P152: 0 | Q152: 0 | R152: 0 | S152: 0 | T152: 0 | U152: 0 | V152: 0 | W152: 0 | X152: 0 | Y152: 0 | Z152: 0 | AA152: 0 | AB152: 0 | AC152: 0 | AD152: 0 | AE152: 0 | AF152: 0 | AG152: 0 | AH152: 0 | AI152: 0
B153: AÇÕES PNA TELEMAR NORTE LESTE S/A | D153: 1465.583004 | E153: 14.33082016 | F153: 15.22649642 | G153: 0 | H153: 0 | I153: 0 | J153: 0 | K153: 0 | L153: 0 | M153: 0 | N153: 0 | O153: 0 | P153: 0 | Q153: 0 | R153: 0 | S153: 0 | T153: 0 | U153: 0 | V153: 0 | W153: 0 | X153: 0 | Y153: 0 | Z153: 0 | AA153: 0 | AB153: 0 | AC153: 0 | AD153: 0 | AE153: 0 | AF153: 0 | AG153: 0 | AH153: 0 | AI153: 0
B154: AÇÕES PNA USINAS SIDERURGICAS DE MINAS GERAIS S/A - USIMINAS | D154: 354.5207257 | E154: 189.5731306 | F154: 175.895643 | G154: 85.4826136 | H154: 0 | I154: 0 | J154: 0 | K154: 0 | L154: 0 | M154: 0 | N154: 0 | O154: 0 | P154: 0 | Q154: 0 | R154: 0 | S154: 0 | T154: 0 | U154: 0 | V154: 0 | W154: 0 | X154: 0 | Y154: 0 | Z154: 0 | AA154: 0 | AB154: 0 | AC154: 0 | AD154: 0 | AE154: 0 | AF154: 0 | AG154: 0 | AH154: 0 | AI154: 0
B155: AÇÕES PNB CESP COMPANHIA ENERGETICA DE SAO PAULO | D155: 505.1896436 | E155: 308.031065 | F155: 302.9949599 | G155: 112.1368476 | H155: 65.97185545 | I155: 0 | J155: 0 | K155: 0 | L155: 0 | M155: 0 | N155: 0 | O155: 0 | P155: 0 | Q155: 0 | R155: 0 | S155: 0 | T155: 0 | U155: 0 | V155: 0 | W155: 0 | X155: 0 | Y155: 0 | Z155: 0 | AA155: 0 | AB155: 0 | AC155: 0 | AD155: 0 | AE155: 0 | AF155: 0 | AG155: 0 | AH155: 0 | AI155: 0
B156: AÇÕES ON RENOVA ENERGIA S/A | D156: 0 | E156: 0 | F156: 0 | G156: 0 | H156: 218.0811374 | I156: 0 | J156: 0 | K156: 0 | L156: 0 | M156: 0 | N156: 0 | O156: 0 | P156: 0 | Q156: 0 | R156: 0 | S156: 0 | T156: 0 | U156: 0 | V156: 0 | W156: 0 | X156: 0 | Y156: 0 | Z156: 0 | AA156: 0 | AB156: 0 | AC156: 0 | AD156: 0 | AE156: 0 | AF156: 0 | AG156: 0 | AH156: 0 | AI156: 0
B157: AÇÕES PN RENOVA ENERGIA S/A | D157: 0 | E157: 0 | F157: 0 | G157: 0 | H157: 1.45639612 | I157: 0 | J157: 0 | K157: 0 | L157: 0 | M157: 0 | N157: 0 | O157: 0 | P157: 0 | Q157: 0 | R157: 0 | S157: 0 | T157: 0 | U157: 0 | V157: 0 | W157: 0 | X157: 0 | Y157: 0 | Z157: 0 | AA157: 0 | AB157: 0 | AC157: 0 | AD157: 0 | AE157: 0 | AF157: 0 | AG157: 0 | AH157: 0 | AI157: 0
B158: AÇÕES ON INEPAR ENERGIA S/A | D158: 32.83239264 | E158: 1.97272728 | F158: 0 | G158: 0 | H158: 0 | I158: 0 | J158: 0 | K158: 0 | L158: 0 | M158: 0 | N158: 0 | O158: 0 | P158: 0 | Q158: 0 | R158: 0 | S158: 0 | T158: 0 | U158: 0 | V158: 0 | W158: 0 | X158: 0 | Y158: 0 | Z158: 0 | AA158: 0 | AB158: 0 | AC158: 0 | AD158: 0 | AE158: 0 | AF158: 0 | AG158: 0 | AH158: 0 | AI158: 0
B159: AÇÕES PN CTEEP - CIA DE TRANSM. DE ENERGIA ELETRICA PAULISTA | D159: 10.248888 | E159: 10.61913 | F159: 0 | G159: 0 | H159: 0 | I159: 0 | J159: 0 | K159: 0 | L159: 0 | M159: 0 | N159: 0 | O159: 0 | P159: 0 | Q159: 0 | R159: 0 | S159: 0 | T159: 0 | U159: 0 | V159: 0 | W159: 0 | X159: 0 | Y159: 0 | Z159: 0 | AA159: 0 | AB159: 0 | AC159: 0 | AD159: 0 | AE159: 0 | AF159: 0 | AG159: 0 | AH159: 0 | AI159: 0
B160: AÇÕES PNA INEPAR ENERGIA S/A | D160: 0 | E160: 2.64091525 | F160: 0 | G160: 0 | H160: 0 | I160: 0 | J160: 0 | K160: 0 | L160: 0 | M160: 0 | N160: 0 | O160: 0 | P160: 0 | Q160: 0 | R160: 0 | S160: 0 | T160: 0 | U160: 0 | V160: 0 | W160: 0 | X160: 0 | Y160: 0 | Z160: 0 | AA160: 0 | AB160: 0 | AC160: 0 | AD160: 0 | AE160: 0 | AF160: 0 | AG160: 0 | AH160: 0 | AI160: 0
B161: ATVOS AGROINDUSTRIAL S/A | D161: 337.807369 | E161: 0 | F161: 0 | G161: 0 | H161: 0 | I161: 0 | J161: 0 | K161: 0 | L161: 0 | M161: 0 | N161: 0 | O161: 0 | P161: 0 | Q161: 0 | R161: 0 | S161: 0 | T161: 0 | U161: 0 | V161: 0 | W161: 0 | X161: 0 | Y161: 0 | Z161: 0 | AA161: 0 | AB161: 0 | AC161: 0 | AD161: 0 | AE161: 0 | AF161: 0 | AG161: 0 | AH161: 0 | AI161: 0
B162: PRUMO LOGISTICA S/A | D162: 97.08333178 | E162: 0 | F162: 0 | G162: 0 | H162: 0 | I162: 0 | J162: 0 | K162: 0 | L162: 0 | M162: 0 | N162: 0 | O162: 0 | P162: 0 | Q162: 0 | R162: 0 | S162: 0 | T162: 0 | U162: 0 | V162: 0 | W162: 0 | X162: 0 | Y162: 0 | Z162: 0 | AA162: 0 | AB162: 0 | AC162: 0 | AD162: 0 | AE162: 0 | AF162: 0 | AG162: 0 | AH162: 0 | AI162: 0
B163: CTX PARTICIPACOES SA | D163: 78.85270131 | E163: 0 | F163: 0 | G163: 0 | H163: 0 | I163: 0 | J163: 0 | K163: 0 | L163: 0 | M163: 0 | N163: 0 | O163: 0 | P163: 0 | Q163: 0 | R163: 0 | S163: 0 | T163: 0 | U163: 0 | V163: 0 | W163: 0 | X163: 0 | Y163: 0 | Z163: 0 | AA163: 0 | AB163: 0 | AC163: 0 | AD163: 0 | AE163: 0 | AF163: 0 | AG163: 0 | AH163: 0 | AI163: 0
B164: PORTX OPERACOES PORTUARIAS S/A | D164: 76.24999878 | E164: 0 | F164: 0 | G164: 0 | H164: 0 | I164: 0 | J164: 0 | K164: 0 | L164: 0 | M164: 0 | N164: 0 | O164: 0 | P164: 0 | Q164: 0 | R164: 0 | S164: 0 | T164: 0 | U164: 0 | V164: 0 | W164: 0 | X164: 0 | Y164: 0 | Z164: 0 | AA164: 0 | AB164: 0 | AC164: 0 | AD164: 0 | AE164: 0 | AF164: 0 | AG164: 0 | AH164: 0 | AI164: 0
B165: LIQ PARTICIPACOES S.A. | D165: 40.564448 | E165: 0 | F165: 0 | G165: 0 | H165: 0 | I165: 0 | J165: 0 | K165: 0 | L165: 0 | M165: 0 | N165: 0 | O165: 0 | P165: 0 | Q165: 0 | R165: 0 | S165: 0 | T165: 0 | U165: 0 | V165: 0 | W165: 0 | X165: 0 | Y165: 0 | Z165: 0 | AA165: 0 | AB165: 0 | AC165: 0 | AD165: 0 | AE165: 0 | AF165: 0 | AG165: 0 | AH165: 0 | AI165: 0
B166: VIVO PARTICIPACOES S.A. | D166: 33.28788056 | E166: 0 | F166: 0 | G166: 0 | H166: 0 | I166: 0 | J166: 0 | K166: 0 | L166: 0 | M166: 0 | N166: 0 | O166: 0 | P166: 0 | Q166: 0 | R166: 0 | S166: 0 | T166: 0 | U166: 0 | V166: 0 | W166: 0 | X166: 0 | Y166: 0 | Z166: 0 | AA166: 0 | AB166: 0 | AC166: 0 | AD166: 0 | AE166: 0 | AF166: 0 | AG166: 0 | AH166: 0 | AI166: 0
B167: PRONOR PETROQUIMICA S/A | D167: 16.07365331 | E167: 0 | F167: 0 | G167: 0 | H167: 0 | I167: 0 | J167: 0 | K167: 0 | L167: 0 | M167: 0 | N167: 0 | O167: 0 | P167: 0 | Q167: 0 | R167: 0 | S167: 0 | T167: 0 | U167: 0 | V167: 0 | W167: 0 | X167: 0 | Y167: 0 | Z167: 0 | AA167: 0 | AB167: 0 | AC167: 0 | AD167: 0 | AE167: 0 | AF167: 0 | AG167: 0 | AH167: 0 | AI167: 0
D168: =SUM(D3:D29) -> 89234.06356 | E168: 70346.65915 | F168: 74686.81187 | G168: 63498.38473 | H168: 69087.66381 | I168: 61547.22173 | J168: 58573.24526 | K168: 51317.64322 | L168: 56878.25416 | M168: 54430.57047 | N168: 49967.75171 | O168: 50521.65183 | P168: 50269.43607 | Q168: 35481.70049 | R168: 32838.63394 | S168: 37271.13843 | T168: 28140.69623 | U168: 28086.58601 | V168: 31057.78449 | W168: 32966.24956 | X168: 41337.39005 | Y168: 47028.59303 | Z168: 46373.79608 | AA168: 42106.93464 | AB168: 48873.50301 | AC168: 49697.56841 | AD168: 58022.11132 | AE168: 51968.82326 | AF168: 60719.65362 | AG168: 58671.64797 | AH168: 66461.53048 | AI168: 64481.88838

Sheet Gráficos Indicadores (hidden)

Sheet Gráficos Participações (hidden)

Sheet Fontes Gáficos (hidden)
A1: PARTICIPAÇÕES COLIGADAS
B3: =B20 -> 2010 | C3: =C20 -> 2011 | D3: 2012 | E3: 2013 | F3: 2014 | G3: 2015 | H3: 2016 | I3: 2017 | J3: 2018 | K3: 1S19 | L3: 0
B4: Valores
A5: Setor/Segmento (Sector) | B5: Soma de 4T/10 | C5: Soma de 4T/11 | D5: Soma de 4T/12 | E5: Soma de 4T/13 | F5: Soma de 4T/14 | G5: Soma de 4T/15 | H5: Soma de 4T/16 | I5: Soma de 4T/17 | J5: Soma de 4T/18 | K5: Soma de 2T/19
A6: Alimentos Processados - Carnes e Derivados | B6: 4083.577101 | C6: 7463.126857 | D6: 4831.773932 | E6: 5794.036565 | F6: 6492.057432 | G6: 6683.574037 | H6: 5695.290765 | I6: 6886.053399 | J6: 6884.918607 | K6: 6917.68395
A7: Materiais Básicos - Papel e Celulose | B7: 4703.323777 | C7: 4705.596123 | D7: 4587.273176 | E7: 4447.532918 | F7: 4471.080813 | G7: 3527.662731 | H7: 4186.572639 | I7: 4196.966339 | J7: 0 | K7: 0
A8: Utilizada Pública - Energia Elétrica | B8: 2275.171679 | C8: 2840.937391 | D8: 2978.199903 | E8: 3021.442347 | F8: 3131.345334 | G8: 3342.064598 | H8: 2274.020278 | I8: 1917.028969 | J8: 0 | K8: 0
A9: Holding - Setor Energético | B9: 0 | C9: 2391.430691 | D9: 2288.649534 | E9: 2027.448842 | F9: 1985.960919 | G9: 0 | H9: 0 | I9: 0 | J9: 0 | K9: 0
A10: Biotecnologia - Sucroalcooleiro | B10: 0 | C10: 0 | D10: 0 | E10: 598.983615 | F10: 738.3870646 | G10: 720.948274 | H10: 845.260521 | I10: 772.8990629 | J10: 905.6682852 | K10: 902.9551576
A11: Diversos | B11: 2277.834562 | C11: 1541.531173 | D11: 1196.779059 | E11: 1132.552685 | F11: 591.2815501 | G11: 918.5851082 | H11: 453.2609226 | I11: 457.0145239 | J11: 383.7309463 | K11: 361.3282258
A12: Cadeia Automobilística | B12: 301.4667225 | C12: 389.5699443 | D12: 420.8631626 | E12: 520.4743768 | F12: 561.8737147 | G12: 673.5379375 | H12: 637.2693925 | I12: 567.4328932 | J12: 602.3864696 | K12: 617.1191765
A13: Industrial - Semicondutores | B13: 0 | C13: 0 | D13: 244.0340935 | E13: 231.9927715 | F13: 224.3460135 | G13: 209.0917316 | H13: 196.7522575 | I13: 45.62561249 | J13: 0 | K13: 0
A14: Bens de Capital | B14: 0 | C14: 0 | D14: 0 | E14: 225.1563699 | F14: 223.5527714 | G14: 214.3649011 | H14: 240.4100194 | I14: 215.1212578 | J14: 241.5422566 | K14: 241.8173929
A15: Saneamento Básico | B15: 0 | C15: 0 | D15: 120 | E15: 118.3625583 | F15: 124.7425382 | G15: 115.7183828 | H15: 80.40599999 | I15: 94.348076 | J15: 103.1950869 | K15: 118.8438669
A16: Total Geral | B16: 13641.37384 | C16: 19332.19218 | D16: 16667.57286 | E16: 18117.98305 | F16: 18544.62815 | G16: 16405.5477 | H16: 14609.24279 | I16: 15152.49013 | J16: 9121.441652 | K16: 9159.74777
A18: PARTICIPAÇÕES NÃO COLIGADAS
B20: 2010 | C20: 2011 | D20: =D55 -> 2012 | E20: 2013 | F20: 2014 | G20: 2015 | H20: 2016 | I20: 2017 | J20: 2018 | K20: 1S19
B21: Valores
A22: Setor/Segmento (Sector) | B22: Soma de 4T/10 | C22: Soma de 4T/11 | D22: Soma de 4T/12 | E22: Soma de 4T/13 | F22: Soma de 4T/14 | G22: Soma de 4T/15 | H22: Soma de 4T/16 | I22: Soma de 4T/17 | J22: Soma de 4T/18 | K22: Soma de 2T/19
A23: Petróleo, Gás e Biocombustíveis | B23: 41865.5588 | C23: 32641.96958 | D23: 26385.0436 | E23: 23138.8537 | F23: 13714.88729 | G23: 8992.946662 | H23: 19758.4274 | I23: 20298.24583 | J23: 23767.76036 | K23: 25121.94921
A24: Materiais Básicos - Mineração | B24: 24991.5266 | C24: 17268.99324 | D24: 17715.71904 | E24: 14868.65428 | F24: 8959.47944 | G24: 5252.652587 | H24: 11203.00343 | I24: 16114.51437 | J24: 17217.86934 | K24: 16779.75184
A25: Diversos | B25: 11960.93861 | C25: 11270.4532 | D25: 9898.235046 | E25: 8968.243514 | F25: 5193.307486 | G25: 5997.868376 | H25: 3807.301614 | I25: 2309.590276 | J25: 1204.01911 | K25: 1041.150464
A26: Utilidade Pública - Energia Elétrica | B26: 7689.500555 | C26: 7280.707464 | D26: 3948.345655 | E26: 3089.181063 | F26: 2869.446415 | G26: 2470.103599 | H26: 8183.947727 | I26: 5576.395594 | J26: 8787.983371 | K26: 12184.36553
A27: Materiais Básicos - Papel e Celulose | B27: 260.8727383 | C27: 121.0749072 | D27: 1387.452974 | E27: 1192.785829 | F27: 2052.462111 | G27: 2559.066088 | H27: 1806.769424 | I27: 2154.139869 | J27: 3729.484143 | K27: 5839.092206
A28: Bens de Capital | B28: 470.3902449 | C28: 462.835372 | D28: 572.9774665 | E28: 753.8967914 | F28: 974.9762303 | G28: 1193.272295 | H28: 630.6330755 | I28: 802.8046529 | J28: 849.326765 | K28: 764.2350386
A29: Utilidade Pública - Gás | B29: 789.5711754 | C29: 717.7919777 | D29: 807.5159749 | E29: 1435.404507 | F29: 973.5891719 | G29: 647.4920056 | H29: 519.9546685 | I29: 1141.44521 | J29: 1476.715993 | K29: 1249.183899
A30: Tecnologia da Informação - Programas e Serviços | B30: 281.7300342 | C30: 276.8687846 | D30: 257.9435394 | E30: 429.5874773 | F30: 429.5083783 | G30: 375.9589495 | H30: 345.7675847 | I30: 431.6883318 | J30: 515.7520768 | K30: 325.9414871
A31: Materiais Básicos - Siderurgia e Metalurgia | B31: 923.9748038 | C31: 305.9646271 | D31: 381.2887898 | E31: 389.7760194 | F31: 204.1178719 | G31: 99.30058632 | H31: 227.4577533 | I31: 307.3347934 | J31: 365.4118468 | K31: 377.3762184
A32: Utilidade Pública - Água e Saneamento | B32: 0 | C32: 0 | D32: 192.6996479 | E32: 164.1872939 | F32: 109.926091 | G32: 66.58731288 | H32: 158.6602837 | I32: 189.716817 | J32: 262.6645781 | K32: 291.6155837
A33: Agronegócio | B33: 0 | C33: 0 | D33: 0 | E33: 0 | F33: 0 | G33: 231.3375436 | H33: 186.670064 | I33: 158.6401228 | J33: 220.0464492 | K33: 232.6129732
A34: Transporte e Logística | B34: 0 | C34: 0 | D34: 0 | E34: 0 | F34: 0 | G34: 200.0000024 | H34: 200.0000024 | I34: 213.0525434 | J34: 274.6139362 | K34: 274.6139362
A35: Total Geral | B35: 89234.06356 | C35: 70346.65915 | D35: 61547.22173 | E35: 54430.57047 | F35: 35481.70049 | G35: 28086.58601 | H35: 47028.59303 | I35: 49697.56841 | J35: 58671.64797 | K35: 64481.88838
B37: =B20 -> 2010 | C37: =C20 -> 2011 | D37: 2012 | E37: 2013 | F37: 2014 | G37: 2015 | H37: 2016 | I37: 2017 | J37: 2018 | K37: 1S19 | L37: 0
A38: =A23 -> Petróleo, Gás e Biocombustíveis | B38: =VLOOKUP(A38,'Fontes Gáficos'!$A$23:$K$34,2,0) -> 41865.5588 | C38: =VLOOKUP(A38,'Fontes Gáficos'!$A$23:$K$34,3,0) -> 32641.96958 | D38: =VLOOKUP(A38,'Fontes Gáficos'!$A$23:$K$34,4,0) -> 26385.0436 | E38: =VLOOKUP(A38,'Fontes Gáficos'!$A$23:$K$34,5,0) -> 23138.8537 | F38: =VLOOKUP(A38,'Fontes Gáficos'!$A$23:$K$34,6,0) -> 13714.88729 | G38: =VLOOKUP(A38,'Fontes Gáficos'!$A$23:$K$34,7,0) -> 8992.946662 | H38: =VLOOKUP(A38,'Fontes Gáficos'!$A$23:$K$34,8,0) -> 19758.4274 | I38: =VLOOKUP(A38,'Fontes Gáficos'!$A$23:$K$34,9,0) -> 20298.24583 | J38: =VLOOKUP(A38,'Fontes Gáficos'!$A$23:$K$34,10,0) -> 23767.76036 | K38: =VLOOKUP(A38,'Fontes Gáficos'!$A$23:$L$34,11,0) -> 25121.94921 | L38: =VLOOKUP(A38,'Fontes Gáficos'!$A$23:$L$34,12,0) -> 0
A39: =A24 -> Materiais Básicos - Mineração | B39: =VLOOKUP(A39,'Fontes Gáficos'!$A$23:$K$34,2,0) -> 24991.5266 | C39: =VLOOKUP(A39,'Fontes Gáficos'!$A$23:$K$34,3,0) -> 17268.99324 | D39: =VLOOKUP(A39,'Fontes Gáficos'!$A$23:$K$34,4,0) -> 17715.71904 | E39: =VLOOKUP(A39,'Fontes Gáficos'!$A$23:$K$34,5,0) -> 14868.65428 | F39: =VLOOKUP(A39,'Fontes Gáficos'!$A$23:$K$34,6,0) -> 8959.47944 | G39: =VLOOKUP(A39,'Fontes Gáficos'!$A$23:$K$34,7,0) -> 5252.652587 | H39: =VLOOKUP(A39,'Fontes Gáficos'!$A$23:$K$34,8,0) -> 11203.00343 | I39: =VLOOKUP(A39,'Fontes Gáficos'!$A$23:$K$34,9,0) -> 16114.51437 | J39: =VLOOKUP(A39,'Fontes Gáficos'!$A$23:$K$34,10,0) -> 17217.86934 | K39: =VLOOKUP(A39,'Fontes Gáficos'!$A$23:$K$34,11,0) -> 16779.75184 | L39: =VLOOKUP(A39,'Fontes Gáficos'!$A$23:$L$34,12,0) -> 0
A40: Diversos | B40: =VLOOKUP(A40,'Fontes Gáficos'!$A$23:$K$34,2,0) -> 11960.93861 | C40: =VLOOKUP(A40,'Fontes Gáficos'!$A$23:$K$34,3,0) -> 11270.4532 | D40: =VLOOKUP(A40,'Fontes Gáficos'!$A$23:$K$34,4,0) -> 9898.235046 | E40: =VLOOKUP(A40,'Fontes Gáficos'!$A$23:$K$34,5,0) -> 8968.243514 | F40: =VLOOKUP(A40,'Fontes Gáficos'!$A$23:$K$34,6,0) -> 5193.307486 | G40: =VLOOKUP(A40,'Fontes Gáficos'!$A$23:$K$34,7,0)+G51 -> 6429.205922 | H40: =VLOOKUP(A40,'Fontes Gáficos'!$A$23:$K$34,8,0)+H51 -> 4193.971681 | I40: =VLOOKUP(A40,'Fontes Gáficos'!$A$23:$K$34,9,0)+I51 -> 2681.282943 | J40: =VLOOKUP(A40,'Fontes Gáficos'!$A$23:$K$34,10,0)+J51 -> 1698.679495 | K40: =VLOOKUP(A40,'Fontes Gáficos'!$A$23:$K$34,11,0)+K51 -> 1548.377374 | L40: =VLOOKUP(A40,'Fontes Gáficos'!$A$23:$L$34,12,0) -> 0 | M40: Diversos
A41: Utilidade Pública - Energia Elétrica | B41: =VLOOKUP(A41,'Fontes Gáficos'!$A$23:$K$34,2,0) -> 7689.500555 | C41: =VLOOKUP(A41,'Fontes Gáficos'!$A$23:$K$34,3,0) -> 7280.707464 | D41: =VLOOKUP(A41,'Fontes Gáficos'!$A$23:$K$34,4,0) -> 3948.345655 | E41: =VLOOKUP(A41,'Fontes Gáficos'!$A$23:$K$34,5,0) -> 3089.181063 | F41: =VLOOKUP(A41,'Fontes Gáficos'!$A$23:$K$34,6,0) -> 2869.446415 | G41: =VLOOKUP(A41,'Fontes Gáficos'!$A$23:$K$34,7,0) -> 2470.103599 | H41: =VLOOKUP(A41,'Fontes Gáficos'!$A$23:$K$34,8,0) -> 8183.947727 | I41: =VLOOKUP(A41,'Fontes Gáficos'!$A$23:$K$34,9,0) -> 5576.395594 | J41: =VLOOKUP(A41,'Fontes Gáficos'!$A$23:$K$34,10,0) -> 8787.983371 | K41: =VLOOKUP(A41,'Fontes Gáficos'!$A$23:$K$34,11,0) -> 12184.36553 | L41: =VLOOKUP(A41,'Fontes Gáficos'!$A$23:$L$34,12,0) -> 0
A42: Materiais Básicos - Papel e Celulose | B42: =VLOOKUP(A42,'Fontes Gáficos'!$A$23:$K$34,2,0) -> 260.8727383 | C42: =VLOOKUP(A42,'Fontes Gáficos'!$A$23:$K$34,3,0) -> 121.0749072 | D42: =VLOOKUP(A42,'Fontes Gáficos'!$A$23:$K$34,4,0) -> 1387.452974 | E42: =VLOOKUP(A42,'Fontes Gáficos'!$A$23:$K$34,5,0) -> 1192.785829 | F42: =VLOOKUP(A42,'Fontes Gáficos'!$A$23:$K$34,6,0) -> 2052.462111 | G42: =VLOOKUP(A42,'Fontes Gáficos'!$A$23:$K$34,7,0) -> 2559.066088 | H42: =VLOOKUP(A42,'Fontes Gáficos'!$A$23:$K$34,8,0) -> 1806.769424 | I42: =VLOOKUP(A42,'Fontes Gáficos'!$A$23:$K$34,9,0) -> 2154.139869 | J42: =VLOOKUP(A42,'Fontes Gáficos'!$A$23:$K$34,10,0) -> 3729.484143 | K42: =VLOOKUP(A42,'Fontes Gáficos'!$A$23:$K$34,11,0) -> 5839.092206 | L42: =VLOOKUP(A42,'Fontes Gáficos'!$A$23:$L$34,12,0) -> 0
A43: Bens de Capital | B43: =VLOOKUP(A43,'Fontes Gáficos'!$A$23:$K$34,2,0) -> 470.3902449 | C43: =VLOOKUP(A43,'Fontes Gáficos'!$A$23:$K$34,3,0) -> 462.835372 | D43: =VLOOKUP(A43,'Fontes Gáficos'!$A$23:$K$34,4,0) -> 572.9774665 | E43: =VLOOKUP(A43,'Fontes Gáficos'!$A$23:$K$34,5,0) -> 753.8967914 | F43: =VLOOKUP(A43,'Fontes Gáficos'!$A$23:$K$34,6,0) -> 974.9762303 | G43: =VLOOKUP(A43,'Fontes Gáficos'!$A$23:$K$34,7,0) -> 1193.272295 | H43: =VLOOKUP(A43,'Fontes Gáficos'!$A$23:$K$34,8,0) -> 630.6330755 | I43: =VLOOKUP(A43,'Fontes Gáficos'!$A$23:$K$34,9,0) -> 802.8046529 | J43: =VLOOKUP(A43,'Fontes Gáficos'!$A$23:$K$34,10,0) -> 849.326765 | K43: =VLOOKUP(A43,'Fontes Gáficos'!$A$23:$K$34,11,0) -> 764.2350386 | L43: =VLOOKUP(A43,'Fontes Gáficos'!$A$23:$L$34,12,0) -> 0
A44: Utilidade Pública - Gás | B44: =VLOOKUP(A44,'Fontes Gáficos'!$A$23:$K$34,2,0) -> 789.5711754 | C44: =VLOOKUP(A44,'Fontes Gáficos'!$A$23:$K$34,3,0) -> 717.7919777 | D44: =VLOOKUP(A44,'Fontes Gáficos'!$A$23:$K$34,4,0) -> 807.5159749 | E44: =VLOOKUP(A44,'Fontes Gáficos'!$A$23:$K$34,5,0) -> 1435.404507 | F44: =VLOOKUP(A44,'Fontes Gáficos'!$A$23:$K$34,6,0) -> 973.5891719 | G44: =VLOOKUP(A44,'Fontes Gáficos'!$A$23:$K$34,7,0) -> 647.4920056 | H44: =VLOOKUP(A44,'Fontes Gáficos'!$A$23:$K$34,8,0) -> 519.9546685 | I44: =VLOOKUP(A44,'Fontes Gáficos'!$A$23:$K$34,9,0) -> 1141.44521 | J44: =VLOOKUP(A44,'Fontes Gáficos'!$A$23:$K$34,10,0) -> 1476.715993 | K44: =VLOOKUP(A44,'Fontes Gáficos'!$A$23:$K$34,11,0) -> 1249.183899 | L44: =VLOOKUP(A44,'Fontes Gáficos'!$A$23:$L$34,12,0) -> 0
A45: Tecnologia da Informação - Programas e Serviços | B45: =VLOOKUP(A45,'Fontes Gáficos'!$A$23:$K$34,2,0) -> 281.7300342 | C45: =VLOOKUP(A45,'Fontes Gáficos'!$A$23:$K$34,3,0) -> 276.8687846 | D45: =VLOOKUP(A45,'Fontes Gáficos'!$A$23:$K$34,4,0) -> 257.9435394 | E45: =VLOOKUP(A45,'Fontes Gáficos'!$A$23:$K$34,5,0) -> 429.5874773 | F45: =VLOOKUP(A45,'Fontes Gáficos'!$A$23:$K$34,6,0) -> 429.5083783 | G45: =VLOOKUP(A45,'Fontes Gáficos'!$A$23:$K$34,7,0) -> 375.9589495 | H45: =VLOOKUP(A45,'Fontes Gáficos'!$A$23:$K$34,8,0) -> 345.7675847 | I45: =VLOOKUP(A45,'Fontes Gáficos'!$A$23:$K$34,9,0) -> 431.6883318 | J45: =VLOOKUP(A45,'Fontes Gáficos'!$A$23:$K$34,10,0) -> 515.7520768 | K45: =VLOOKUP(A45,'Fontes Gáficos'!$A$23:$K$34,11,0) -> 325.9414871 | L45: =VLOOKUP(A45,'Fontes Gáficos'!$A$23:$L$34,12,0) -> 0
A46: Materiais Básicos - Siderurgia e Metalurgia | B46: =VLOOKUP(A46,'Fontes Gáficos'!$A$23:$K$34,2,0) -> 923.9748038 | C46: =VLOOKUP(A46,'Fontes Gáficos'!$A$23:$K$34,3,0) -> 305.9646271 | D46: =VLOOKUP(A46,'Fontes Gáficos'!$A$23:$K$34,4,0) -> 381.2887898 | E46: =VLOOKUP(A46,'Fontes Gáficos'!$A$23:$K$34,5,0) -> 389.7760194 | F46: =VLOOKUP(A46,'Fontes Gáficos'!$A$23:$K$34,6,0) -> 204.1178719 | G46: =VLOOKUP(A46,'Fontes Gáficos'!$A$23:$K$34,7,0) -> 99.30058632 | H46: =VLOOKUP(A46,'Fontes Gáficos'!$A$23:$K$34,8,0) -> 227.4577533 | I46: =VLOOKUP(A46,'Fontes Gáficos'!$A$23:$K$34,9,0) -> 307.3347934 | J46: =VLOOKUP(A46,'Fontes Gáficos'!$A$23:$K$34,10,0) -> 365.4118468 | K46: =VLOOKUP(A46,'Fontes Gáficos'!$A$23:$K$34,11,0) -> 377.3762184 | L46: =VLOOKUP(A46,'Fontes Gáficos'!$A$23:$L$34,12,0) -> 0
A47: Utilidade Pública - Água e Saneamento | B47: =VLOOKUP(A47,'Fontes Gáficos'!$A$23:$K$34,2,0) -> 0 | C47: =VLOOKUP(A47,'Fontes Gáficos'!$A$23:$K$34,3,0) -> 0 | D47: =VLOOKUP(A47,'Fontes Gáficos'!$A$23:$K$34,4,0) -> 192.6996479 | E47: =VLOOKUP(A47,'Fontes Gáficos'!$A$23:$K$34,5,0) -> 164.1872939 | F47: =VLOOKUP(A47,'Fontes Gáficos'!$A$23:$K$34,6,0) -> 109.926091 | G47: =VLOOKUP(A47,'Fontes Gáficos'!$A$23:$K$34,7,0) -> 66.58731288 | H47: =VLOOKUP(A47,'Fontes Gáficos'!$A$23:$K$34,8,0) -> 158.6602837 | I47: =VLOOKUP(A47,'Fontes Gáficos'!$A$23:$K$34,9,0) -> 189.716817 | J47: =VLOOKUP(A47,'Fontes Gáficos'!$A$23:$K$34,10,0) -> 262.6645781 | K47: =VLOOKUP(A47,'Fontes Gáficos'!$A$23:$K$34,11,0) -> 291.6155837 | L47: =VLOOKUP(A47,'Fontes Gáficos'!$A$23:$L$34,12,0) -> 0
A48: TOTAL | B48: =SUM(B38:B47) -> 89234.06356 | C48: =SUM(C38:C47) -> 70346.65915 | D48: 61547.22173 | E48: 54430.57047 | F48: 35481.70049 | G48: 28086.58601 | H48: 47028.59303 | I48: =SUM(I38:I47) -> 49697.56841 | J48: =SUM(J38:J47) -> 58671.64797 | K48: =SUM(K38:K47) -> 64481.88838 | L48: =SUM(L38:L47) -> 0 | M48: =SUM(B48:L48)+L51-SUM(B35:L35) -> 0
A49: Agronegócio | B49: =VLOOKUP(A49,'Fontes Gáficos'!$A$23:$I$34,2,0) -> 0 | C49: =VLOOKUP(A49,'Fontes Gáficos'!$A$23:$I$34,3,0) -> 0 | D49: =VLOOKUP(A49,'Fontes Gáficos'!$A$23:$I$34,4,0) -> 0 | E49: =VLOOKUP(A49,'Fontes Gáficos'!$A$23:$I$34,5,0) -> 0 | F49: =VLOOKUP(A49,'Fontes Gáficos'!$A$23:$I$34,6,0) -> 0 | G49: =VLOOKUP(A49,'Fontes Gáficos'!$A$23:$I$34,7,0) -> 231.3375436 | H49: =VLOOKUP(A49,'Fontes Gáficos'!$A$23:$K$34,8,0) -> 186.670064 | I49: =VLOOKUP(A49,'Fontes Gáficos'!$A$23:$K$34,9,0) -> 158.6401228 | J49: =VLOOKUP(A49,'Fontes Gáficos'!$A$23:$K$34,10,0) -> 220.0464492 | K49: =VLOOKUP(A49,'Fontes Gáficos'!$A$23:$K$34,11,0) -> 232.6129732 | L49: =VLOOKUP(A49,'Fontes Gáficos'!$A$23:$L$34,12,0) -> 0 | M49: Diversos
A50: Transporte e Logística | B50: =VLOOKUP(A50,'Fontes Gáficos'!$A$23:$I$34,2,0) -> 0 | C50: =VLOOKUP(A50,'Fontes Gáficos'!$A$23:$I$34,3,0) -> 0 | D50: =VLOOKUP(A50,'Fontes Gáficos'!$A$23:$I$34,4,0) -> 0 | E50: =VLOOKUP(A50,'Fontes Gáficos'!$A$23:$I$34,5,0) -> 0 | F50: =VLOOKUP(A50,'Fontes Gáficos'!$A$23:$I$34,6,0) -> 0 | G50: =VLOOKUP(A50,'Fontes Gáficos'!$A$23:$I$34,7,0) -> 200.0000024 | H50: =VLOOKUP(A50,'Fontes Gáficos'!$A$23:$K$34,8,0) -> 200.0000024 | I50: =VLOOKUP(A50,'Fontes Gáficos'!$A$23:$K$34,9,0) -> 213.0525434 | J50: =VLOOKUP(A50,'Fontes Gáficos'!$A$23:$K$34,10,0) -> 274.6139362 | K50: =VLOOKUP(A50,'Fontes Gáficos'!$A$23:$K$34,11,0) -> 274.6139362 | L50: =VLOOKUP(A50,'Fontes Gáficos'!$A$23:$L$34,12,0) -> 0 | M50: Diversos
B51: =SUM(B49:B50) -> 0 | C51: =SUM(C49:C50) -> 0 | D51: 0 | E51: 0 | F51: 0 | G51: 431.337546 | H51: 386.6700664 | I51: 371.6926662 | J51: =SUM(J49:J50) -> 494.6603854 | K51: 507.2269094 | L51: =SUM(L49:L50) -> 0
A53: INDICADORES
B55: 2010 | C55: 2011 | D55: 2012 | E55: 2013 | F55: 2014 | G55: 2015 | H55: 2016 | I55: 2017 | J55: 2018 | K55: 1S19
B56: Soma de 31/dez | C56: Soma de 31/dez2 | D56: Soma de 31/dez3 | E56: Soma de 31/dez4 | F56: Soma de 31/dez5 | G56: Soma de 31/dez6 | H56: Soma de 31/dez7 | I56: Soma de 31/dez8 | J56: Soma de 31/dez9 | K56: Soma de 30/jun10
A57: Caixa e Equivalentes | B57: 1126.479 | C57: 217.63 | D57: 1998.774 | E57: 1004 | F57: 69.311 | G57: 1589.767754 | H57: 3961.872254 | I57: 11188.40772 | J57: 22391.43872 | K57: 27428.689
A58: Investimento em Coligadas | B58: 13641.374 | C58: 19332.192 | D58: 16667.573 | E58: 18118 | F58: 18544.628 | G58: 16405.5477 | H58: 14609.24279 | I58: 15152.49013 | J58: 9121.441652 | K58: 9159.748
A59: Outros | B59: 6409.939 | C59: 4810.728 | D59: 3600.244 | E59: 1841 | F59: 3981.564 | G59: 7407.119865 | H59: 13094.65725 | I59: 2798.165444 | J59: 4185.013191 | K59: 3301.622
A60: Títulos e Valores Mobiliários (TVM) | B60: 104645.63 | C60: 86297.733 | D60: 76375.723 | E60: 70368.207 | F60: 54573.685 | G60: 41925.76264 | H60: 58409.92439 | I60: 59975.2605 | J60: 67264.12093 | K60: 71875.375
A61: Total Geral | B61: 125823.422 | C61: 110658.283 | D61: 98642.314 | E61: 91331.207 | F61: 77169.188 | G61: 67328.19796 | H61: 90075.69668 | I61: 89114.3238 | J61: 102962.0145 | K61: 111765.434
J62: =GETPIVOTDATA("Soma de 31/dez9",$A$56)+J63 -> 107064.8915
A63: FIBRIA | J63: =+BP!AM11 -> 4102.877
A65: =A57 -> Caixa e Equivalentes | B65: =B57 -> 1126.479 | C65: 217.63 | D65: 1998.774 | E65: 1004 | F65: 69.311 | G65: 1589.767754 | H65: 3961.872254 | I65: 11188.40772 | J65: =J57 -> 22391.43872 | K65: 27428.689
A66: =A58 -> Investimento em Coligadas | B66: 13641.374 | C66: 19332.192 | D66: 16667.573 | E66: 18118 | F66: 18544.628 | G66: 16405.5477 | H66: 14609.24279 | I66: 15152.49013 | J66: =J58 -> 9121.441652 | K66: 9159.748
A67: =A59 -> Outros | B67: 6409.939 | C67: 4810.728 | D67: 3600.244 | E67: 1841 | F67: 3981.564 | G67: 7407.119865 | H67: 13094.65725 | I67: 2798.165444 | J67: =J59+BP!AM11 -> 8287.890191 | K67: =K59 -> 3301.622
A68: =A60 -> Títulos e Valores Mobiliários (TVM) | B68: 104645.63 | C68: 86297.733 | D68: 76375.723 | E68: 70368.207 | F68: 54573.685 | G68: 41925.76264 | H68: 58409.92439 | I68: 59975.2605 | J68: 67264.12093 | K68: 71875.375
A69: =A61 -> Total Geral | B69: =SUM(B65:B68) -> 125823.422 | C69: =SUM(C65:C68) -> 110658.283 | D69: 98642.314 | E69: 91331.207 | F69: 77169.188 | G69: 67328.19796 | H69: 90075.69668 | I69: 89114.3238 | J69: 107064.8915 | K69: 111765.434
A71: =A65 -> Caixa e Equivalentes | B71: =B65/$B$69 -> 0.00895285617 | C71: =C65/$C$69 -> 0.001966685133 | D71: =D65/$D$69 -> 0.02026284582 | E71: =E65/$E$69 -> 0.01099295666 | F71: =F65/$F$69 -> 0.0008981693574 | G71: =G65/$G$69 -> 0.02361221304 | H71: =H65/$H$69 -> 0.04398380918 | I71: =I65/$I$69 -> 0.1255511711 | J71: =J65/$J$69 -> 0.2091389475 | K71: =K65/$K$69 -> 0.245412987
A72: =A66 -> Investimento em Coligadas | B72: =B66/$B$69 -> 0.1084168097 | C72: =C66/$C$69 -> 0.1747017166 | D72: =D66/$D$69 -> 0.1689698094 | E72: =E66/$E$69 -> 0.1983768812 | F72: =F66/$F$69 -> 0.2403113014 | G72: =G66/$G$69 -> 0.2436653319 | H72: =H66/$H$69 -> 0.1621885074 | I72: =I66/$I$69 -> 0.1700342828 | J72: =J66/$J$69 -> 0.08519545038 | K72: =K66/$K$69 -> 0.08195510608
A73: =A67 -> Outros | B73: =B67/$B$69 -> 0.05094392521 | C73: =C67/$C$69 -> 0.04347372713 | D73: =D67/$D$69 -> 0.0364979678 | E73: =E67/$E$69 -> 0.02015740359 | F73: =F67/$F$69 -> 0.05159525587 | G73: =G67/$G$69 -> 0.1100151213 | H73: =H67/$H$69 -> 0.1453739214 | I73: =I67/$I$69 -> 0.03139972706 | J73: =J67/$J$69 -> 0.07740997142 | K73: =K67/$K$69 -> 0.02954063597
A74: =A68 -> Títulos e Valores Mobiliários (TVM) | B74: =B68/$B$69 -> 0.8316864089 | C74: =C68/$C$69 -> 0.7798578711 | D74: =D68/$D$69 -> 0.7742693769 | E74: =E68/$E$69 -> 0.7704727586 | F74: =F68/$F$69 -> 0.7071952733 | G74: =G68/$G$69 -> 0.6227073338 | H74: =H68/$H$69 -> 0.6484537621 | I74: =I68/$I$69 -> 0.673014819 | J74: =J68/$J$69 -> 0.6282556307 | K74: =K68/$K$69 -> 0.643091271
A75: Total Geral | B75: =B69/$B$69 -> 1 | C75: =C69/$C$69 -> 1 | D75: =D69/$D$69 -> 1 | E75: =E69/$E$69 -> 1 | F75: =F69/$F$69 -> 1 | G75: =G69/$G$69 -> 1 | H75: =H69/$H$69 -> 1 | I75: =I69/$I$69 -> 1 | J75: =J69/$J$69 -> 1 | K75: =K69/$K$69 -> 1
A77: DIVIDENDOS DISTRIBUÍDOS
B79: 2010 | C79: 2011 | D79: 2012 | E79: 2013 | F79: 2014 | G79: 2015 | H79: 2016 | I79: 2017 | J79: 2018
A80: Lucro Líquido Ajustado + Lucros Acumulados | B80: =+'Remuneração Acionista'!D3+'Remuneração Acionista'!D4 -> 5812 | C80: =+'Remuneração Acionista'!E3+'Remuneração Acionista'!E4 -> 4306.5 | D80: =+'Remuneração Acionista'!F3+'Remuneração Acionista'!F4 -> 298 | E80: =+'Remuneração Acionista'!G3+'Remuneração Acionista'!G4 -> 1548.564 | F80: =+'Remuneração Acionista'!H3+'Remuneração Acionista'!H4 -> 2904.847 | G80: =+'Remuneração Acionista'!I3+'Remuneração Acionista'!I4 -> -7640.592748 | H80: =+'Remuneração Acionista'!J3+'Remuneração Acionista'!J4 -> -1001.967359 | I80: =+'Remuneração Acionista'!K3+'Remuneração Acionista'!K4 -> 3777.976199 | J80: =+'Remuneração Acionista'!L3+'Remuneração Acionista'!L4 -> 7146
A81: Dividendos Distribuídos | B81: =+'Remuneração Acionista'!D10+'Remuneração Acionista'!D11 -> 3932 | C81: =+'Remuneração Acionista'!E10+'Remuneração Acionista'!E11 -> 1015.29375 | D81: =+'Remuneração Acionista'!F10+'Remuneração Acionista'!F11 -> 403.1 | E81: =+'Remuneração Acionista'!G10+'Remuneração Acionista'!G11 -> 1418.1358 | F81: =+'Remuneração Acionista'!H10+'Remuneração Acionista'!H11 -> 2706.60465 | G81: =+'Remuneração Acionista'!I10+'Remuneração Acionista'!I11 -> 0 | H81: =+'Remuneração Acionista'!J10+'Remuneração Acionista'!J11 -> 0 | I81: =+'Remuneração Acionista'!K10+'Remuneração Acionista'!K11 -> 0 | J81: =+'Remuneração Acionista'!L10+'Remuneração Acionista'!L11 -> 5226
B84: 2010 | C84: 2011 | D84: 2012 | E84: 2013 | F84: 2014 | G84: 2015 | H84: 2016 | I84: 2017 | J84: 2018 | K84: 1T19 | L84: 1S19 | M84: 9M19
A85: Patrimônio Líquido | B85: 86.50194625 | C85: 80.77064003 | D85: 79.154143 | E85: 76.353 | F85: 66.109273 | G85: 61.43325007 | H85: 74.00601214 | I85: 81.33012787 | J85: 93.04600278 | K85: 104.892758 | L85: 101.146412 | M85: 102.005177
A86: Capital Social | B86: 51.428861 | C86: 60.376492 | D86: 60.376492 | E86: 60.344504 | F86: 60.344504 | G86: 60.344504 | H86: 60.344504 | I86: 60.344504 | J86: 60.344504 | K86: 60.344504 | L86: 60.344504 | M86: 60.344504
A87: Reservas de Lucros | B87: 5.869722 | C87: 3.2983 | D87: 3.495685 | E87: 4.380363 | F87: 5.538461 | G87: 0 | H87: 0 | I87: 0 | J87: 4.423904 | K87: 4.423904 | L87: 2.494792 | M87: 2.494792
A88: Ajustes de Aval. Patrimonial | B88: 29.203362 | C88: 17.095848 | D88: 15.281965 | E88: 11.628175 | F88: 0.22631 | G88: 5.207696 | H88: 18.782761 | I88: 22.32883 | J88: 28.277595 | K88: 31.513457 | L88: 30.343088 | M88: 29.953882
A89: Lucros/Prejuízos Acumulados | B89: 0 | C89: 0 | D89: 0 | E89: 0 | F89: 0 | G89: -4.118948 | H89: -5.121252 | I89: -1.343205 | J89: 0 | K89: 8.610893 | L89: 7.964029 | M89: 9.212001
